Workbook

Sheet LDC Info
AA3: Algoma Power Inc.
AA4: Atikokan Hydro Inc.
AA5: Attawapiskat Power Corporation
AA6: Bluewater Power Distribution Corp.
AA7: Brant County Power
AA8: Brantford Power Inc.
AA9: Burlington Hydro Inc.
AA10: Cambridge and North Dumfries Hydro
AA11: Canadian Niagara Power Inc. – Eastern Ontario Power/Fort Erie/Port Colborne
AA12: Centre Wellington Hydro Ltd.
AA13: Chapleau Public Utilities Corporation
D14: Utility Name | AA14: COLLUS Power Corp.
AA15: Cooperative Hydro Embrun Inc.
D16: Assigned EB Number | AA16: E.L.K. Energy Inc.
AA17: Enersource Hydro Mississauga Inc.
D18: Name of Contact and Title | AA18: Entegrus Powerlines Inc.
AA19: ENWIN Utilities Ltd.
D20: Phone Number | AA20: Erie Thames Powerlines Corp.
AA21: Espanola Regional Hydro Distribution Corporation
D22: Email Address | AA22: Essex Powerlines Corporation
AA23: Festival Hydro Inc.
D24: Test Year | AA24: Fort Albany Power Corporation
AA25: Fort Frances Power Corporation
D26: Bridge Year | E26: =IF(ISBLANK(E24), "", E24-1) ->  | AA26: Greater Sudbury Hydro Inc.
AA27: Grimsby Power Inc.
D28: Last Rebasing Year | AA28: Guelph Hydro Electric Systems Inc.
AA29: Haldimand County Hydro Inc.
A30: Identify the accounting standard used for the test year
A33: Did you update your depreciation and capitalization policies?
A36: When did you update your depreciation and capitalization policies?
E37: 2001-01-01
A39: Identify the year that the applicant has adopted or is expected to adopt IFRS for financial reporting purposes
A43: Are you applying for cost recovery for the test and/or future year(s) for Green Energy initiatives?
A46: ="Is " & E14 & " an embedded distributor?" -> Is an embedded distributor?
B49: Notes | AA49: Guelph Hydro Electric Systems Inc.
AA50: Halton Hills Hydro Inc.
C51: Pale green cells represent input cells. | AA51: Hearst Power Distribution Co. Ltd.
AA52: Horizon Utilities Corporation
C53: Pale blue cells represent drop-down lists. The applicant should select the appropriate item from the drop-down list. | AA53: Hydro 2000 Inc.
AA54: Hydro Hawkesbury Inc.
C55: White cells contain fixed values, automatically generated values or formulae. | AA55: Hydro One Brampton Networks Inc.
AA56: Hydro One Networks Inc.
AA57: Hydro One Remote Communities Inc.
AA58: Hydro Ottawa Limited
AA59: Innisfil Hydro Dist. Systems Limited
AA60: Kashechewan Power Corporation
AA61: Kenora Hydro Electric Corporation Ltd.
AA62: Kingston Hydro Corporation
AA63: Kitchener-Wilmot Hydro Inc.
AA64: Lakefront Utilities Inc.
AA65: Lakeland Power Distribution Ltd.
AA66: London Hydro Inc.
AA67: Midland Power Utility Corporation
AA68: Milton Hydro Distribution Inc.
AA69: Newmarket – Tay Power Distribution Ltd.
AA70: Niagara Peninsula Energy Inc.
AA71: Niagara-on-the-Lake Hydro Inc.
AA72: Norfolk Power Distribution Ltd.
AA73: North Bay Hydro Distribution Limited
AA74: Northern Ontario Wires Inc.
AA75: Oakville Hydro Distribution Inc.
AA76: Orangeville Hydro Limited
AA77: Orillia Power Distribution Corp.
AA78: Oshawa PUC Networks Inc.
AA79: Ottawa River Power Corporation
AA80: Parry Sound Power Corporation
AA81: Peterborough Distribution Inc.
AA82: PowerStream Inc.
AA83: PUC Distribution Inc.
AA84: Renfrew Hydro Inc.
AA85: Rideau St. Lawrence Distribution Inc.
AA86: St. Thomas Energy Inc.
AA87: Sioux Lookout Hydro Inc.
AA88: Thunder Bay Hydro Electricity Distribution
AA89: Tillsonburg Hydro Inc.
AA90: Toronto Hydro-Electric System Limited
AA91: Veridian Connections Inc.
AA92: Wasaga Distribution Inc.
AA93: Waterloo North Hydro Inc.
AA94: Welland Hydro Electric System Corp.
AA95: Wellington North Power Inc.
AA96: West Coast Huron Energy Inc.
AA97: Westario Power Inc.
AA98: Whitby Hydro Electric Corporation
AA99: Woodstock Hydro Services Inc.

Sheet Table of Contents
A15: 1 | B15: LDC Information Sheet | E15: 26 | F15: App.2-FC: Calculation of Renewable Generation Connection Direct Benefits/Provincial Amount: Renewable Expansion Investments
A16: 2 | B16: Index | E16: 27 | F16: App.2-G: Service Reliability Indicators
A17: 3 | B17: Cost of Service Application Flowchart | E17: 28 | F17: App.2-H: Other Operating Revenue
A18: 4 | B18: List of Key References | E18: 29 | F18: App.2-I: Load Forecast CDM Adjustment Workform
A19: 5 | B19: App.2-AA: Capital Projects Table | E19: 30 | F19: App.2-IA: Actual and Forecast Load and Customer Data
A20: 6 | B20: App.2-AB: Capital Expenditures | E20: 31 | F20: App.2-JA: OM&A Summary Analysis
A21: 7 | B21: App. 2-AC: Customer Engagement Worksheet | E21: 32 | F21: App.2-JB: Recoverable OM&A Cost Driver Table
A22: 8 | B22: App.2-B: General Accounting Instructions | E22: 33 | F22: App.2-JC: OMA Programs Table
A23: 9 | B23: App.2-BA: Fixed Asset Continuity Schedule | E23: 34 | F23: App.2-K: Employee Costs
A24: 10 | B24: Appendix 2-BB: Service Life Comparison | E24: 35 | F24: App.2-L: Recoverable OM&A Cost per Customer and per FTE
A25: 11 | B25: App.2-CA: 2012 Depreciation and Amortization Expense (Old CGAAP) | E25: 36 | F25: App.2-M: Regulatory Costs Schedule
A26: 12 | B26: App.2-CB: 2012 Depreciation and Amortization Expense (New CGAAP) | E26: 37 | F26: App.2-N: Shared Servcies and Corporate Cost Allocation
A27: 13 | B27: App.2-CC: 2013 Depreciation and Amortization Expense (New CGAAP) | E27: 38 | F27: App.2-OA: Capital Structure and Cost of Capital
A28: 14 | B28: App.2-CD: 2014 Depreciation and Amortization Expense (MIFRS) | E28: 39 | F28: App.2-OB: Debt Instruments
A29: 15 | B29: App.2-CE: 2015 Depreciation and Amortization Expense (MIFRS) | E29: 40 | F29: App.2-P: Cost Allocation
A30: 16 | B30: App.2-CF: 2013 Depreciation and Amortization Expense (Old CGAAP) | E30: 41 | F30: App.2-Q: Cost of Serving Embedded Distributor(s)
A31: 17 | B31: App.2-CG: 2013 Depreciation and Amortization Expense (New CGAAP) | E31: 42 | F31: App.2-R: Loss Factors
A32: 18 | B32: App.2-CH: 2014 Depreciation and Amortization Expense (MIFRS) | E32: 43 | F32: App.2-S: Stranded Meter Treatment
A33: 19 | B33: App.2-CI: 2015 Depreciation and Amortization Expense (MIFRS) | E33: 44 | F33: App.2-TA: Account 1592, PILs and Tax Variances
A34: 20 | B34: App.2-D: Overhead Expenses | E34: 45 | F34: App.2-TB: Account 1592, HST-OVAT Input Tax Credits
A35: 21 | B35: App.2-EA: Account 1575 PP&E Deferral Account (2015 IFRS Adopters) | E35: 46 | F35: App.2-U: One-Time Incremental IFRS Transition Costs
A36: 22 | B36: App.2-EB: Account 1576 - Accounting Changes Under CGAAP (2012 Changes) | E36: 47 | F36: App.2-V: Revenue Reconciliation
A37: 23 | B37: App.2-EC: Account 1576 - Accounting Changes Under CGAAP (2013 Changes) | E37: 48 | F37: App.2-W: Bill Impacts
A38: 24 | B38: App.2-FA: Renewable Generation Connection Investment Summary | E38: 49 | F38: App.2-Y: Transition to MIFRS Summary Impact
A39: 25 | B39: App.2-FB: Calculation of Renewable Generation Connection Direct Benefits/Provincial Amount: Renewable Enabling Improvement Investments | E39: 50 | F39: App. 2-Z: Tariff Schedule

Sheet COS Flowchart
B4: Cost of Service Rate Application Schematic
B6: The Cost of Service Rate Application Schematic is a flowchart appended to Chapter 2 of the Filing Requirements as a guide for the components of an application and how demand and costs interrelate to derive the revenue requirement and then how the revenue requirement is allocated between classes and through fixed/variable splits to derive rates that will be compensatory for the annual revenue requirement, based on the the forecasted demand. There is no form to be filled out; therefore, this Schedule is not required to be filed.

Sheet List of Key References
B3: List of Key References
A5: A list of key references for understanding the Filing Requirements has been embedded in the document below. To access the list of references and associated hyperlinks doublt click the icon below.

Sheet App.2-CG_NewCGAAP_DepExp_2013
N1: File Number: | O1: EB-2015-0108
N2: Exhibit: | O2: 5
N3: Tab:
N4: Schedule: | O4: Table 4-49
N5: Page: | O5: 97
N7: Date: | O7: 2015-05-01
A9: Appendix 2-CO
A10: Depreciation and Amortization Expense
A11: Assumes the applicant made capitalization and depreciation expense accounting policy changes under CGAAP effective January 1, 2013 and will adopt IFRS for financial reporting purposes effective January 1, 2015.
C13: Year | D13: 2013 | E13: Revised CGAAP
A15: Account | B15: Description | C15: Opening NBV as at Jan 1, 2013 5 | D15: Additions | E15: Average Remaining Life of Opening NBV 4 | F15: Years (new additions only) 3 | G15: Depreciation Rate on New Additions | H15: Depreciation Expense on Opening NBV | I15: Depreciation Expense on Additions 1 | J15: 2013 Depreciation Expense | K15: 2013 Depreciation Expense per Appendix 2-BA Fixed Assets, Column J (l) | L15: Variance 2 | M15: Depreciation Expense on 2013 Full Year Additions | N15: Less Depreciation Expense on Assets Fully Depreciated during the year (o) | O15: 2013 Full Year Depreciation 6 | P15: Balances in 2013 Opening NBV, should have been fully depreciated, thus, remove 2013
C16: (a) | D16: (d) | E16: (i) | F16: (f) | G16: (g) = 1 / (f) | H16: (j) = (a) / (i) | I16: (h)=((d)*1)/(f) | J16: (k) = (j) + (h) | L16: (m) = (k) - (l) | M16: (n) = (d)/(f) | O16: (p) = (j) + (n) - (o)
A17: 1611 | B17: Computer Software (Formally known as Account 1925) | C17: 1137960.47 | D17: 342714.16 | E17: 2.437 | F17: 5 | G17: =IF(F17=0,0,1/F17) -> 0.2 | H17: =IF(E17=0,0,+C17/E17) -> 466951.3623 | I17: =IF(F17=0,0,+(D17*1)/F17) -> 68542.832 | J17: =IF(ISERROR(+H17+I17), 0, +H17+I17) -> 535494.1943 | K17: 535469.38 | L17: =IF(ISERROR(+J17-K17), 0, +J17-K17) -> 24.81433073 | M17: =IF(F17=0,0,+(D17)/F17) -> 68542.832 | N17: 125500.88 | O17: =IF(ISERROR(+M17+H17-N17), 0, +M17+H17-N17) -> 409993.3143
A18: 1612 | B18: Land Rights (Formally known as Account 1906) | C18: 510696.18 | D18: 43422.53 | E18: 0 | F18: 0 | G18: 0 | H18: 0 | I18: =IF(F18=0,0,+(D18*1)/F18) -> 0 | J18: 0 | K18: 0 | L18: 0 | M18: 0 | O18: =IF(ISERROR(+M18+H18-N18), 0, +M18+H18-N18) -> 0
A19: 1805 | B19: Land | C19: 2323796.46 | G19: 0 | H19: 0 | I19: 0 | J19: 0 | K19: 0 | L19: 0 | M19: 0 | O19: 0
A20: 1808 | B20: Buildings - MS | C20: 158628.96 | D20: 19349.3 | E20: 24.36 | F20: 50 | G20: 0.02 | H20: 6511.862069 | I20: 386.986 | J20: 6898.848069 | K20: 6899.64 | L20: -0.7919310345 | M20: 386.986 | O20: 6898.848069
A21: 1808 | B21: Buildings - TS | C21: 3132108.26 | D21: -19817.29 | E21: 49.28 | F21: 60 | G21: 0.01666666667 | H21: 63557.39164 | I21: -330.2881667 | J21: 63227.10347 | K21: 60049.32 | L21: =IF(ISERROR(+J21-K21), 0, +J21-K21) -> 3177.783473 | M21: =IF(F21=0,0,+(D21)/F21) -> -330.2881667 | O21: 63227.10347
A22: 1808 | B22: Buildings & Fixtures - Service Centre | C22: 19340595.09 | D22: 286335.76 | E22: 49.8718 | F22: 50 | G22: 0.02 | H22: 387806.237 | I22: 5726.7152 | J22: 393532.9522 | K22: 393533.04 | L22: -0.08777899318 | M22: 5726.7152 | O22: 393532.9522
A23: 1808 | B23: Service Centre - Parking Lot & Fence | C23: 690605.46 | D23: 69216.22 | E23: 23.05 | F23: 25 | G23: 0.04 | H23: 29961.19132 | I23: 2768.6488 | J23: 32729.84012 | K23: 32724.6 | L23: 5.24012321 | M23: 2768.6488 | O23: 32729.84012
A24: 1808 | B24: Service Centre - HVAC | C24: 3577996.8 | D24: 221804.05 | E24: 13.00453 | F24: 15 | G24: 0.06666666667 | H24: 275134.6492 | I24: 14786.93667 | J24: 289921.5859 | K24: 289921.32 | L24: 0.2659004336 | M24: 14786.93667 | O24: 289921.5859
A25: 1808 | B25: Service Centre - Roof | C25: 594826.71 | D25: 5985 | E25: 18 | F25: 20 | G25: 0.05 | H25: 33045.92833 | I25: 299.25 | J25: 33345.17833 | K25: 33345.24 | L25: -0.06166666667 | M25: 299.25 | O25: 33345.17833
A26: 1808 | B26: Service Centre - Automation | C26: 0 | D26: 6137.55 | E26: 13.99 | F26: 15 | G26: 0.06666666667 | H26: 0 | I26: =IF(F26=0,0,+(D26*1)/F26) -> 409.17 | J26: 409.17 | K26: 3107.04 | L26: -2697.87 | M26: 409.17 | O26: 409.17
A27: 1808 | B27: Operation Centre - Workshop | C27: 5322.96 | D27: 0 | E27: 35.49 | F27: 50 | G27: 0.02 | H27: 149.9847844 | I27: 0 | J27: 149.9847844 | K27: 150 | L27: -0.01521555368 | M27: 0 | O27: 149.9847844
A28: 1810 | B28: Leasehold Improvements | G28: 0 | H28: 0 | I28: 0 | J28: 0 | L28: 0 | M28: 0 | O28: 0
A29: 1815 | B29: Transformer Station Equipment >50 kV | C29: 8117510.36 | D29: =320766-211614 -> 109152 | E29: 10.4335 | F29: 30 | G29: 0.03333333333 | H29: =IF(E29=0,0,+C29/E29) -> 778023.7082 | I29: 3638.4 | J29: =IF(ISERROR(+H29+I29), 0, +H29+I29) -> 781662.1082 | K29: =-74634.15+847685+8610.57 -> 781661.42 | L29: 0.6882474723 | M29: 3638.4 | N29: 18603.63 | O29: 763058.4782
A30: 1815 | B30: TSE Auxiliary equipment | C30: 1260559.77 | D30: =33223.74 -> 33223.74 | E30: 22.629 | F30: 30 | G30: =IF(F30=0,0,1/F30) -> 0.03333333333 | H30: =IF(E30=0,0,+C30/E30) -> 55705.50046 | I30: =IF(F30=0,0,+(D30*1)/F30) -> 1107.458 | J30: =IF(ISERROR(+H30+I30), 0, +H30+I30) -> 56812.95846 | K30: 56811.48 | L30: =IF(ISERROR(+J30-K30), 0, +J30-K30) -> 1.478464006 | M30: =IF(F30=0,0,+(D30)/F30) -> 1107.458 | O30: =IF(ISERROR(+M30+H30-N30), 0, +M30+H30-N30) -> 56812.95846
A31: 1815 | B31: TSE - P&C equipment | C31: 2208862.29 | D31: =213289.89 -> 213289.89 | E31: 10.4621 | F31: 15 | G31: 0.06666666667 | H31: 211129.9156 | I31: 14219.326 | J31: 225349.2416 | K31: 225319.09 | L31: 30.15160012 | M31: 14219.326 | O31: 225349.2416
A32: 1815 | B32: TSE - Power transformer | C32: 10172575.47 | D32: =175818.1 -> 175818.1 | E32: 42.354 | F32: 50 | G32: 0.02 | H32: 240179.8052 | I32: 3516.362 | J32: 243696.1672 | K32: 243695.64 | L32: 0.527213203 | M32: 3516.362 | O32: 243696.1672
A33: 1820 | B33: Distribution Station Equipment <50 kV | C33: 796679.34 | D33: 407723.51 | E33: 6.6855 | F33: 30 | G33: 0.03333333333 | H33: 119165.2591 | I33: 13590.78367 | J33: 132756.0428 | K33: 132756.64 | L33: -0.5971904121 | M33: 13590.78367 | N33: 37383.03 | O33: 95373.01281
A34: 1820 | B34: Meters Wholesale | C34: 739069.06 | D34: 17680 | E34: 13.55086343 | F34: 15 | G34: 0.06666666667 | H34: =IF(E34=0,0,+C34/E34) -> 54540.36667 | I34: =IF(F34=0,0,+(D34*1)/F34) -> 1178.666667 | J34: =IF(ISERROR(+H34+I34), 0, +H34+I34) -> 55719.03333 | K34: 55719.03333 | L34: =IF(ISERROR(+J34-K34), 0, +J34-K34) -> 0 | M34: =IF(F34=0,0,+(D34)/F34) -> 1178.666667 | O34: =IF(ISERROR(+M34+H34-N34), 0, +M34+H34-N34) -> 55719.03333
A35: 1825 | B35: Storage Battery Equipment | G35: 0 | H35: 0 | I35: 0 | J35: 0 | L35: 0 | M35: 0 | O35: 0
A36: 1830 | B36: Poles, Towers & Fixtures | C36: 32108265.47 | D36: 4855043.64 | E36: 38.286 | F36: 45 | G36: 0.02222222222 | H36: 838642.4664 | I36: 107889.8587 | J36: 946532.3251 | K36: 946536 | L36: -3.674896516 | M36: 107889.8587 | O36: 946532.3251
A37: 1835 | B37: Overhead Conductors & Devices | C37: 17765762.07 | D37: 2639429.06 | E37: 36.802 | F37: 45 | G37: 0.02222222222 | H37: 482739.0378 | I37: 58653.97911 | J37: 541393.0169 | K37: 541386.96 | L37: 6.056935142 | M37: 58653.97911 | O37: 541393.0169
A38: 1835 | B38: OH Manual line switches | D38: 372600.49 | E38: 0 | F38: 30 | G38: 0.03333333333 | H38: =IF(E38=0,0,+C38/E38) -> 0 | I38: =IF(F38=0,0,+(D38*1)/F38) -> 12420.01633 | J38: =IF(ISERROR(+H38+I38), 0, +H38+I38) -> 12420.01633 | K38: 12420.12 | L38: =IF(ISERROR(+J38-K38), 0, +J38-K38) -> -0.1036666667 | M38: =IF(F38=0,0,+(D38)/F38) -> 12420.01633 | O38: =IF(ISERROR(+M38+H38-N38), 0, +M38+H38-N38) -> 12420.01633
A39: 1835 | B39: OH SCADA control equipment | D39: 389560.73 | E39: 0 | F39: 15 | G39: 0.06666666667 | H39: 0 | I39: 25970.71533 | J39: 25970.71533 | K39: 25970.76 | L39: -0.04466666666 | M39: 25970.71533 | O39: 25970.71533
A40: 1840 | B40: Underground Conduit | C40: 7776100.81 | D40: 909574.59 | E40: 41.475 | F40: 50 | G40: 0.02 | H40: 187488.8682 | I40: 18191.4918 | J40: 205680.36 | K40: 205571.64 | L40: 108.7200339 | M40: 18191.4918 | O40: 205680.36
A41: 1845 | B41: Underground Conductors & Devices | C41: 17387400.65 | D41: 2267661.94 | E41: 24.985 | F41: 35 | G41: 0.02857142857 | H41: =IF(E41=0,0,+C41/E41)-P41 -> 733536.3841 | I41: 64790.34114 | J41: 798326.7253 | K41: 798336.05 | L41: -9.324712656 | M41: 64790.34114 | O41: =IF(ISERROR(+M41+H41-N41), 0, +M41+H41-N41)+P41 -> 760703.9153 | P41: -37622.81
A42: 1850 | B42: Line Transformers - Overhead | C42: 12702530.35 | D42: =821438.01-170076.73 -> 651361.28 | E42: 37.846 | F42: 45 | G42: 0.02222222222 | H42: =IF(E42=0,0,+C42/E42)-P42 -> 300289.1889 | I42: 14474.69511 | J42: 314763.884 | K42: 314764.82 | L42: -0.9359769828 | M42: 14474.69511 | N42: -35924.8 | O42: =IF(ISERROR(+M42+H42-N42), 0, +M42+H42-N42) -> 350688.684 | P42: 35348.14
A43: 1850 | B43: Line Transformers - Underground | C43: 14232826.71 | D43: =2279599.86-40481.54 -> 2239118.32 | E43: 27.451 | F43: 35 | G43: =IF(F43=0,0,1/F43) -> 0.02857142857 | H43: =IF(E43=0,0,+C43/E43) -> 518481.1741 | I43: =IF(F43=0,0,+(D43*1)/F43) -> 63974.80914 | J43: =IF(ISERROR(+H43+I43), 0, +H43+I43) -> 582455.9832 | K43: 582455.04 | L43: =IF(ISERROR(+J43-K43), 0, +J43-K43) -> 0.9432348756 | M43: =IF(F43=0,0,+(D43)/F43) -> 63974.80914 | O43: =IF(ISERROR(+M43+H43-N43), 0, +M43+H43-N43) -> 582455.9832
A44: 1855 | B44: Services - Overhead | C44: 4150228.8 | D44: 272539.05 | E44: 37.0279 | F44: 45 | G44: 0.02222222222 | H44: 112083.8287 | I44: 6056.423333 | J44: 118140.252 | K44: 118140.12 | L44: 0.1320138688 | M44: 6056.423333 | O44: 118140.252
A45: 1855 | B45: Services - Underground | C45: 6889107.25 | D45: 982568.68 | E45: 41.243 | F45: 50 | G45: =IF(F45=0,0,1/F45) -> 0.02 | H45: =IF(E45=0,0,+C45/E45) -> 167037.0063 | I45: =IF(F45=0,0,+(D45*1)/F45) -> 19651.3736 | J45: =IF(ISERROR(+H45+I45), 0, +H45+I45) -> 186688.3799 | K45: 186686.04 | L45: =IF(ISERROR(+J45-K45), 0, +J45-K45) -> 2.339879854 | M45: =IF(F45=0,0,+(D45)/F45) -> 19651.3736 | O45: =IF(ISERROR(+M45+H45-N45), 0, +M45+H45-N45) -> 186688.3799
A46: 1860 | B46: Meters - Bi'directional | C46: 33590.49 | D46: 0 | E46: 23.393 | F46: 25 | G46: 0.04 | H46: 1435.920575 | I46: 0 | J46: 1435.920575 | K46: 1435.92 | L46: 0.0005745308424 | M46: 0 | O46: 1435.920575
A47: 1860 | B47: Meters - Commercial | C47: 1798459.54 | D47: 1272.55 | E47: 21.329 | F47: 25 | G47: =IF(F47=0,0,1/F47) -> 0.04 | H47: =IF(E47=0,0,+C47/E47) -> 84319.91842 | I47: =IF(F47=0,0,+(D47*1)/F47) -> 50.902 | J47: =IF(ISERROR(+H47+I47), 0, +H47+I47) -> 84370.82042 | K47: 84368.76 | L47: =IF(ISERROR(+J47-K47), 0, +J47-K47) -> 2.060420929 | M47: =IF(F47=0,0,+(D47)/F47) -> 50.902 | O47: =IF(ISERROR(+M47+H47-N47), 0, +M47+H47-N47) -> 84370.82042
A48: 1860 | B48: Meters - Residential | C48: 2397467.43 | D48: 0 | E48: 10.9717 | F48: 25 | G48: 0.04 | H48: =IF(E48=0,0,+C48/E48)-P48 -> 338974.2309 | I48: 0 | J48: 338974.2309 | K48: 338973.4667 | L48: 0.7641908118 | M48: 0 | N48: 155199.08 | O48: =IF(ISERROR(+M48+H48-N48), 0, +M48+H48-N48)+P48 -> 63314.68086 | P48: -120460.47
A49: 1860 | B49: Meters C& I | C49: 0 | D49: 808222.31 | E49: 0 | F49: 15 | G49: 0.06666666667 | H49: 0 | I49: 53881.48733 | J49: 53881.48733 | K49: 55060.2 | L49: -1178.712667 | M49: 53881.48733 | O49: 53881.48733
A50: 1860 | B50: Meters (Smart Meters) | C50: 6265880 | D50: 0 | E50: 11.568 | F50: 15 | G50: 0.06666666667 | H50: 541656.2932 | I50: 0 | J50: 541656.2932 | K50: 541668.84 | L50: -12.54677732 | M50: 0 | O50: 541656.2932
A51: 1905 | B51: Land | G51: 0 | H51: 0 | I51: 0 | J51: 0 | L51: 0 | M51: 0 | O51: 0
A52: 1908 | B52: Buildings & Fixtures | G52: 0 | H52: 0 | I52: 0 | J52: 0 | L52: 0 | M52: 0 | O52: 0
A53: 1910 | B53: Leasehold Improvements | G53: 0 | H53: 0 | I53: 0 | J53: 0 | L53: 0 | M53: 0 | O53: 0
A54: 1915 | B54: Office Furniture & Equipment (10 years) | C54: 886158.36 | D54: 19536.92 | E54: 8.733 | F54: 10 | G54: 0.1 | H54: 101472.3875 | I54: 1953.692 | J54: 103426.0795 | K54: 103425 | L54: 1.079495706 | M54: 1953.692 | O54: 103426.0795
A55: 1915 | B55: Office Furniture & Equipment (5 years) | C55: 7003.71 | E55: 2 | F55: 5 | G55: 0.2 | H55: 3501.855 | I55: 0 | J55: 3501.855 | K55: 3501.84 | L55: 0.015 | M55: 0 | O55: 3501.855
A56: 1920 | B56: Computer Equipment - Hardware | G56: 0 | H56: 0 | I56: 0 | J56: 0 | L56: 0 | M56: 0 | O56: 0
A57: 1920 | B57: Computer Equip.-Hardware(Post Mar. 22/04) | G57: 0 | H57: 0 | I57: 0 | J57: 0 | L57: 0 | M57: 0 | O57: 0
A58: 1920 | B58: Computer Equip.-Hardware(Post Mar. 19/07) | C58: 473009.83 | D58: 112736.19 | E58: 3.03 | F58: 5 | G58: 0.2 | H58: =IF(E58=0,0,+C58/E58)-+P58 -> 178248.7548 | I58: 22547.238 | J58: 200795.9928 | K58: 200839.38 | L58: -43.38721452 | M58: 22547.238 | N58: 30485.56 | O58: =IF(ISERROR(+M58+H58-N58), 0, +M58+H58-N58)+P58 -> 148170.5328 | P58: -22139.9
A59: 1930 | B59: Transportation Equipment - car | C59: 29729.38 | D59: 0 | E59: 4 | F59: 5 | G59: 0.2 | H59: 7432.345 | I59: 0 | J59: 7432.345 | K59: 7432.32 | L59: 0.025 | M59: 0 | O59: 7432.345
A60: 1930 | B60: Transportation Equipment - Other - trailers etc | C60: 184654.58 | D60: 305041.2 | E60: 12.099 | F60: 15 | G60: =IF(F60=0,0,1/F60) -> 0.06666666667 | H60: =IF(E60=0,0,+C60/E60) -> 15261.97041 | I60: =IF(F60=0,0,+(D60*1)/F60) -> 20336.08 | J60: =IF(ISERROR(+H60+I60), 0, +H60+I60) -> 35598.05041 | K60: 35597.88 | L60: =IF(ISERROR(+J60-K60), 0, +J60-K60) -> 0.1704107778 | M60: =IF(F60=0,0,+(D60)/F60) -> 20336.08 | O60: =IF(ISERROR(+M60+H60-N60), 0, +M60+H60-N60) -> 35598.05041
A61: 1930 | B61: Transportation Equipment - small trucks | C61: 629219.14 | D61: 56996.95 | E61: 6.263593009 | F61: 8 | G61: 0.125 | H61: 100456.5813 | I61: 7124.61875 | J61: 107581.2 | K61: 107581.2 | L61: 0 | M61: 7124.61875 | O61: 107581.2
A62: 1930 | B62: Transportation Equipment - workplatform | C62: 1400100.08 | D62: 408866.64 | E62: 8.973 | F62: 12 | G62: 0.08333333333 | H62: 156034.7799 | I62: 34072.22 | J62: 190106.9999 | K62: 190112.16 | L62: -5.160104759 | M62: 34072.22 | O62: 190106.9999
A63: 1930 | B63: Transportation Equipmnet - Hybrid system | C63: 0 | D63: 141085.77 | E63: 0 | F63: 5 | G63: 0.2 | H63: 0 | I63: 28217.154 | J63: 28217.154 | K63: 28217.16 | L63: -0.006000000001 | M63: 28217.154 | O63: 28217.154
A64: 1935 | B64: Stores Equipment | C64: 340118.52 | D64: 8581.15 | E64: 7.38 | F64: 10 | G64: 0.1 | H64: 46086.52033 | I64: 858.115 | J64: 46944.63533 | K64: 46941.72 | L64: 2.915325203 | M64: 858.115 | O64: 46944.63533
A65: 1940 | B65: Tools, Shop & Garage Equipment | C65: 269625.01 | D65: 10422.73 | E65: 8.365 | F65: 8 | G65: 0.125 | H65: =IF(E65=0,0,+C65/E65)-P65 -> 33437.22763 | I65: 1302.84125 | J65: 34740.06888 | K65: 34739.67 | L65: 0.3988829946 | M65: 1302.84125 | O65: =IF(ISERROR(+M65+H65-N65), 0, +M65+H65-N65)+P65 -> 33535.35888 | P65: -1204.71
A66: 1940 | B66: Truck tools | C66: 220122.17 | D66: 71314.43 | E66: 2.494 | F66: 5 | G66: =IF(F66=0,0,1/F66) -> 0.2 | H66: =IF(E66=0,0,+C66/E66)-+P66 -> 147256.8637 | I66: =IF(F66=0,0,+(D66*1)/F66) -> 14262.886 | J66: =IF(ISERROR(+H66+I66), 0, +H66+I66) -> 161519.7497 | K66: 161512.34 | L66: =IF(ISERROR(+J66-K66), 0, +J66-K66) -> 7.409664796 | M66: =IF(F66=0,0,+(D66)/F66) -> 14262.886 | N66: 15250.25 | O66: =IF(ISERROR(+M66+H66-N66), 0, +M66+H66-N66)+P66 -> 87273.32966 | P66: -58996.17
A67: 1945 | B67: Measurement & Testing Equipment | C67: 240372.34 | D67: 4725.99 | E67: 4.6162 | F67: 7 | G67: 0.1428571429 | H67: =IF(E67=0,0,+C67/E67)-P67 -> 68183.52437 | I67: 675.1414286 | J67: 68858.6658 | K67: 68859.18 | L67: -0.5141985678 | M67: 675.1414286 | N67: 5346.77 | O67: =IF(ISERROR(+M67+H67-N67), 0, +M67+H67-N67)+P67 -> 47399.8458 | P67: -16112.05
A68: 1950 | B68: Power Operated Equipment | G68: 0 | H68: 0 | I68: 0 | J68: 0 | L68: 0 | M68: 0 | O68: 0
A69: 1955 | B69: Communications Equipment - phones | C69: 341350.47 | D69: 6024 | E69: 6.731 | F69: 10 | G69: 0.1 | H69: 50713.18823 | I69: 602.4 | J69: 51315.58823 | K69: 51312.94 | L69: 2.648233546 | M69: 602.4 | N69: 4512.46 | O69: 46803.12823
A70: 1955 | B70: Communications Equipment - Radio wireless | C70: 109455.16 | D70: 2007.18 | E70: 4.4157 | F70: 8 | G70: =IF(F70=0,0,1/F70) -> 0.125 | H70: =IF(E70=0,0,+C70/E70) -> 24787.72562 | I70: =IF(F70=0,0,+(D70*1)/F70) -> 250.8975 | J70: =IF(ISERROR(+H70+I70), 0, +H70+I70) -> 25038.62312 | K70: 25038.6 | L70: =IF(ISERROR(+J70-K70), 0, +J70-K70) -> 0.02311541771 | M70: =IF(F70=0,0,+(D70)/F70) -> 250.8975 | O70: =IF(ISERROR(+M70+H70-N70), 0, +M70+H70-N70) -> 25038.62312
A71: 1955 | B71: Communications Equipment - Radio | C71: 122011.8 | E71: 6.925 | F71: 10 | G71: 0.1 | H71: 17619.03249 | I71: 0 | J71: 17619.03249 | K71: 17619.96 | L71: -0.9275090253 | M71: 0 | O71: 17619.03249
A72: 1955 | B72: Communication Equipment (Smart Meters) | G72: 0 | H72: 0 | I72: 0 | J72: 0 | L72: 0 | M72: 0 | O72: 0
A73: 1960 | B73: Miscellaneous Equipment | C73: 1554687.143 | D73: 17607.76 | E73: 6.575 | F73: 10 | G73: 0.1 | H73: 236454.3183 | I73: 1760.776 | J73: 238215.0943 | K73: 238202.09 | L73: 13.004327 | M73: 1760.776 | N73: 212.21 | O73: 238002.8843
A74: 1970 | B74: Load Management Controls - Customer Premises | G74: 0 | H74: 0 | I74: 0 | J74: 0 | L74: 0 | M74: 0 | O74: 0
A75: 1975 | B75: Load Management Controls Utility Premises | G75: 0 | H75: 0 | I75: 0 | J75: 0 | L75: 0 | M75: 0 | O75: 0
A76: 1980 | B76: System Supervisor Equipment | C76: 1637568.18 | D76: 465382.76 | E76: 11.225 | F76: 15 | G76: 0.06666666667 | H76: =IF(E76=0,0,+C76/E76)-P76 -> 176968.9367 | I76: 31025.51733 | J76: 207994.454 | K76: 207899.17 | L76: 95.28401485 | M76: 31025.51733 | N76: 1930.32 | O76: =IF(ISERROR(+M76+H76-N76), 0, +M76+H76-N76)+P76 -> 174981.004 | P76: -31083.13
A77: 1985 | B77: Miscellaneous Fixed Assets | G77: 0 | H77: 0 | I77: 0 | J77: 0 | L77: 0 | M77: 0 | O77: 0
A78: 1990 | B78: Other Tangible Property | G78: 0 | H78: 0 | I78: 0 | J78: 0 | L78: 0 | M78: 0 | O78: 0
A79: 1995 | B79: Contributions & Grants | C79: -21932649.26 | D79: -1672705 | G79: 0 | H79: -699607.3844 | I79: -41608.89371 | J79: -741216.2781 | K79: -741216.28 | L79: 0.001857878757 | M79: =+I79 -> -41608.89371 | O79: -741216.2781
B80: Total | C80: =SUM(C17:C79) -> 164787949.8 | D80: =SUM(D17:D79) -> 18278611.83 | H80: =SUM(H17:H79) -> 7692856.106 | I80: 699228.0233 | J80: 8392084.13 | K80: 8392553.95 | L80: -469.8202088 | M80: 699228.0233 | N80: 358499.39 | O80: 7745965.5
A82: Notes:
A84: 1 | B84: Board policy of the "half-year" rule - the applicant must ensure that additions in the year attract a half-year depreciation expense in the first year. Deviations from this standard practice must be supported in the application.
A85: 2 | B85: The applicant must provide an explanation of material variances in evidence.
A86: 3 | B86: The applicant should ensure that the years for new additions of assets are the asset useful lives determined by management in accordance with the Board's regulatory accounting policies. The capitalization and depreciation expense accounting changes should be implemented consistent with the Board’s regulatory accounting policies as set out for MIFRS as contained in the Report of the Board, Transition to International Financial Reporting Standards, EB-2008-0408, the Kinectrics Report, and the Revised 2012 Accounting Procedures Handbook for Electricity Distributors.
A87: 4 | B87: A recalculation should be performed to determine the average remaining life of opening balance of assets (i.e. excluding 2013 additions) under the change in policies under CGAAP. For example, Asset A had a useful life of 20 years under CGAAP without the change in policies. On January 1, 2013, the effective date of the changes in policies, Asset A was 3 years depreciated. As a result, Asset A would have a remaining service life of 17 years (20 years less 3 years) as of January 1, 2013. Due to making the change in policies under CGAAP, management re-assessed the asset useful lives and concluded that the revised useful life of Asset A is now 30 years. Therefore, the average remaining useful life of the opening balance of Asset A is determined to be 27 years (30 years less 3 years) under the revised CGAAP as of January 1, 2013.
A88: 5 | B88: NBV must exclude assets still on the books but which have been fully amortized or depreciated.
A89: 6 | B89: This column refers to the calculated full year depreciation but excludes the depreciation expense on assets fully depreciated during the year. This column is used for the purpose of calculating depreciation expense in the following year on the next worksheet.
A91: General: | B91: Applicants must provide a breakdown of depreciation and amortization expense in the above format for all relevant accounts. Asset Retirement Obligations (AROs), depreciation and accretion expense should be disclosed separately consistent with the Notes of historical Audited Financial Statements.

Sheet App.2-CH_MIFRS_DepExp_2014
J1: File Number: | K1: EB-2015-0108
J2: Exhibit: | K2: 4
J3: Tab:
J4: Schedule: | K4: Table 4-50
J5: Page: | K5: 98
J7: Date: | K7: 2015-05-01
A9: Appendix 2-CP
A10: Depreciation and Amortization Expense
A11: Assumes the applicant made capitalization and depreciation expense accounting policy changes under CGAAP effective January 1, 2013 and will adopt IFRS for financial reporting purposes effective January 1, 2015.
E13: 2014 | F13: MIFRS
A15: Account | B15: Description | C15: Additions | D15: Years (new additions only) | E15: Depreciation Rate on New Additions | F15: 2014 Depreciation Expense 1 | G15: 2014 Depreciation Expense per Apppendix 2-BA Fixed Assets, Column J (l) | H15: Variance 2 | I15: Depreciation Expense on 2014 Full Year Additions | J15: Less Depreciation Expense on Assets Fully Depreciated during the year (o) | K15: 2014 Full Year Depreciation 3 | L15: Adjustments
C16: (d) | D16: (f) | E16: (g) = 1 / (f) | F16: (h)=2013 Full Year Deprecation + ((d)*1)/(f) | H16: (m) = (h) - (l) | I16: (n)=((d))/(f) | K16: (p) = 2013 Full Year Depreciation + (n) - (o)
A17: 1611 | B17: Computer Software (Formally known as Account 1925) | C17: 362001.57 | D17: 5 | E17: =IF(D17=0,0,1/D17) -> 0.2 | F17: =IF(D17=0,+'App.2-CG_NewCGAAP_DepExp_2013'!O17,+'App.2-CG_NewCGAAP_DepExp_2013'!O17+((C17*1)/D17)) -> 482393.6283 | G17: 479831.354 | H17: =IF(ISERROR(+F17-G17), 0, +F17-G17) -> 2562.274331 | I17: =IF(D17=0,0,+(C17)/D17) -> 72400.314 | J17: 113230.4 | K17: =IF(ISERROR(+I17+'App.2-CG_NewCGAAP_DepExp_2013'!O17-J17), 0, +I17+'App.2-CG_NewCGAAP_DepExp_2013'!O17-J17) -> 369163.2283
A18: 1612 | B18: Land Rights (Formally known as Account 1906) | C18: 99901.84 | D18: 0 | E18: 0 | F18: =IF(D18=0,+'App.2-CG_NewCGAAP_DepExp_2013'!O18,+'App.2-CG_NewCGAAP_DepExp_2013'!O18+((C18*1)/D18)) -> 0 | H18: 0 | I18: 0 | K18: =IF(ISERROR(+I18+'App.2-CG_NewCGAAP_DepExp_2013'!O18-J18), 0, +I18+'App.2-CG_NewCGAAP_DepExp_2013'!O18-J18) -> 0
A19: 1805 | B19: Land | E19: 0 | F19: =IF(D19=0,+'App.2-CG_NewCGAAP_DepExp_2013'!O19,+'App.2-CG_NewCGAAP_DepExp_2013'!O19+((C19*1)/D19)) -> 0 | H19: 0 | I19: 0 | K19: =IF(ISERROR(+I19+'App.2-CG_NewCGAAP_DepExp_2013'!O19-J19), 0, +I19+'App.2-CG_NewCGAAP_DepExp_2013'!O19-J19) -> 0
A20: 1808 | B20: Buildings - MS | C20: 0 | D20: 50 | E20: 0.02 | F20: =IF(D20=0,+'App.2-CG_NewCGAAP_DepExp_2013'!O20,+'App.2-CG_NewCGAAP_DepExp_2013'!O20+((C20*1)/D20)) -> 6898.848069 | G20: 6899.64 | H20: -0.7919310345 | I20: 0 | K20: =IF(ISERROR(+I20+'App.2-CG_NewCGAAP_DepExp_2013'!O20-J20), 0, +I20+'App.2-CG_NewCGAAP_DepExp_2013'!O20-J20) -> 6898.848069
A21: 1808 | B21: Buildings - TS | C21: 492749.01 | D21: 60 | E21: =IF(D21=0,0,1/D21) -> 0.01666666667 | F21: =IF(D21=0,+'App.2-CG_NewCGAAP_DepExp_2013'!O21,+'App.2-CG_NewCGAAP_DepExp_2013'!O21+((C21*1)/D21)) -> 71439.58697 | G21: 68261.88 | H21: =IF(ISERROR(+F21-G21), 0, +F21-G21) -> 3177.706973 | I21: =IF(D21=0,0,+(C21)/D21) -> 8212.4835 | K21: =IF(ISERROR(+I21+'App.2-CG_NewCGAAP_DepExp_2013'!O21-J21), 0, +I21+'App.2-CG_NewCGAAP_DepExp_2013'!O21-J21) -> 71439.58697
A22: 1808 | B22: Buildings & Fixtures - Service Centre | C22: 179822.38 | D22: 50 | E22: 0.02 | F22: =IF(D22=0,+'App.2-CG_NewCGAAP_DepExp_2013'!O22,+'App.2-CG_NewCGAAP_DepExp_2013'!O22+((C22*1)/D22)) -> 397129.3998 | G22: 397134.36 | H22: -4.960178993 | I22: 3596.4476 | K22: =IF(ISERROR(+I22+'App.2-CG_NewCGAAP_DepExp_2013'!O22-J22), 0, +I22+'App.2-CG_NewCGAAP_DepExp_2013'!O22-J22) -> 397129.3998
A23: 1808 | B23: Service Centre - Parking Lot & Fence | C23: 13775 | D23: 25 | E23: 0.04 | F23: =IF(D23=0,+'App.2-CG_NewCGAAP_DepExp_2013'!O23,+'App.2-CG_NewCGAAP_DepExp_2013'!O23+((C23*1)/D23)) -> 33280.84012 | G23: 33275.52 | H23: 5.32012321 | I23: 551 | K23: =IF(ISERROR(+I23+'App.2-CG_NewCGAAP_DepExp_2013'!O23-J23), 0, +I23+'App.2-CG_NewCGAAP_DepExp_2013'!O23-J23) -> 33280.84012
A24: 1808 | B24: Service Centre - HVAC | C24: 34545.13 | D24: 15 | E24: 0.06666666667 | F24: =IF(D24=0,+'App.2-CG_NewCGAAP_DepExp_2013'!O24,+'App.2-CG_NewCGAAP_DepExp_2013'!O24+((C24*1)/D24)) -> 292224.5946 | G24: 292224 | H24: 0.5945671003 | I24: 2303.008667 | K24: =IF(ISERROR(+I24+'App.2-CG_NewCGAAP_DepExp_2013'!O24-J24), 0, +I24+'App.2-CG_NewCGAAP_DepExp_2013'!O24-J24) -> 292224.5946
A25: 1808 | B25: Service Centre - Roof | C25: 0 | D25: 20 | E25: 0.05 | F25: =IF(D25=0,+'App.2-CG_NewCGAAP_DepExp_2013'!O25,+'App.2-CG_NewCGAAP_DepExp_2013'!O25+((C25*1)/D25)) -> 33345.17833 | G25: 33345.24 | H25: -0.06166666667 | I25: 0 | K25: =IF(ISERROR(+I25+'App.2-CG_NewCGAAP_DepExp_2013'!O25-J25), 0, +I25+'App.2-CG_NewCGAAP_DepExp_2013'!O25-J25) -> 33345.17833
A26: 1808 | B26: Service Centre - Automation | C26: 5610.26 | D26: 15 | E26: 0.06666666667 | F26: =IF(D26=0,+'App.2-CG_NewCGAAP_DepExp_2013'!O26,+'App.2-CG_NewCGAAP_DepExp_2013'!O26+((C26*1)/D26)) -> 783.1873333 | G26: 3480.96 | H26: -2697.772667 | I26: 374.0173333 | K26: =IF(ISERROR(+I26+'App.2-CG_NewCGAAP_DepExp_2013'!O26-J26), 0, +I26+'App.2-CG_NewCGAAP_DepExp_2013'!O26-J26) -> 783.1873333
A27: 1808 | B27: Operation Centre - Workshop | C27: 0 | D27: 50 | E27: 0.02 | F27: =IF(D27=0,+'App.2-CG_NewCGAAP_DepExp_2013'!O27,+'App.2-CG_NewCGAAP_DepExp_2013'!O27+((C27*1)/D27)) -> 149.9847844 | G27: 150 | H27: -0.01521555368 | I27: 0 | K27: =IF(ISERROR(+I27+'App.2-CG_NewCGAAP_DepExp_2013'!O27-J27), 0, +I27+'App.2-CG_NewCGAAP_DepExp_2013'!O27-J27) -> 149.9847844
A28: 1810 | B28: Leasehold Improvements | E28: 0 | F28: =IF(D28=0,+'App.2-CG_NewCGAAP_DepExp_2013'!O28,+'App.2-CG_NewCGAAP_DepExp_2013'!O28+((C28*1)/D28)) -> 0 | H28: 0 | I28: 0 | K28: =IF(ISERROR(+I28+'App.2-CG_NewCGAAP_DepExp_2013'!O28-J28), 0, +I28+'App.2-CG_NewCGAAP_DepExp_2013'!O28-J28) -> 0
A29: 1815 | B29: Transformer Station Equipment >50 kV | C29: 19469.22 | D29: 30 | E29: 0.03333333333 | F29: =IF(D29=0,+'App.2-CG_NewCGAAP_DepExp_2013'!O29,+'App.2-CG_NewCGAAP_DepExp_2013'!O29+((C29*1)/D29)) -> 763707.4522 | G29: 763676.34 | H29: 31.11224747 | I29: 648.974 | J29: 3280.74 | K29: =IF(ISERROR(+I29+'App.2-CG_NewCGAAP_DepExp_2013'!O29-J29), 0, +I29+'App.2-CG_NewCGAAP_DepExp_2013'!O29-J29) -> 760426.7122
A30: 1815 | B30: TSE Auxiliary equipment | C30: 66703.09 | D30: 30 | E30: =IF(D30=0,0,1/D30) -> 0.03333333333 | F30: =IF(D30=0,+'App.2-CG_NewCGAAP_DepExp_2013'!O30,+'App.2-CG_NewCGAAP_DepExp_2013'!O30+((C30*1)/D30)) -> 59036.3948 | G30: 59034.96 | H30: =IF(ISERROR(+F30-G30), 0, +F30-G30) -> 1.43479734 | I30: =IF(D30=0,0,+(C30)/D30) -> 2223.436333 | K30: =IF(ISERROR(+I30+'App.2-CG_NewCGAAP_DepExp_2013'!O30-J30), 0, +I30+'App.2-CG_NewCGAAP_DepExp_2013'!O30-J30) -> 59036.3948
A31: 1815 | B31: TSE - P&C equipment | C31: 108135.38 | D31: 15 | E31: 0.06666666667 | F31: =IF(D31=0,+'App.2-CG_NewCGAAP_DepExp_2013'!O31,+'App.2-CG_NewCGAAP_DepExp_2013'!O31+((C31*1)/D31)) -> 232558.2669 | G31: 232557.76 | H31: 0.5069334519 | I31: 7209.025333 | J31: 5500.36 | K31: =IF(ISERROR(+I31+'App.2-CG_NewCGAAP_DepExp_2013'!O31-J31), 0, +I31+'App.2-CG_NewCGAAP_DepExp_2013'!O31-J31) -> 227057.9069
A32: 1815 | B32: TSE - Power transformer | D32: 50 | E32: 0.02 | F32: =IF(D32=0,+'App.2-CG_NewCGAAP_DepExp_2013'!O32,+'App.2-CG_NewCGAAP_DepExp_2013'!O32+((C32*1)/D32)) -> 243696.1672 | G32: 243695.64 | H32: 0.527213203 | I32: 0 | K32: =IF(ISERROR(+I32+'App.2-CG_NewCGAAP_DepExp_2013'!O32-J32), 0, +I32+'App.2-CG_NewCGAAP_DepExp_2013'!O32-J32) -> 243696.1672
A33: 1820 | B33: Distribution Station Equipment <50 kV | C33: 160849.64 | D33: 30 | E33: 0.03333333333 | F33: =IF(D33=0,+'App.2-CG_NewCGAAP_DepExp_2013'!O33,+'App.2-CG_NewCGAAP_DepExp_2013'!O33+((C33*1)/D33)) -> 100734.6675 | G33: 106255.91 | H33: -5521.242524 | I33: 5361.654667 | J33: 13133.63 | K33: =IF(ISERROR(+I33+'App.2-CG_NewCGAAP_DepExp_2013'!O33-J33), 0, +I33+'App.2-CG_NewCGAAP_DepExp_2013'!O33-J33) -> 87601.03748
A34: 1820 | B34: Meters Wholesale | C34: =199033 -> 199033 | D34: 15 | E34: =IF(D34=0,0,1/D34) -> 0.06666666667 | F34: =IF(D34=0,+'App.2-CG_NewCGAAP_DepExp_2013'!O34,+'App.2-CG_NewCGAAP_DepExp_2013'!O34+((C34*1)/D34)) -> 68987.9 | G34: 59438.45 | H34: =IF(ISERROR(+F34-G34), 0, +F34-G34) -> 9549.45 | I34: =IF(D34=0,0,+(C34)/D34) -> 13268.86667 | J34: 16738.45 | K34: =IF(ISERROR(+I34+'App.2-CG_NewCGAAP_DepExp_2013'!O34-J34), 0, +I34+'App.2-CG_NewCGAAP_DepExp_2013'!O34-J34) -> 52249.45 | M34: =+L34/15 -> 0
A35: 1825 | B35: Storage Battery Equipment | E35: 0 | F35: =IF(D35=0,+'App.2-CG_NewCGAAP_DepExp_2013'!O35,+'App.2-CG_NewCGAAP_DepExp_2013'!O35+((C35*0.5)/D35)) -> 0 | H35: 0 | I35: 0 | K35: =IF(ISERROR(+I35+'App.2-CG_NewCGAAP_DepExp_2013'!O35-J35), 0, +I35+'App.2-CG_NewCGAAP_DepExp_2013'!O35-J35) -> 0
A36: 1830 | B36: Poles, Towers & Fixtures | C36: 4965069.21 | D36: 45 | E36: 0.02222222222 | F36: =IF(D36=0,+'App.2-CG_NewCGAAP_DepExp_2013'!O36,+'App.2-CG_NewCGAAP_DepExp_2013'!O36+((C36*1)/D36)) -> 1056867.196 | G36: 1056871.111 | H36: -3.914896516 | I36: 110334.8713 | K36: =IF(ISERROR(+I36+'App.2-CG_NewCGAAP_DepExp_2013'!O36-J36), 0, +I36+'App.2-CG_NewCGAAP_DepExp_2013'!O36-J36) -> 1056867.196
A37: 1835 | B37: Overhead Conductors & Devices | C37: 2865461.09 | D37: 45 | E37: 0.02222222222 | F37: =IF(D37=0,+'App.2-CG_NewCGAAP_DepExp_2013'!O37,+'App.2-CG_NewCGAAP_DepExp_2013'!O37+((C37*1)/D37)) -> 605069.93 | G37: 605069.93 | H37: 0 | I37: 63676.91311 | K37: =IF(ISERROR(+I37+'App.2-CG_NewCGAAP_DepExp_2013'!O37-J37), 0, +I37+'App.2-CG_NewCGAAP_DepExp_2013'!O37-J37) -> 605069.93
A38: 1835 | B38: OH Manual line switches | C38: 324177.03 | D38: 30 | E38: =IF(D38=0,0,1/D38) -> 0.03333333333 | F38: =IF(D38=0,+'App.2-CG_NewCGAAP_DepExp_2013'!O38,+'App.2-CG_NewCGAAP_DepExp_2013'!O38+((C38*1)/D38)) -> 23225.91733 | G38: 23225.91733 | H38: =IF(ISERROR(+F38-G38), 0, +F38-G38) -> 0 | I38: =IF(D38=0,0,+(C38)/D38) -> 10805.901 | K38: =IF(ISERROR(+I38+'App.2-CG_NewCGAAP_DepExp_2013'!O38-J38), 0, +I38+'App.2-CG_NewCGAAP_DepExp_2013'!O38-J38) -> 23225.91733
A39: 1835 | B39: OH SCADA control equipment | C39: 862848.27 | D39: 15 | E39: 0.06666666667 | F39: =IF(D39=0,+'App.2-CG_NewCGAAP_DepExp_2013'!O39,+'App.2-CG_NewCGAAP_DepExp_2013'!O39+((C39*1)/D39)) -> 83493.93333 | G39: 83488 | H39: 5.933333333 | I39: 57523.218 | K39: =IF(ISERROR(+I39+'App.2-CG_NewCGAAP_DepExp_2013'!O39-J39), 0, +I39+'App.2-CG_NewCGAAP_DepExp_2013'!O39-J39) -> 83493.93333
A40: 1840 | B40: Underground Conduit | C40: 949493.25 | D40: 50 | E40: 0.02 | F40: =IF(D40=0,+'App.2-CG_NewCGAAP_DepExp_2013'!O40,+'App.2-CG_NewCGAAP_DepExp_2013'!O40+((C40*1)/D40)) -> 224670.225 | G40: 224523.835 | H40: 146.3900339 | I40: 18989.865 | K40: =IF(ISERROR(+I40+'App.2-CG_NewCGAAP_DepExp_2013'!O40-J40), 0, +I40+'App.2-CG_NewCGAAP_DepExp_2013'!O40-J40) -> 224670.225
A41: 1845 | B41: Underground Conductors & Devices | C41: 1715848.97 | D41: 35 | E41: 0.02857142857 | F41: =IF(D41=0,+'App.2-CG_NewCGAAP_DepExp_2013'!O41,+'App.2-CG_NewCGAAP_DepExp_2013'!O41+((C41*1)/D41)) -> 809728.1716 | G41: 809521.9363 | H41: 206.2352873 | I41: 49024.25629 | J41: 9721.82 | K41: =IF(ISERROR(+I41+'App.2-CG_NewCGAAP_DepExp_2013'!O41-J41), 0, +I41+'App.2-CG_NewCGAAP_DepExp_2013'!O41-J41) -> 800006.3516
A42: 1850 | B42: Line Transformers - Overhead | C42: 1720415.45 | D42: 45 | E42: 0.02222222222 | F42: =IF(D42=0,+'App.2-CG_NewCGAAP_DepExp_2013'!O42,+'App.2-CG_NewCGAAP_DepExp_2013'!O42+((C42*1)/D42)) -> 388920.1385 | G42: 387974.88 | H42: 945.2584675 | I42: 38231.45444 | K42: =IF(ISERROR(+I42+'App.2-CG_NewCGAAP_DepExp_2013'!O42-J42), 0, +I42+'App.2-CG_NewCGAAP_DepExp_2013'!O42-J42) -> 388920.1385
A43: 1850 | B43: Line Transformers - Underground | C43: 1240237.93 | D43: 35 | E43: =IF(D43=0,0,1/D43) -> 0.02857142857 | F43: =IF(D43=0,+'App.2-CG_NewCGAAP_DepExp_2013'!O43,+'App.2-CG_NewCGAAP_DepExp_2013'!O43+((C43*1)/D43)) -> 617891.3527 | G43: 617323.2 | H43: =IF(ISERROR(+F43-G43), 0, +F43-G43) -> 568.1526634 | I43: =IF(D43=0,0,+(C43)/D43) -> 35435.36943 | K43: =IF(ISERROR(+I43+'App.2-CG_NewCGAAP_DepExp_2013'!O43-J43), 0, +I43+'App.2-CG_NewCGAAP_DepExp_2013'!O43-J43) -> 617891.3527
A44: 1855 | B44: Services - Overhead | C44: 467100.35 | D44: 45 | E44: 0.02222222222 | F44: =IF(D44=0,+'App.2-CG_NewCGAAP_DepExp_2013'!O44,+'App.2-CG_NewCGAAP_DepExp_2013'!O44+((C44*1)/D44)) -> 128520.2598 | G44: 128520.24 | H44: 0.01979164658 | I44: 10380.00778 | K44: =IF(ISERROR(+I44+'App.2-CG_NewCGAAP_DepExp_2013'!O44-J44), 0, +I44+'App.2-CG_NewCGAAP_DepExp_2013'!O44-J44) -> 128520.2598
A45: 1855 | B45: Services - Underground | C45: 819156.09 | D45: 50 | E45: =IF(D45=0,0,1/D45) -> 0.02 | F45: =IF(D45=0,+'App.2-CG_NewCGAAP_DepExp_2013'!O45,+'App.2-CG_NewCGAAP_DepExp_2013'!O45+((C45*1)/D45)) -> 203071.5017 | G45: 203068.92 | H45: =IF(ISERROR(+F45-G45), 0, +F45-G45) -> 2.581679854 | I45: =IF(D45=0,0,+(C45)/D45) -> 16383.1218 | K45: =IF(ISERROR(+I45+'App.2-CG_NewCGAAP_DepExp_2013'!O45-J45), 0, +I45+'App.2-CG_NewCGAAP_DepExp_2013'!O45-J45) -> 203071.5017
A46: 1860 | B46: Meters - Bi'directional | D46: 25 | E46: 0.04 | F46: =IF(D46=0,+'App.2-CG_NewCGAAP_DepExp_2013'!O46,+'App.2-CG_NewCGAAP_DepExp_2013'!O46+((C46*1)/D46)) -> 1435.920575 | G46: 1435.92 | H46: 0.0005745308424 | I46: 0 | K46: =IF(ISERROR(+I46+'App.2-CG_NewCGAAP_DepExp_2013'!O46-J46), 0, +I46+'App.2-CG_NewCGAAP_DepExp_2013'!O46-J46) -> 1435.920575
A47: 1860 | B47: Meters - Commercial | D47: 25 | E47: =IF(D47=0,0,1/D47) -> 0.04 | F47: =IF(D47=0,+'App.2-CG_NewCGAAP_DepExp_2013'!O47,+'App.2-CG_NewCGAAP_DepExp_2013'!O47+((C47*1)/D47)) -> 84370.82042 | G47: 84370.82042 | H47: =IF(ISERROR(+F47-G47), 0, +F47-G47) -> -1.018634066e-10 | I47: =IF(D47=0,0,+(C47)/D47) -> 0 | K47: =IF(ISERROR(+I47+'App.2-CG_NewCGAAP_DepExp_2013'!O47-J47), 0, +I47+'App.2-CG_NewCGAAP_DepExp_2013'!O47-J47) -> 84370.82042
A48: 1860 | B48: Meters - Residential | D48: 25 | E48: 0.04 | F48: =IF(D48=0,+'App.2-CG_NewCGAAP_DepExp_2013'!O48,+'App.2-CG_NewCGAAP_DepExp_2013'!O48+((C48*1)/D48))-L48 -> -96288.33431 | G48: -88195.84648 | H48: -8092.48783 | I48: 0 | K48: =IF(ISERROR(+I48+'App.2-CG_NewCGAAP_DepExp_2013'!O48-J48), 0, +I48+'App.2-CG_NewCGAAP_DepExp_2013'!O48-J48) -> 63314.68086 | L48: 159603.0152
A49: 1860 | B49: Meters C& I | C49: 370695.34 | D49: 15 | E49: 0.06666666667 | F49: =IF(D49=0,+'App.2-CG_NewCGAAP_DepExp_2013'!O49,+'App.2-CG_NewCGAAP_DepExp_2013'!O49+((C49*1)/D49)) -> 78594.51 | G49: 79773.17667 | H49: -1178.666667 | I49: 24713.02267 | K49: =IF(ISERROR(+I49+'App.2-CG_NewCGAAP_DepExp_2013'!O49-J49), 0, +I49+'App.2-CG_NewCGAAP_DepExp_2013'!O49-J49) -> 78594.51 | L49: Stranded Meter
A50: 1860 | B50: Meters (Smart Meters) | D50: 15 | E50: 0.06666666667 | F50: =IF(D50=0,+'App.2-CG_NewCGAAP_DepExp_2013'!O50,+'App.2-CG_NewCGAAP_DepExp_2013'!O50+((C50*1)/D50)) -> 541656.2932 | G50: 541562.6621 | H50: 93.63116564 | I50: 0 | K50: =IF(ISERROR(+I50+'App.2-CG_NewCGAAP_DepExp_2013'!O50-J50), 0, +I50+'App.2-CG_NewCGAAP_DepExp_2013'!O50-J50) -> 541656.2932 | L50: Adjustment
A51: 1905 | B51: Land | E51: 0 | F51: =IF(D51=0,+'App.2-CG_NewCGAAP_DepExp_2013'!O51,+'App.2-CG_NewCGAAP_DepExp_2013'!O51+((C51*1)/D51)) -> 0 | H51: 0 | I51: 0 | K51: =IF(ISERROR(+I51+'App.2-CG_NewCGAAP_DepExp_2013'!O51-J51), 0, +I51+'App.2-CG_NewCGAAP_DepExp_2013'!O51-J51) -> 0
A52: 1908 | B52: Buildings & Fixtures | E52: 0 | F52: =IF(D52=0,+'App.2-CG_NewCGAAP_DepExp_2013'!O52,+'App.2-CG_NewCGAAP_DepExp_2013'!O52+((C52*1)/D52)) -> 0 | H52: 0 | I52: 0 | K52: =IF(ISERROR(+I52+'App.2-CG_NewCGAAP_DepExp_2013'!O52-J52), 0, +I52+'App.2-CG_NewCGAAP_DepExp_2013'!O52-J52) -> 0
A53: 1910 | B53: Leasehold Improvements | E53: 0 | F53: =IF(D53=0,+'App.2-CG_NewCGAAP_DepExp_2013'!O53,+'App.2-CG_NewCGAAP_DepExp_2013'!O53+((C53*1)/D53)) -> 0 | H53: 0 | I53: 0 | K53: =IF(ISERROR(+I53+'App.2-CG_NewCGAAP_DepExp_2013'!O53-J53), 0, +I53+'App.2-CG_NewCGAAP_DepExp_2013'!O53-J53) -> 0
A54: 1915 | B54: Office Furniture & Equipment (10 years) | C54: 22322.39 | D54: 10 | E54: 0.1 | F54: =IF(D54=0,+'App.2-CG_NewCGAAP_DepExp_2013'!O54,+'App.2-CG_NewCGAAP_DepExp_2013'!O54+((C54*1)/D54)) -> 105658.3185 | G54: 105658.3185 | H54: 0 | I54: 2232.239 | K54: =IF(ISERROR(+I54+'App.2-CG_NewCGAAP_DepExp_2013'!O54-J54), 0, +I54+'App.2-CG_NewCGAAP_DepExp_2013'!O54-J54) -> 105658.3185
A55: 1915 | B55: Office Furniture & Equipment (5 years) | D55: 5 | E55: 0.2 | F55: =IF(D55=0,+'App.2-CG_NewCGAAP_DepExp_2013'!O55,+'App.2-CG_NewCGAAP_DepExp_2013'!O55+((C55*1)/D55)) -> 3501.855 | G55: 3501.855 | H55: 0 | I55: 0 | J55: 3501.87 | K55: =IF(ISERROR(+I55+'App.2-CG_NewCGAAP_DepExp_2013'!O55-J55), 0, +I55+'App.2-CG_NewCGAAP_DepExp_2013'!O55-J55) -> -0.015
A56: 1920 | B56: Computer Equipment - Hardware | E56: 0 | F56: =IF(D56=0,+'App.2-CG_NewCGAAP_DepExp_2013'!O56,+'App.2-CG_NewCGAAP_DepExp_2013'!O56+((C56*1)/D56)) -> 0 | H56: 0 | I56: 0 | K56: =IF(ISERROR(+I56+'App.2-CG_NewCGAAP_DepExp_2013'!O56-J56), 0, +I56+'App.2-CG_NewCGAAP_DepExp_2013'!O56-J56) -> 0
A57: 1920 | B57: Computer Equip.-Hardware(Post Mar. 22/04) | E57: 0 | F57: =IF(D57=0,+'App.2-CG_NewCGAAP_DepExp_2013'!O57,+'App.2-CG_NewCGAAP_DepExp_2013'!O57+((C57*1)/D57)) -> 0 | H57: 0 | I57: 0 | K57: =IF(ISERROR(+I57+'App.2-CG_NewCGAAP_DepExp_2013'!O57-J57), 0, +I57+'App.2-CG_NewCGAAP_DepExp_2013'!O57-J57) -> 0
A58: 1920 | B58: Computer Equip.-Hardware(Post Mar. 19/07) | C58: 127190.92 | D58: 5 | E58: 0.2 | F58: =IF(D58=0,+'App.2-CG_NewCGAAP_DepExp_2013'!O58,+'App.2-CG_NewCGAAP_DepExp_2013'!O58+((C58*1)/D58)) -> 173608.7168 | G58: 178627.424 | H58: -5018.707215 | I58: 25438.184 | J58: 19001.1 | K58: =IF(ISERROR(+I58+'App.2-CG_NewCGAAP_DepExp_2013'!O58-J58), 0, +I58+'App.2-CG_NewCGAAP_DepExp_2013'!O58-J58) -> 154607.6168
A59: 1930 | B59: Transportation Equipment - car | C59: 0 | D59: 5 | E59: 0.2 | F59: =IF(D59=0,+'App.2-CG_NewCGAAP_DepExp_2013'!O59,+'App.2-CG_NewCGAAP_DepExp_2013'!O59+((C59*1)/D59)) -> 7432.345 | G59: 7432.32 | H59: 0.025 | I59: 0 | K59: =IF(ISERROR(+I59+'App.2-CG_NewCGAAP_DepExp_2013'!O59-J59), 0, +I59+'App.2-CG_NewCGAAP_DepExp_2013'!O59-J59) -> 7432.345
A60: 1930 | B60: Transportation Equipment - Other - trailers etc | C60: 3474.72 | D60: 15 | E60: =IF(D60=0,0,1/D60) -> 0.06666666667 | F60: =IF(D60=0,+'App.2-CG_NewCGAAP_DepExp_2013'!O60,+'App.2-CG_NewCGAAP_DepExp_2013'!O60+((C60*1)/D60)) -> 35829.69841 | G60: 35870.52 | H60: =IF(ISERROR(+F60-G60), 0, +F60-G60) -> -40.82158922 | I60: =IF(D60=0,0,+(C60)/D60) -> 231.648 | K60: =IF(ISERROR(+I60+'App.2-CG_NewCGAAP_DepExp_2013'!O60-J60), 0, +I60+'App.2-CG_NewCGAAP_DepExp_2013'!O60-J60) -> 35829.69841
A61: 1930 | B61: Transportation Equipment - small trucks | C61: 61584.99 | D61: 8 | E61: 0.125 | F61: =IF(D61=0,+'App.2-CG_NewCGAAP_DepExp_2013'!O61,+'App.2-CG_NewCGAAP_DepExp_2013'!O61+((C61*1)/D61)) -> 115279.3237 | G61: 118458.72 | H61: -3179.39625 | I61: 7698.12375 | K61: =IF(ISERROR(+I61+'App.2-CG_NewCGAAP_DepExp_2013'!O61-J61), 0, +I61+'App.2-CG_NewCGAAP_DepExp_2013'!O61-J61) -> 115279.3237
A62: 1930 | B62: Transportation Equipment - workplatform | C62: 879837.6 | D62: 12 | E62: 0.08333333333 | F62: =IF(D62=0,+'App.2-CG_NewCGAAP_DepExp_2013'!O62,+'App.2-CG_NewCGAAP_DepExp_2013'!O62+((C62*1)/D62)) -> 263426.7999 | G62: 262220.28 | H62: 1206.519895 | I62: 73319.8 | K62: =IF(ISERROR(+I62+'App.2-CG_NewCGAAP_DepExp_2013'!O62-J62), 0, +I62+'App.2-CG_NewCGAAP_DepExp_2013'!O62-J62) -> 263426.7999
A63: 1930 | B63: Transportation Equipmnet - Hybrid system | C63: 88000 | D63: 5 | E63: 0.2 | F63: =IF(D63=0,+'App.2-CG_NewCGAAP_DepExp_2013'!O63,+'App.2-CG_NewCGAAP_DepExp_2013'!O63+((C63*1)/D63))-L63 -> 52941.474 | G63: 60231.4 | H63: -7289.926 | I63: 17600 | K63: =IF(ISERROR(+I63+'App.2-CG_NewCGAAP_DepExp_2013'!O63-J63), 0, +I63+'App.2-CG_NewCGAAP_DepExp_2013'!O63-J63)-L63 -> 52941.474 | L63: -7124.32
A64: 1935 | B64: Stores Equipment | D64: 10 | E64: =IF(D64=0,0,1/D64) -> 0.1 | F64: =IF(D64=0,+'App.2-CG_NewCGAAP_DepExp_2013'!O64,+'App.2-CG_NewCGAAP_DepExp_2013'!O64+((C64*1)/D64)) -> 46944.63533 | G64: 46941.72 | H64: =IF(ISERROR(+F64-G64), 0, +F64-G64) -> 2.915325203 | I64: =IF(D64=0,0,+(C64)/D64) -> 0 | K64: =IF(ISERROR(+I64+'App.2-CG_NewCGAAP_DepExp_2013'!O64-J64), 0, +I64+'App.2-CG_NewCGAAP_DepExp_2013'!O64-J64) -> 46944.63533 | L64: Adjust due to
A65: 1940 | B65: Tools, Shop & Garage Equipment | C65: 3243.75 | D65: 8 | E65: 0.125 | F65: =IF(D65=0,+'App.2-CG_NewCGAAP_DepExp_2013'!O65,+'App.2-CG_NewCGAAP_DepExp_2013'!O65+((C65*1)/D65)) -> 33940.82763 | G65: 33940.32 | H65: 0.5076329946 | I65: 405.46875 | K65: =IF(ISERROR(+I65+'App.2-CG_NewCGAAP_DepExp_2013'!O65-J65), 0, +I65+'App.2-CG_NewCGAAP_DepExp_2013'!O65-J65) -> 33940.82763 | L65: transfer
A66: 1940 | B66: Truck tools | C66: 113417.69 | D66: 5 | E66: =IF(D66=0,0,1/D66) -> 0.2 | F66: =IF(D66=0,+'App.2-CG_NewCGAAP_DepExp_2013'!O66,+'App.2-CG_NewCGAAP_DepExp_2013'!O66+((C66*1)/D66)) -> 109956.8677 | G66: 109949.51 | H66: =IF(ISERROR(+F66-G66), 0, +F66-G66) -> 7.357664796 | I66: =IF(D66=0,0,+(C66)/D66) -> 22683.538 | J66: 44855.99 | K66: =IF(ISERROR(+I66+'App.2-CG_NewCGAAP_DepExp_2013'!O66-J66), 0, +I66+'App.2-CG_NewCGAAP_DepExp_2013'!O66-J66) -> 65100.87766 | L66: between assets
A67: 1945 | B67: Measurement & Testing Equipment | C67: 36196.96 | D67: 7 | E67: 0.1428571429 | F67: =IF(D67=0,+'App.2-CG_NewCGAAP_DepExp_2013'!O67,+'App.2-CG_NewCGAAP_DepExp_2013'!O67+((C67*0.5)/D67)) -> 49985.34294 | G67: 52571.17 | H67: -2585.827056 | I67: 5170.994286 | J67: 3516.37 | K67: =IF(ISERROR(+I67+'App.2-CG_NewCGAAP_DepExp_2013'!O67-J67), 0, +I67+'App.2-CG_NewCGAAP_DepExp_2013'!O67-J67) -> 49054.47009
A68: 1950 | B68: Power Operated Equipment | E68: 0 | F68: =IF(D68=0,+'App.2-CG_NewCGAAP_DepExp_2013'!O68,+'App.2-CG_NewCGAAP_DepExp_2013'!O68+((C68*1)/D68)) -> 0 | H68: 0 | I68: 0 | K68: =IF(ISERROR(+I68+'App.2-CG_NewCGAAP_DepExp_2013'!O68-J68), 0, +I68+'App.2-CG_NewCGAAP_DepExp_2013'!O68-J68) -> 0
A69: 1955 | B69: Communications Equipment - phones | C69: 19273.64 | D69: 10 | E69: 0.1 | F69: =IF(D69=0,+'App.2-CG_NewCGAAP_DepExp_2013'!O69,+'App.2-CG_NewCGAAP_DepExp_2013'!O69+((C69*1)/D69)) -> 48730.49223 | G69: 48728.28 | H69: 2.212233546 | I69: 1927.364 | K69: =IF(ISERROR(+I69+'App.2-CG_NewCGAAP_DepExp_2013'!O69-J69), 0, +I69+'App.2-CG_NewCGAAP_DepExp_2013'!O69-J69) -> 48730.49223
A70: 1955 | B70: Communications Equipment - Radio wireless | D70: 8 | E70: =IF(D70=0,0,1/D70) -> 0.125 | F70: =IF(D70=0,+'App.2-CG_NewCGAAP_DepExp_2013'!O70,+'App.2-CG_NewCGAAP_DepExp_2013'!O70+((C70*1)/D70)) -> 25038.62312 | G70: 25038 | H70: =IF(ISERROR(+F70-G70), 0, +F70-G70) -> 0.6231154177 | I70: =IF(D70=0,0,+(C70)/D70) -> 0 | K70: =IF(ISERROR(+I70+'App.2-CG_NewCGAAP_DepExp_2013'!O70-J70), 0, +I70+'App.2-CG_NewCGAAP_DepExp_2013'!O70-J70) -> 25038.62312
A71: 1955 | B71: Communications Equipment - Radio | D71: 10 | E71: 0.1 | F71: =IF(D71=0,+'App.2-CG_NewCGAAP_DepExp_2013'!O71,+'App.2-CG_NewCGAAP_DepExp_2013'!O71+((C71*1)/D71)) -> 17619.03249 | G71: 17619.96 | H71: -0.9275090253 | I71: 0 | K71: =IF(ISERROR(+I71+'App.2-CG_NewCGAAP_DepExp_2013'!O71-J71), 0, +I71+'App.2-CG_NewCGAAP_DepExp_2013'!O71-J71) -> 17619.03249
A72: 1955 | B72: Communication Equipment (Smart Meters) | E72: 0 | F72: =IF(D72=0,+'App.2-CG_NewCGAAP_DepExp_2013'!O72,+'App.2-CG_NewCGAAP_DepExp_2013'!O72+((C72*1)/D72)) -> 0 | H72: 0 | I72: 0 | K72: =IF(ISERROR(+I72+'App.2-CG_NewCGAAP_DepExp_2013'!O72-J72), 0, +I72+'App.2-CG_NewCGAAP_DepExp_2013'!O72-J72) -> 0
A73: 1960 | B73: Miscellaneous Equipment | C73: =35224.04-1 -> 35223.04 | D73: 10 | E73: 0.1 | F73: =IF(D73=0,+'App.2-CG_NewCGAAP_DepExp_2013'!O73,+'App.2-CG_NewCGAAP_DepExp_2013'!O73+((C73*1)/D73)) -> 241525.1883 | G73: 241511.394 | H73: 13.794327 | I73: 3522.304 | J73: 2752.67 | K73: =IF(ISERROR(+I73+'App.2-CG_NewCGAAP_DepExp_2013'!O73-J73), 0, +I73+'App.2-CG_NewCGAAP_DepExp_2013'!O73-J73) -> 238772.5183
A74: 1970 | B74: Load Management Controls - Customer Premises | E74: 0 | F74: =IF(D74=0,+'App.2-CG_NewCGAAP_DepExp_2013'!O74,+'App.2-CG_NewCGAAP_DepExp_2013'!O74+((C74*1)/D74)) -> 0 | H74: 0 | I74: 0 | K74: =IF(ISERROR(+I74+'App.2-CG_NewCGAAP_DepExp_2013'!O74-J74), 0, +I74+'App.2-CG_NewCGAAP_DepExp_2013'!O74-J74) -> 0
A75: 1975 | B75: Load Management Controls Utility Premises | E75: 0 | F75: =IF(D75=0,+'App.2-CG_NewCGAAP_DepExp_2013'!O75,+'App.2-CG_NewCGAAP_DepExp_2013'!O75+((C75*1)/D75)) -> 0 | H75: 0 | I75: 0 | K75: =IF(ISERROR(+I75+'App.2-CG_NewCGAAP_DepExp_2013'!O75-J75), 0, +I75+'App.2-CG_NewCGAAP_DepExp_2013'!O75-J75) -> 0
A76: 1980 | B76: System Supervisor Equipment | C76: 261141.42 | D76: 15 | E76: 0.06666666667 | F76: =IF(D76=0,+'App.2-CG_NewCGAAP_DepExp_2013'!O76,+'App.2-CG_NewCGAAP_DepExp_2013'!O76+((C76*1)/D76)) -> 192390.432 | G76: 192294.798 | H76: 95.63401485 | I76: 17409.428 | J76: 79.28 | K76: =IF(ISERROR(+I76+'App.2-CG_NewCGAAP_DepExp_2013'!O76-J76), 0, +I76+'App.2-CG_NewCGAAP_DepExp_2013'!O76-J76) -> 192311.152
A77: 1985 | B77: Miscellaneous Fixed Assets | E77: 0 | F77: =IF(D77=0,+'App.2-CG_NewCGAAP_DepExp_2013'!O77,+'App.2-CG_NewCGAAP_DepExp_2013'!O77+((C77*1)/D77)) -> 0 | H77: 0 | I77: 0 | K77: =IF(ISERROR(+I77+'App.2-CG_NewCGAAP_DepExp_2013'!O77-J77), 0, +I77+'App.2-CG_NewCGAAP_DepExp_2013'!O77-J77) -> 0
A78: 1990 | B78: Other Tangible Property | E78: 0 | F78: =IF(D78=0,+'App.2-CG_NewCGAAP_DepExp_2013'!O78,+'App.2-CG_NewCGAAP_DepExp_2013'!O78+((C78*1)/D78)) -> 0 | H78: 0 | I78: 0 | K78: =IF(ISERROR(+I78+'App.2-CG_NewCGAAP_DepExp_2013'!O78-J78), 0, +I78+'App.2-CG_NewCGAAP_DepExp_2013'!O78-J78) -> 0
C79: -1593243.81 | E79: 0 | F79: =IF(D79=0,+'App.2-CG_NewCGAAP_DepExp_2013'!O79,+'App.2-CG_NewCGAAP_DepExp_2013'!O79+((C79*1)/D79))-39323 -> -780539.2781 | G79: -780539.37 | H79: 0.09185787872 | I79: 0 | J79: -811 | K79: =+F79-+J79 -> -779728.2781
B80: Total | C80: =SUM(C17:C79) -> 18100761.81 | F80: =SUM(F17:F79) -> 8280864.628 | G80: 8297853.336 | H80: -16988.70795 | I80: 729286.3207 | J80: 234501.68 | K80: 8208551.461
B81: Depreciation exp. adj. from gain or loss on the retirement of assets (pool of like assets)
B82: Total Depreciation Expense | F82: =SUM(F80:F81) -> 8280864.628
A84: Notes:
A85: 1 | B85: Board policy of the "half-year" rule - the applicant must ensure that additions in the year attract a half-year depreciation expense in the first year. Deviations from this standard practice must be supported in the application.
A86: 2 | B86: The applicant must provide an explanation of material variances in evidence.
A87: 3 | B87: This column refers to the calculated full year depreciation but excludes the depreciation expense on assets fully depreciated during the year. This column is used for the purpose of calculating depreciation expense in the following year on the next worksheet.
A89: General: | B89: Applicants must provide a breakdown of depreciation and amortization expense in the above format for all relevant accounts. Asset Retirement Obligations (AROs), depreciation and accretion expense should be disclosed separately consistent with the Notes of historical Audited Financial Statements.

Sheet App.2-CI MIFRS_DepExp_2015
G1: File Number: | H1: EB-2015-0108
G2: Exhibit: | H2: 4
G3: Tab:
G4: Schedule: | H4: Table 4-51
G5: Page: | H5: 99
G7: Date: | H7: 2015-05-01
A9: Appendix 2-CQ
A10: Depreciation and Amortization Expense
A11: Assumes the applicant made capitalization and depreciation expense accounting policy changes under CGAAP effective January 1, 2013 and will adopt IFRS for financial reporting purposes effective January 1, 2015.
D13: 2015 | E13: MIFRS
A15: Account | B15: Description | C15: Additions | D15: Years (new additions only) | E15: Depreciation Rate on New Additions | F15: 2015 Depreciation Expense 1 | G15: 2015 Depreciation Expense per Appendix 2-BA Fixed Assets, Column J (l) | H15: Variance 2
C16: (d) | D16: (f) | E16: (g) = 1 / (f) | F16: (h)=2014 Full Year Depreciation + ((d)*1)/(f) | H16: (m) = (h) - (l)
A17: 1611 | B17: Computer Software (Formally known as Account 1925) | C17: 711366 | D17: 5 | E17: =IF(D17=0,0,1/D17) -> 0.2 | F17: =IF(D17=0,'App.2-CH_MIFRS_DepExp_2014'!K17,+'App.2-CH_MIFRS_DepExp_2014'!K17+((C17*1)/D17)) -> 511436.4283 | G17: 508875.144 | H17: =IF(ISERROR(+F17-G17), 0, +F17-G17) -> 2561.284331
A18: 1612 | B18: Land Rights (Formally known as Account 1906) | C18: 43159 | D18: 0 | E18: 0 | F18: =IF(D18=0,'App.2-CH_MIFRS_DepExp_2014'!K18,+'App.2-CH_MIFRS_DepExp_2014'!K18+((C18*1)/D18)) -> 0 | H18: 0
A19: 1805 | B19: Land | E19: 0 | F19: =IF(D19=0,'App.2-CH_MIFRS_DepExp_2014'!K19,+'App.2-CH_MIFRS_DepExp_2014'!K19+((C19*1)/D19)) -> 0 | H19: 0
A20: 1808 | B20: Buildings - MS | D20: 50 | E20: 0.02 | F20: =IF(D20=0,'App.2-CH_MIFRS_DepExp_2014'!K20,+'App.2-CH_MIFRS_DepExp_2014'!K20+((C20*1)/D20)) -> 6898.848069 | G20: 6899.64 | H20: -0.7919310345
A21: 1808 | B21: Buildings - TS | D21: 60 | E21: =IF(D21=0,0,1/D21) -> 0.01666666667 | F21: =IF(D21=0,'App.2-CH_MIFRS_DepExp_2014'!K21,+'App.2-CH_MIFRS_DepExp_2014'!K21+((C21*1)/D21)) -> 71439.58697 | G21: 68261.8035 | H21: =IF(ISERROR(+F21-G21), 0, +F21-G21) -> 3177.783473
A22: 1808 | B22: Buildings & Fixtures - Service Centre | C22: 80500 | D22: 50 | E22: 0.02 | F22: =IF(D22=0,'App.2-CH_MIFRS_DepExp_2014'!K22,+'App.2-CH_MIFRS_DepExp_2014'!K22+((C22*1)/D22)) -> 398739.3998 | G22: 398739.4876 | H22: -0.08777899342
A23: 1808 | B23: Service Centre - Parking Lot & Fence | D23: 25 | E23: 0.04 | F23: =IF(D23=0,'App.2-CH_MIFRS_DepExp_2014'!K23,+'App.2-CH_MIFRS_DepExp_2014'!K23+((C23*1)/D23)) -> 33280.84012 | G23: 33275.6 | H23: 5.24012321
A24: 1808 | B24: Service Centre - HVAC | C24: 58539 | D24: 15 | E24: 0.06666666667 | F24: =IF(D24=0,'App.2-CH_MIFRS_DepExp_2014'!K24,+'App.2-CH_MIFRS_DepExp_2014'!K24+((C24*1)/D24)) -> 296127.1946 | G24: 296126.9287 | H24: 0.2659004337
A25: 1808 | B25: Service Centre - Roof | D25: 20 | E25: 0.05 | F25: =IF(D25=0,'App.2-CH_MIFRS_DepExp_2014'!K25,+'App.2-CH_MIFRS_DepExp_2014'!K25+((C25*1)/D25)) -> 33345.17833 | G25: 33345.24 | H25: -0.06166666667
A26: 1808 | B26: Service Centre - Automation | C26: 15000 | D26: 15 | E26: 0.06666666667 | F26: =IF(D26=0,'App.2-CH_MIFRS_DepExp_2014'!K26,+'App.2-CH_MIFRS_DepExp_2014'!K26+((C26*1)/D26)) -> 1783.187333 | G26: 4481.057333 | H26: -2697.87
A27: 1808 | B27: Operation Centre - Workshop | D27: 50 | E27: 0.02 | F27: =IF(D27=0,'App.2-CH_MIFRS_DepExp_2014'!K27,+'App.2-CH_MIFRS_DepExp_2014'!K27+((C27*1)/D27)) -> 149.9847844 | G27: 150 | H27: -0.01521555368
A28: 1810 | B28: Leasehold Improvements | E28: 0 | F28: =IF(D28=0,'App.2-CH_MIFRS_DepExp_2014'!K28,+'App.2-CH_MIFRS_DepExp_2014'!K28+((C28*0.5)/D28)) -> 0 | H28: 0
A29: 1815 | B29: Transformer Station Equipment >50 kV | D29: 30 | E29: 0.03333333333 | F29: =IF(D29=0,'App.2-CH_MIFRS_DepExp_2014'!K29,+'App.2-CH_MIFRS_DepExp_2014'!K29+((C29*1)/D29)) -> 760426.7122 | G29: 760395.854 | H29: 30.85824747
A30: 1815 | B30: TSE Auxiliary equipment | D30: 30 | E30: =IF(D30=0,0,1/D30) -> 0.03333333333 | F30: =IF(D30=0,'App.2-CH_MIFRS_DepExp_2014'!K30,+'App.2-CH_MIFRS_DepExp_2014'!K30+((C30*1)/D30)) -> 59036.3948 | G30: 59034.91633 | H30: =IF(ISERROR(+F30-G30), 0, +F30-G30) -> 1.478464006
A31: 1815 | B31: TSE - P&C equipment | C31: 321146.56 | D31: 15 | E31: 0.06666666667 | F31: =IF(D31=0,'App.2-CH_MIFRS_DepExp_2014'!K31,+'App.2-CH_MIFRS_DepExp_2014'!K31+((C31*1)/D31)) -> 248467.6776 | G31: 248467.556 | H31: 0.1216001186
A32: 1815 | B32: TSE - Power transformer | C32: 382451 | D32: 50 | E32: 0.02 | F32: =IF(D32=0,'App.2-CH_MIFRS_DepExp_2014'!K32,+'App.2-CH_MIFRS_DepExp_2014'!K32+((C32*1)/D32)) -> 251345.1872 | G32: 251344.66 | H32: 0.527213203
A33: 1820 | B33: Distribution Station Equipment <50 kV | D33: 30 | E33: 0.03333333333 | F33: =IF(D33=0,'App.2-CH_MIFRS_DepExp_2014'!K33,+'App.2-CH_MIFRS_DepExp_2014'!K33+((C33*1)/D33)) -> 87601.03748 | G33: 93123.26633 | H33: -5522.228857
A34: 1820 | B34: Meters Wholesale | D34: 15 | E34: =IF(D34=0,0,1/D34) -> 0.06666666667 | F34: =IF(D34=0,'App.2-CH_MIFRS_DepExp_2014'!K34,+'App.2-CH_MIFRS_DepExp_2014'!K34+((C34*1)/D34)) -> 52249.45 | G34: 42699.6 | H34: =IF(ISERROR(+F34-G34), 0, +F34-G34) -> 9549.85
A35: 1825 | B35: Storage Battery Equipment | E35: 0 | F35: =IF(D35=0,'App.2-CH_MIFRS_DepExp_2014'!K35,+'App.2-CH_MIFRS_DepExp_2014'!K35+((C35*0.5)/D35)) -> 0 | H35: 0
A36: 1830 | B36: Poles, Towers & Fixtures | C36: 3813057.338 | D36: 45 | E36: 0.02222222222 | F36: =IF(D36=0,'App.2-CH_MIFRS_DepExp_2014'!K36,+'App.2-CH_MIFRS_DepExp_2014'!K36+((C36*1)/D36)) -> 1141601.804 | G36: 1141605.479 | H36: -3.674896515
A37: 1835 | B37: Overhead Conductors & Devices | C37: 2318553.301 | D37: 45 | E37: 0.02222222222 | F37: =IF(D37=0,'App.2-CH_MIFRS_DepExp_2014'!K37,+'App.2-CH_MIFRS_DepExp_2014'!K37+((C37*1)/D37)) -> 656593.3367 | G37: 656587.2798 | H37: 6.056935142
A38: 1835 | B38: OH Manual line switches | C38: 123427 | D38: 30 | E38: =IF(D38=0,0,1/D38) -> 0.03333333333 | F38: =IF(D38=0,'App.2-CH_MIFRS_DepExp_2014'!K38,+'App.2-CH_MIFRS_DepExp_2014'!K38+((C38*1)/D38)) -> 27340.15067 | G38: 27340.25433 | H38: =IF(ISERROR(+F38-G38), 0, +F38-G38) -> -0.1036666667
A39: 1835 | B39: OH SCADA control equipment | C39: 1140666 | D39: 15 | E39: 0.06666666667 | F39: =IF(D39=0,'App.2-CH_MIFRS_DepExp_2014'!K39,+'App.2-CH_MIFRS_DepExp_2014'!K39+((C39*1)/D39)) -> 159538.3333 | G39: 159538.378 | H39: -0.04466666665
A40: 1840 | B40: Underground Conduit | C40: 1418703.254 | D40: 50 | E40: 0.02 | F40: =IF(D40=0,'App.2-CH_MIFRS_DepExp_2014'!K40,+'App.2-CH_MIFRS_DepExp_2014'!K40+((C40*1)/D40)) -> 253044.2901 | G40: 252897.9001 | H40: 146.3900339
A41: 1845 | B41: Underground Conductors & Devices | C41: 3989900.358 | D41: 35 | E41: 0.02857142857 | F41: =IF(D41=0,'App.2-CH_MIFRS_DepExp_2014'!K41,+'App.2-CH_MIFRS_DepExp_2014'!K41+((C41*1)/D41)) -> 914003.5047 | G41: 913797.1394 | H41: 206.3652873
A42: 1850 | B42: Line Transformers - Overhead | C42: 2081122.012 | D42: 45 | E42: 0.02222222222 | F42: =IF(D42=0,'App.2-CH_MIFRS_DepExp_2014'!K42,+'App.2-CH_MIFRS_DepExp_2014'!K42+((C42*1)/D42)) -> 435167.2943 | G42: 433615.0203 | H42: 1552.274023
A43: 1850 | B43: Line Transformers - Underground | C43: 1614898.617 | D43: 35 | E43: =IF(D43=0,0,1/D43) -> 0.02857142857 | F43: =IF(D43=0,'App.2-CH_MIFRS_DepExp_2014'!K43,+'App.2-CH_MIFRS_DepExp_2014'!K43+((C43*1)/D43)) -> 664031.3132 | G43: 663463.1599 | H43: =IF(ISERROR(+F43-G43), 0, +F43-G43) -> 568.1532349
A44: 1855 | B44: Services - Overhead | C44: 402533.2986 | D44: 45 | E44: 0.02222222222 | F44: =IF(D44=0,'App.2-CH_MIFRS_DepExp_2014'!K44,+'App.2-CH_MIFRS_DepExp_2014'!K44+((C44*1)/D44)) -> 137465.4442 | G44: 137465.3122 | H44: 0.1320138688
A45: 1855 | B45: Services - Underground | C45: 636054.75 | D45: 50 | E45: =IF(D45=0,0,1/D45) -> 0.02 | F45: =IF(D45=0,'App.2-CH_MIFRS_DepExp_2014'!K45,+'App.2-CH_MIFRS_DepExp_2014'!K45+((C45*1)/D45)) -> 215792.5967 | G45: 215790.2568 | H45: =IF(ISERROR(+F45-G45), 0, +F45-G45) -> 2.339879854
A46: 1860 | B46: Meters - Bi'directional | D46: 25 | E46: 0.04 | F46: =IF(D46=0,'App.2-CH_MIFRS_DepExp_2014'!K46,+'App.2-CH_MIFRS_DepExp_2014'!K46+((C46*1)/D46)) -> 1435.920575 | G46: 1435.92 | H46: 0.0005745308424
A47: 1860 | B47: Meters - Commercial | D47: 25 | E47: =IF(D47=0,0,1/D47) -> 0.04 | F47: =IF(D47=0,'App.2-CH_MIFRS_DepExp_2014'!K47,+'App.2-CH_MIFRS_DepExp_2014'!K47+((C47*1)/D47)) -> 84370.82042 | G47: 75950.26733 | H47: =IF(ISERROR(+F47-G47), 0, +F47-G47) -> 8420.553088
A48: 1860 | B48: Meters - Residential | C48: 220898 | D48: 25 | E48: 0.04 | F48: =IF(D48=0,'App.2-CH_MIFRS_DepExp_2014'!K48,+'App.2-CH_MIFRS_DepExp_2014'!K48+((C48*1)/D48)) -> 72150.60086 | G48: 73005.04533 | H48: -854.4444759
A49: 1860 | B49: Meters C& I | C49: 441164.35 | D49: 15 | E49: 0.06666666667 | F49: =IF(D49=0,'App.2-CH_MIFRS_DepExp_2014'!K49,+'App.2-CH_MIFRS_DepExp_2014'!K49+((C49*1)/D49)) -> 108005.4667 | G49: 142961.76 | H49: -34956.29333
A50: 1860 | B50: Meters (Smart Meters) | D50: 15 | E50: 0.06666666667 | F50: =IF(D50=0,'App.2-CH_MIFRS_DepExp_2014'!K50,+'App.2-CH_MIFRS_DepExp_2014'!K50+((C50*1)/D50)) -> 541656.2932 | G50: 541668.84 | H50: -12.54677732
A51: 1905 | B51: Land | E51: 0 | F51: =IF(D51=0,'App.2-CH_MIFRS_DepExp_2014'!K51,+'App.2-CH_MIFRS_DepExp_2014'!K51+((C51*1)/D51)) -> 0 | H51: 0
A52: 1908 | B52: Buildings & Fixtures | E52: 0 | F52: =IF(D52=0,'App.2-CH_MIFRS_DepExp_2014'!K52,+'App.2-CH_MIFRS_DepExp_2014'!K52+((C52*1)/D52)) -> 0 | H52: 0
A53: 1910 | B53: Leasehold Improvements | E53: 0 | F53: =IF(D53=0,'App.2-CH_MIFRS_DepExp_2014'!K53,+'App.2-CH_MIFRS_DepExp_2014'!K53+((C53*1)/D53)) -> 0 | H53: 0
A54: 1915 | B54: Office Furniture & Equipment (10 years) | C54: 9500 | D54: 10 | E54: 0.1 | F54: =IF(D54=0,'App.2-CH_MIFRS_DepExp_2014'!K54,+'App.2-CH_MIFRS_DepExp_2014'!K54+((C54*1)/D54)) -> 106608.3185 | G54: 106607.239 | H54: 1.079495706
A55: 1915 | B55: Office Furniture & Equipment (5 years) | E55: 0 | F55: =IF(D55=0,'App.2-CH_MIFRS_DepExp_2014'!K55,+'App.2-CH_MIFRS_DepExp_2014'!K55+((C55*1)/D55)) -> -0.015 | H55: -0.015
A56: 1920 | B56: Computer Equipment - Hardware | E56: 0 | F56: =IF(D56=0,'App.2-CH_MIFRS_DepExp_2014'!K56,+'App.2-CH_MIFRS_DepExp_2014'!K56+((C56*1)/D56)) -> 0 | H56: 0
A57: 1920 | B57: Computer Equip.-Hardware(Post Mar. 22/04) | E57: 0 | F57: =IF(D57=0,'App.2-CH_MIFRS_DepExp_2014'!K57,+'App.2-CH_MIFRS_DepExp_2014'!K57+((C57*1)/D57)) -> 0 | H57: 0
A58: 1920 | B58: Computer Equip.-Hardware(Post Mar. 19/07) | C58: 179480 | D58: 5 | E58: 0.2 | F58: =IF(D58=0,'App.2-CH_MIFRS_DepExp_2014'!K58,+'App.2-CH_MIFRS_DepExp_2014'!K58+((C58*1)/D58)) -> 190503.6168 | G58: 195521.894 | H58: -5018.277215
A59: 1930 | B59: Transportation Equipment - car | E59: 0 | F59: =IF(D59=0,'App.2-CH_MIFRS_DepExp_2014'!K59,+'App.2-CH_MIFRS_DepExp_2014'!K59+((C59*1)/D59)) -> 7432.345 | G59: 7432.32 | H59: 0.025
A60: 1930 | B60: Transportation Equipment - Other - trailers etc | E60: 0 | F60: =IF(D60=0,'App.2-CH_MIFRS_DepExp_2014'!K60,+'App.2-CH_MIFRS_DepExp_2014'!K60+((C60*1)/D60)) -> 35829.69841 | G60: 35870.518 | H60: -40.81958922
A61: 1930 | B61: Transportation Equipment - small trucks | C61: 37624 | D61: 8 | E61: 0.125 | F61: =IF(D61=0,'App.2-CH_MIFRS_DepExp_2014'!K61,+'App.2-CH_MIFRS_DepExp_2014'!K61+((C61*1)/D61)) -> 119982.3237 | G61: 123161.7237 | H61: -3179.4
A62: 1930 | B62: Transportation Equipment - workplatform | C62: 874420 | D62: 12 | E62: 0.08333333333 | F62: =IF(D62=0,'App.2-CH_MIFRS_DepExp_2014'!K62,+'App.2-CH_MIFRS_DepExp_2014'!K62+((C62*1)/D62)) -> 336295.1332 | G62: 342212.9273 | H62: -5917.794105
A63: 1930 | B63: Transportation Equipmnet - Hybrid system | E63: 0 | F63: =IF(D63=0,'App.2-CH_MIFRS_DepExp_2014'!K63,+'App.2-CH_MIFRS_DepExp_2014'!K63+((C63*1)/D63)) -> 52941.474 | G63: 60231.48 | H63: -7290.006
A64: 1935 | B64: Stores Equipment | E64: 0 | F64: =IF(D64=0,'App.2-CH_MIFRS_DepExp_2014'!K64,+'App.2-CH_MIFRS_DepExp_2014'!K64+((C64*1)/D64)) -> 46944.63533 | G64: 46941.72 | H64: 2.915325203
A65: 1940 | B65: Tools, Shop & Garage Equipment | C65: 22500 | D65: 8 | E65: 0.125 | F65: =IF(D65=0,'App.2-CH_MIFRS_DepExp_2014'!K65,+'App.2-CH_MIFRS_DepExp_2014'!K65+((C65*1)/D65)) -> 36753.32763 | G65: 36752.81875 | H65: 0.5088829946
A66: 1940 | B66: Truck tools | C66: 80500 | D66: 5 | E66: =IF(D66=0,0,1/D66) -> 0.2 | F66: =IF(D66=0,'App.2-CH_MIFRS_DepExp_2014'!K66,+'App.2-CH_MIFRS_DepExp_2014'!K66+((C66*1)/D66)) -> 81200.87766 | G66: 81193.886 | H66: =IF(ISERROR(+F66-G66), 0, +F66-G66) -> 6.991664795
A67: 1945 | B67: Measurement & Testing Equipment | C67: 14000 | D67: 7 | E67: 0.1428571429 | F67: =IF(D67=0,'App.2-CH_MIFRS_DepExp_2014'!K67,+'App.2-CH_MIFRS_DepExp_2014'!K67+((C67*1)/D67)) -> 51054.47009 | G67: 51054.81429 | H67: -0.3441985678
A68: 1950 | B68: Power Operated Equipment | E68: 0 | F68: =IF(D68=0,'App.2-CH_MIFRS_DepExp_2014'!K68,+'App.2-CH_MIFRS_DepExp_2014'!K68+((C68*1)/D68)) -> 0 | H68: 0
A69: 1955 | B69: Communications Equipment - phones | C69: 14500 | D69: 10 | E69: 0.1 | F69: =IF(D69=0,'App.2-CH_MIFRS_DepExp_2014'!K69,+'App.2-CH_MIFRS_DepExp_2014'!K69+((C69*1)/D69)) -> 50180.49223 | G69: 50177.964 | H69: 2.528233546
A70: 1955 | B70: Communications Equipment - Radio wireless | D70: 8 | E70: =IF(D70=0,0,1/D70) -> 0.125 | F70: =IF(D70=0,'App.2-CH_MIFRS_DepExp_2014'!K70,+'App.2-CH_MIFRS_DepExp_2014'!K70+((C70*1)/D70)) -> 25038.62312 | G70: 25038.6 | H70: =IF(ISERROR(+F70-G70), 0, +F70-G70) -> 0.02311541771
A71: 1955 | B71: Communications Equipment - Radio | D71: 10 | E71: 0.1 | F71: =IF(D71=0,'App.2-CH_MIFRS_DepExp_2014'!K71,+'App.2-CH_MIFRS_DepExp_2014'!K71+((C71*1)/D71)) -> 17619.03249 | G71: 17619.96 | H71: -0.9275090253
A72: 1955 | B72: Communication Equipment (Smart Meters) | D72: 0 | E72: 0 | F72: =IF(D72=0,'App.2-CH_MIFRS_DepExp_2014'!K72,+'App.2-CH_MIFRS_DepExp_2014'!K72+((C72*1)/D72)) -> 0 | H72: 0
A73: 1960 | B73: Miscellaneous Equipment | C73: 31500 | D73: 10 | E73: 0.1 | F73: =IF(D73=0,'App.2-CH_MIFRS_DepExp_2014'!K73,+'App.2-CH_MIFRS_DepExp_2014'!K73+((C73*1)/D73)) -> 241922.5183 | G73: 241909.604 | H73: 12.914327
A74: 1970 | B74: Load Management Controls - Customer Premises | E74: 0 | F74: =IF(D74=0,'App.2-CH_MIFRS_DepExp_2014'!K74,+'App.2-CH_MIFRS_DepExp_2014'!K74+((C74*1)/D74)) -> 0 | H74: 0
A75: 1975 | B75: Load Management Controls Utility Premises | E75: 0 | F75: =IF(D75=0,'App.2-CH_MIFRS_DepExp_2014'!K75,+'App.2-CH_MIFRS_DepExp_2014'!K75+((C75*1)/D75)) -> 0 | H75: 0
A76: 1980 | B76: System Supervisor Equipment | C76: 231447.85 | D76: 15 | E76: 0.06666666667 | F76: =IF(D76=0,'App.2-CH_MIFRS_DepExp_2014'!K76,+'App.2-CH_MIFRS_DepExp_2014'!K76+((C76*1)/D76)) -> 207741.0087 | G76: 207645.6347 | H76: 95.37401485
A77: 1985 | B77: Miscellaneous Fixed Assets | E77: 0 | F77: =IF(D77=0,'App.2-CH_MIFRS_DepExp_2014'!K77,+'App.2-CH_MIFRS_DepExp_2014'!K77+((C77*1)/D77)) -> 0 | H77: 0
A78: 1990 | B78: Other Tangible Property | E78: 0 | F78: =IF(D78=0,'App.2-CH_MIFRS_DepExp_2014'!K78,+'App.2-CH_MIFRS_DepExp_2014'!K78+((C78*1)/D78)) -> 0 | H78: 0
A79: 1995 | B79: Contributions & Grants | C79: -4914818 | E79: 0 | F79: =IF(D79=0,'App.2-CH_MIFRS_DepExp_2014'!K79,+'App.2-CH_MIFRS_DepExp_2014'!K79+((C79*1)/D79))-125577 -> -905305.2781 | G79: -905305.0189 | H79: -0.2591996033
B80: Total | C80: =SUM(C17:C79) -> 16393793.69 | F80: =SUM(F17:F79) -> 8927266.879 | G80: =SUM(G17:G79) -> 8966410.851 | H80: =SUM(H17:H79) -> -39143.9716
B81: Depreciation exp. adj. from gain or loss on the retirement of assets (pool of like assets)
B82: Total Depreciation expense to be included in the test year revenue requirement | F82: =SUM(F80:F81) -> 8927266.879
A83: Notes:
A84: 1 | B84: Board policy of the "half-year" rule - the applicant must ensure that additions in the year attract a half-year depreciation expense in the first year. Deviations from this standard practice must be supported in the application.
A85: 2 | B85: The applicant must provide an explanation of material variances in evidence.
A87: General: | B87: Applicants must provide a breakdown of depreciation and amortization expense in the above format for all relevant accounts. Asset Retirement Obligations (AROs), depreciation and accretion expense should be disclosed separately consistent with the Notes of historical Audited Financial Statements.

Sheet App 2-CI MIFRS_DepExp_2016
G1: File Number: | H1: EB-2015-0108
G2: Exhibit: | H2: 4
G3: Tab:
G4: Schedule: | H4: Table 4-52
G5: Page: | H5: 100
G7: Date: | H7: 2015-05-01
A9: Appendix 2-CQ
A10: Depreciation and Amortization Expense
A11: Assumes the applicant made capitalization and depreciation expense accounting policy changes under CGAAP effective January 1, 2013 and will adopt IFRS for financial reporting purposes effective January 1, 2015.
D13: 2016 | E13: MIFRS
A15: Account | B15: Description | C15: Additions | D15: Years (new additions only) | E15: Depreciation Rate on New Additions | F15: 2015 Depreciation Expense 1 | G15: 2015 Depreciation Expense per Appendix 2-BA Fixed Assets, Column J (l) | H15: Variance 2 | I15: Assets that became Fully Depreciated in 2015 (after depreciation)
C16: (d) | D16: (f) | E16: (g) = 1 / (f) | F16: (h)=2014 Full Year Depreciation + ((d)*.5)/(f) | H16: (m) = (h) - (l)
A17: 1611 | B17: Computer Software (Formally known as Account 1925) | C17: 871760 | D17: 5 | E17: =IF(D17=0,0,1/D17) -> 0.2 | F17: =+'App.2-CI MIFRS_DepExp_2015'!F17-'App 2-CI MIFRS_DepExp_2016'!I17+(C17/D17)*0.5 -> 479510.2283 | G17: 476948.114 | H17: =IF(ISERROR(+F17-G17), 0, +F17-G17) -> 2562.114331 | I17: 119102.2
A18: 1612 | B18: Land Rights (Formally known as Account 1906) | C18: 43259 | D18: 0 | E18: 0 | F18: =IF(D18=0,'App.2-CH_MIFRS_DepExp_2014'!K18,+'App.2-CH_MIFRS_DepExp_2014'!K18+((C18*1)/D18)) -> 0 | H18: 0
A19: 1805 | B19: Land | E19: 0 | F19: =IF(D19=0,'App.2-CH_MIFRS_DepExp_2014'!K19,+'App.2-CH_MIFRS_DepExp_2014'!K19+((C19*1)/D19)) -> 0 | H19: 0
A20: 1808 | B20: Buildings - MS | D20: 50 | E20: 0.02 | F20: =+'App.2-CI MIFRS_DepExp_2015'!F20-'App 2-CI MIFRS_DepExp_2016'!I20+(C20/D20)*0.5 -> 6898.848069 | G20: 6899.64 | H20: -0.7919310345
A21: 1808 | B21: Buildings - TS | D21: 60 | E21: 0.01666666667 | F21: =+'App.2-CI MIFRS_DepExp_2015'!F21-'App 2-CI MIFRS_DepExp_2016'!I21+(C21/D21)*0.5 -> 71439.58697 | G21: 68261.8035 | H21: 3177.783473
A22: 1808 | B22: Buildings & Fixtures - Service Centre | C22: 65000 | D22: 50 | E22: 0.02 | F22: =+'App.2-CI MIFRS_DepExp_2015'!F22-'App 2-CI MIFRS_DepExp_2016'!I22+(C22/D22)*0.5 -> 399389.3998 | G22: 399389.4876 | H22: -0.08777899342
A23: 1808 | B23: Service Centre - Parking Lot & Fence | D23: 25 | E23: 0.04 | F23: =+'App.2-CI MIFRS_DepExp_2015'!F23-'App 2-CI MIFRS_DepExp_2016'!I23+(C23/D23)*0.5 -> 33280.84012 | G23: 33275.6 | H23: 5.24012321
A24: 1808 | B24: Service Centre - HVAC | C24: 63050 | D24: 15 | E24: 0.06666666667 | F24: =+'App.2-CI MIFRS_DepExp_2015'!F24-'App 2-CI MIFRS_DepExp_2016'!I24+(C24/D24)*0.5 -> 298228.8612 | G24: 298228.5953 | H24: 0.2659004337
A25: 1808 | B25: Service Centre - Roof | D25: 20 | E25: 0.05 | F25: =+'App.2-CI MIFRS_DepExp_2015'!F25-'App 2-CI MIFRS_DepExp_2016'!I25+(C25/D25)*0.5 -> 33345.17833 | G25: 33345.24 | H25: -0.06166666667
A26: 1808 | B26: Service Centre - Automation | D26: 15 | E26: 0.06666666667 | F26: =+'App.2-CI MIFRS_DepExp_2015'!F26-'App 2-CI MIFRS_DepExp_2016'!I26+(C26/D26)*0.5 -> 1783.187333 | G26: 4481.057333 | H26: -2697.87
A27: 1808 | B27: Operation Centre - Workshop | D27: 50 | E27: 0.02 | F27: =+'App.2-CI MIFRS_DepExp_2015'!F27-'App 2-CI MIFRS_DepExp_2016'!I27+(C27/D27)*0.5 -> 149.9847844 | G27: 150 | H27: -0.01521555368
A28: 1810 | B28: Leasehold Improvements | E28: 0 | F28: =IF(D28=0,'App.2-CH_MIFRS_DepExp_2014'!K28,+'App.2-CH_MIFRS_DepExp_2014'!K28+((C28*0.5)/D28)) -> 0 | H28: 0
A29: 1815 | B29: Transformer Station Equipment >50 kV | D29: 30 | E29: 0.03333333333 | F29: =+'App.2-CI MIFRS_DepExp_2015'!F29-'App 2-CI MIFRS_DepExp_2016'!I29+(C29/D29)*0.5 -> 567521.9122 | G29: 567490.944 | H29: 30.96824747 | I29: 192904.8
A30: 1815 | B30: TSE Auxiliary equipment | D30: 30 | E30: 0.03333333333 | F30: =+'App.2-CI MIFRS_DepExp_2015'!F30-'App 2-CI MIFRS_DepExp_2016'!I30+(C30/D30)*0.5 -> 59036.3948 | G30: 59034.91633 | H30: 1.478464006
A31: 1815 | B31: TSE - P&C equipment | C31: 280628 | D31: 15 | E31: 0.06666666667 | F31: =+'App.2-CI MIFRS_DepExp_2015'!F31-'App 2-CI MIFRS_DepExp_2016'!I31+(C31/D31)*0.5 -> 257821.9443 | G31: 257821.9827 | H31: -0.03839988142
A32: 1815 | B32: TSE - Power transformer | C32: 235890 | D32: 50 | E32: 0.02 | F32: =+'App.2-CI MIFRS_DepExp_2015'!F32-'App 2-CI MIFRS_DepExp_2016'!I32+(C32/D32)*0.5 -> 253704.0872 | G32: 253703.56 | H32: 0.527213203
A33: 1820 | B33: Distribution Station Equipment <50 kV | D33: 30 | E33: 0.03333333333 | F33: =+'App.2-CI MIFRS_DepExp_2015'!F33-'App 2-CI MIFRS_DepExp_2016'!I33+(C33/D33)*0.5 -> 86135.58748 | G33: 91657.34633 | H33: -5521.758857 | I33: 1465.45
A34: 1820 | B34: Meters Wholesale | C34: 94587 | D34: 15 | E34: 0.06666666667 | F34: =+'App.2-CI MIFRS_DepExp_2015'!F34-'App 2-CI MIFRS_DepExp_2016'!I34+(C34/D34)*0.5 -> 55402.35 | G34: 45852.5 | H34: 9549.85
A35: 1825 | B35: Storage Battery Equipment | E35: 0 | F35: =IF(D35=0,'App.2-CH_MIFRS_DepExp_2014'!K35,+'App.2-CH_MIFRS_DepExp_2014'!K35+((C35*0.5)/D35)) -> 0 | H35: 0
A36: 1830 | B36: Poles, Towers & Fixtures | C36: 3732213.05 | D36: 45 | E36: 0.02222222222 | F36: =+'App.2-CI MIFRS_DepExp_2015'!F36-'App 2-CI MIFRS_DepExp_2016'!I36+(C36/D36)*0.5 -> 1183070.838 | G36: 1183074.513 | H36: -3.674896516
A37: 1835 | B37: Overhead Conductors & Devices | C37: 2438959.73 | D37: 45 | E37: 0.02222222222 | F37: =+'App.2-CI MIFRS_DepExp_2015'!F37-'App 2-CI MIFRS_DepExp_2016'!I37+(C37/D37)*0.5 -> 683692.8893 | G37: 683686.8324 | H37: 6.056935142
A38: 1835 | B38: OH Manual line switches | C38: 126193 | D38: 30 | E38: 0.03333333333 | F38: =+'App.2-CI MIFRS_DepExp_2015'!F38-'App 2-CI MIFRS_DepExp_2016'!I38+(C38/D38)*0.5 -> 29443.36733 | G38: 29443.471 | H38: -0.1036666667
A39: 1835 | B39: OH SCADA control equipment | C39: 1075170 | D39: 15 | E39: 0.06666666667 | F39: =+'App.2-CI MIFRS_DepExp_2015'!F39-'App 2-CI MIFRS_DepExp_2016'!I39+(C39/D39)*0.5 -> 195377.3333 | G39: 195377.378 | H39: -0.04466666665
A40: 1840 | B40: Underground Conduit | C40: 905771.88 | D40: 50 | E40: 0.02 | F40: =+'App.2-CI MIFRS_DepExp_2015'!F40-'App 2-CI MIFRS_DepExp_2016'!I40+(C40/D40)*0.5 -> 262102.0089 | G40: 261955.6189 | H40: 146.3900339
A41: 1845 | B41: Underground Conductors & Devices | C41: 2460395.33 | D41: 35 | E41: 0.02857142857 | F41: =+'App.2-CI MIFRS_DepExp_2015'!F41-'App 2-CI MIFRS_DepExp_2016'!I41+(C41/D41)*0.5 -> 942880.9394 | G41: 942674.8041 | H41: 206.1352873 | I41: 6271.07
A42: 1850 | B42: Line Transformers - Overhead | C42: 2274289.41 | D42: 45 | E42: 0.02222222222 | F42: =+'App.2-CI MIFRS_DepExp_2015'!F42-'App 2-CI MIFRS_DepExp_2016'!I42+(C42/D42)*0.5 -> 460437.1766 | G42: 458884.9026 | H42: 1552.274023
A43: 1850 | B43: Line Transformers - Underground | C43: 1598135.54 | D43: 35 | E43: 0.02857142857 | F43: =+'App.2-CI MIFRS_DepExp_2015'!F43-'App 2-CI MIFRS_DepExp_2016'!I43+(C43/D43)*0.5 -> 686861.8209 | G43: 686293.6676 | H43: 568.1532349
A44: 1855 | B44: Services - Overhead | C44: 401393.21 | D44: 45 | E44: 0.02222222222 | F44: =+'App.2-CI MIFRS_DepExp_2015'!F44-'App 2-CI MIFRS_DepExp_2016'!I44+(C44/D44)*0.5 -> 141925.3688 | G44: 141925.2367 | H44: 0.1320138688
A45: 1855 | B45: Services - Underground | C45: 643160.25 | D45: 50 | E45: 0.02 | F45: =+'App.2-CI MIFRS_DepExp_2015'!F45-'App 2-CI MIFRS_DepExp_2016'!I45+(C45/D45)*0.5 -> 222224.1992 | G45: 222221.8593 | H45: 2.339879854
A46: 1860 | B46: Meters - Bi'directional | D46: 15 | E46: 0.06666666667 | F46: =+'App.2-CI MIFRS_DepExp_2015'!F46-'App 2-CI MIFRS_DepExp_2016'!I46+(C46/D46)*0.5 -> 1435.920575 | G46: 1435.92 | H46: 0.0005745308424
A47: 1860 | B47: Meters - Commercial | D47: 15 | E47: 0.06666666667 | F47: =+'App.2-CI MIFRS_DepExp_2015'!F47-'App 2-CI MIFRS_DepExp_2016'!I47+(C47/D47)*0.5 -> 84370.82042 | G47: 142961.76 | H47: -58590.93958
A48: 1860 | B48: Meters - Residential | C48: 210467 | D48: 15 | E48: 0.06666666667 | F48: =+'App.2-CI MIFRS_DepExp_2015'!F48-'App 2-CI MIFRS_DepExp_2016'!I48+(C48/D48)*0.5 -> 79166.16752 | G48: 80020.612 | H48: -854.4444759
A49: 1860 | B49: Meters C& I | C49: 433899.6 | D49: 15 | E49: 0.06666666667 | F49: =+'App.2-CI MIFRS_DepExp_2015'!F49-'App 2-CI MIFRS_DepExp_2016'!I49+(C49/D49)*0.5 -> 122468.7867 | G49: 90413.58733 | H49: 32055.19933
A50: 1860 | B50: Meters (Smart Meters) | D50: 15 | E50: 0.06666666667 | F50: =+'App.2-CI MIFRS_DepExp_2015'!F50-'App 2-CI MIFRS_DepExp_2016'!I50+(C50/D50)*0.5 -> 541656.2932 | G50: 541668.84 | H50: -12.54677732
A51: 1905 | B51: Land | E51: 0 | F51: =IF(D51=0,'App.2-CH_MIFRS_DepExp_2014'!K51,+'App.2-CH_MIFRS_DepExp_2014'!K51+((C51*1)/D51)) -> 0 | H51: 0
A52: 1908 | B52: Buildings & Fixtures | E52: 0 | F52: =IF(D52=0,'App.2-CH_MIFRS_DepExp_2014'!K52,+'App.2-CH_MIFRS_DepExp_2014'!K52+((C52*1)/D52)) -> 0 | H52: 0
A53: 1910 | B53: Leasehold Improvements | E53: 0 | F53: =IF(D53=0,'App.2-CH_MIFRS_DepExp_2014'!K53,+'App.2-CH_MIFRS_DepExp_2014'!K53+((C53*1)/D53)) -> 0 | H53: 0
A54: 1915 | B54: Office Furniture & Equipment (10 years) | C54: 7000 | D54: 10 | E54: 0.1 | F54: =+'App.2-CI MIFRS_DepExp_2015'!F54-'App 2-CI MIFRS_DepExp_2016'!I54+(C54/D54)*0.5 -> 106958.3185 | G54: 106956.679 | H54: 1.639495706
A55: 1915 | B55: Office Furniture & Equipment (5 years) | E55: 0 | F55: =IF(D55=0,'App.2-CH_MIFRS_DepExp_2014'!K55,+'App.2-CH_MIFRS_DepExp_2014'!K55+((C55*1)/D55)) -> -0.015 | H55: -0.015
A56: 1920 | B56: Computer Equipment - Hardware | E56: 0 | F56: =IF(D56=0,'App.2-CH_MIFRS_DepExp_2014'!K56,+'App.2-CH_MIFRS_DepExp_2014'!K56+((C56*1)/D56)) -> 0 | H56: 0
A57: 1920 | B57: Computer Equip.-Hardware(Post Mar. 22/04) | E57: 0 | F57: =IF(D57=0,'App.2-CH_MIFRS_DepExp_2014'!K57,+'App.2-CH_MIFRS_DepExp_2014'!K57+((C57*1)/D57)) -> 0 | H57: 0
A58: 1920 | B58: Computer Equip.-Hardware(Post Mar. 19/07) | C58: 108650 | D58: 5 | E58: 0.2 | F58: =+'App.2-CI MIFRS_DepExp_2015'!F58-'App 2-CI MIFRS_DepExp_2016'!I58+(C58/D58)*0.5 -> 127119.2968 | G58: 132135.574 | H58: -5016.277215 | I58: 74249.32
A59: 1930 | B59: Transportation Equipment - car | D59: 5 | E59: 0.2 | F59: =+'App.2-CI MIFRS_DepExp_2015'!F59-'App 2-CI MIFRS_DepExp_2016'!I59+(C59/D59)*0.5 -> 7432.345 | G59: 7432.42 | H59: -0.075
A60: 1930 | B60: Transportation Equipment - Other - trailers etc | D60: 15 | E60: 0.06666666667 | F60: =+'App.2-CI MIFRS_DepExp_2015'!F60-'App 2-CI MIFRS_DepExp_2016'!I60+(C60/D60)*0.5 -> 35829.69841 | G60: 35870.518 | H60: -40.81958922
A61: 1930 | B61: Transportation Equipment - small trucks | C61: 74896 | D61: 8 | E61: 0.125 | F61: =+'App.2-CI MIFRS_DepExp_2015'!F61-'App 2-CI MIFRS_DepExp_2016'!I61+(C61/D61)*0.5 -> 124663.3237 | G61: 127842.4437 | H61: -3179.12
A62: 1930 | B62: Transportation Equipment - workplatform | C62: 544513 | D62: 12 | E62: 0.08333333333 | F62: =+'App.2-CI MIFRS_DepExp_2015'!F62-'App 2-CI MIFRS_DepExp_2016'!I62+(C62/D62)*0.5 -> 358983.1749 | G62: 357776.659 | H62: 1206.515895
A63: 1930 | B63: Transportation Equipmnet - Hybrid system | D63: 5 | E63: 0.2 | F63: =+'App.2-CI MIFRS_DepExp_2015'!F63-'App 2-CI MIFRS_DepExp_2016'!I63+(C63/D63)*0.5 -> 52941.474 | G63: 60231.48 | H63: -7290.006
A64: 1935 | B64: Stores Equipment | D64: 10 | E64: 0.1 | F64: =+'App.2-CI MIFRS_DepExp_2015'!F64-'App 2-CI MIFRS_DepExp_2016'!I64+(C64/D64)*0.5 -> 46944.63533 | G64: 46941.72 | H64: 2.915325203
A65: 1940 | B65: Tools, Shop & Garage Equipment | C65: 21500 | D65: 8 | E65: 0.125 | F65: =+'App.2-CI MIFRS_DepExp_2015'!F65-'App 2-CI MIFRS_DepExp_2016'!I65+(C65/D65)*0.5 -> 38097.07763 | G65: 38096.67875 | H65: 0.3988829946
A66: 1940 | B66: Truck tools | C66: 55500 | D66: 5 | E66: 0.2 | F66: =+'App.2-CI MIFRS_DepExp_2015'!F66-'App 2-CI MIFRS_DepExp_2016'!I66+(C66/D66)*0.5 -> 79829.26966 | G66: 79821.848 | H66: 7.421664796 | I66: 6921.608
A67: 1945 | B67: Measurement & Testing Equipment | C67: 15000 | D67: 7 | E67: 0.1428571429 | F67: =+'App.2-CI MIFRS_DepExp_2015'!F67-'App 2-CI MIFRS_DepExp_2016'!I67+(C67/D67)*0.5 -> 45676.72866 | G67: 45677.16286 | H67: -0.4341985678 | I67: 6449.17
A68: 1950 | B68: Power Operated Equipment | E68: 0 | F68: =IF(D68=0,'App.2-CH_MIFRS_DepExp_2014'!K68,+'App.2-CH_MIFRS_DepExp_2014'!K68+((C68*1)/D68)) -> 0 | H68: 0
A69: 1955 | B69: Communications Equipment - phones | D69: 10 | E69: 0.1 | F69: =+'App.2-CI MIFRS_DepExp_2015'!F69-'App 2-CI MIFRS_DepExp_2016'!I69+(C69/D69)*0.5 -> 49712.01223 | G69: 49709.314 | H69: 2.698233546 | I69: 468.48
A70: 1955 | B70: Communications Equipment - Radio wireless | D70: 8 | E70: 0.125 | F70: =+'App.2-CI MIFRS_DepExp_2015'!F70-'App 2-CI MIFRS_DepExp_2016'!I70+(C70/D70)*0.5 -> 25038.62312 | G70: 25038.55 | H70: 0.07311541771
A71: 1955 | B71: Communications Equipment - Radio | D71: 10 | E71: 0.1 | F71: =+'App.2-CI MIFRS_DepExp_2015'!F71-'App 2-CI MIFRS_DepExp_2016'!I71+(C71/D71)*0.5 -> 17619.03249 | G71: 17619.96 | H71: -0.9275090253
A72: 1955 | B72: Communication Equipment (Smart Meters) | D72: 0 | E72: 0 | F72: =IF(D72=0,'App.2-CH_MIFRS_DepExp_2014'!K72,+'App.2-CH_MIFRS_DepExp_2014'!K72+((C72*1)/D72)) -> 0 | H72: 0
A73: 1960 | B73: Miscellaneous Equipment | C73: 32000 | D73: 10 | E73: 0.1 | F73: =+'App.2-CI MIFRS_DepExp_2015'!F73-'App 2-CI MIFRS_DepExp_2016'!I73+(C73/D73)*0.5 -> 243405.8783 | G73: 243392.504 | H73: 13.374327 | I73: 116.64
A74: 1970 | B74: Load Management Controls - Customer Premises | E74: 0 | F74: =IF(D74=0,'App.2-CH_MIFRS_DepExp_2014'!K74,+'App.2-CH_MIFRS_DepExp_2014'!K74+((C74*1)/D74)) -> 0 | H74: 0
A75: 1975 | B75: Load Management Controls Utility Premises | E75: 0 | F75: =IF(D75=0,'App.2-CH_MIFRS_DepExp_2014'!K75,+'App.2-CH_MIFRS_DepExp_2014'!K75+((C75*1)/D75)) -> 0 | H75: 0
A76: 1980 | B76: System Supervisor Equipment | C76: 265636 | D76: 15 | E76: 0.06666666667 | F76: =+'App.2-CI MIFRS_DepExp_2015'!F76-'App 2-CI MIFRS_DepExp_2016'!I76+(C76/D76)*0.5 -> 206542.112 | G76: 206446.508 | H76: 95.60401485 | I76: 10053.43
A77: 1985 | B77: Miscellaneous Fixed Assets | E77: 0 | F77: =IF(D77=0,'App.2-CH_MIFRS_DepExp_2014'!K77,+'App.2-CH_MIFRS_DepExp_2014'!K77+((C77*1)/D77)) -> 0 | H77: 0
A78: 1990 | B78: Other Tangible Property | E78: 0 | F78: =IF(D78=0,'App.2-CH_MIFRS_DepExp_2014'!K78,+'App.2-CH_MIFRS_DepExp_2014'!K78+((C78*1)/D78)) -> 0 | H78: 0
A79: 1995 | B79: Contributions & Grants | C79: -2289738 | E79: 0 | F79: -933883.8438 | G79: -933883.8438 | H79: 0
B80: Total | C80: =SUM(C17:C79) -> 16789179 | F80: =SUM(F17:F79) -> 8873671.463 | G80: =SUM(G17:G79) -> 8905685.965 | H80: =SUM(H17:H79) -> -32014.5024
B81: Depreciation exp. adj. from gain or loss on the retirement of assets (pool of like assets)
B82: Total Depreciation expense to be included in the test year revenue requirement | F82: =SUM(F80:F81) -> 8873671.463
A83: Notes:
A84: 1 | B84: Board policy of the "half-year" rule - the applicant must ensure that additions in the year attract a half-year depreciation expense in the first year. Deviations from this standard practice must be supported in the application.
A85: 2 | B85: The applicant must provide an explanation of material variances in evidence.
A87: General: | B87: Applicants must provide a breakdown of depreciation and amortization expense in the above format for all relevant accounts. Asset Retirement Obligations (AROs), depreciation and accretion expense should be disclosed separately consistent with the Notes of historical Audited Financial Statements.

Sheet App.2-FA Proposed REG Inves (2 (hidden)
F1: File Number: | G1: =EBNUMBER -> 0
F2: Exhibit:
F3: Tab:
F4: Schedule:
F5: Page:
F7: Date:
A9: Appendix 2-FA
A10: Renewable Generation Connection Investment Summary (over the rate setting period)
A12: Enter the details of the Renewable Generation Connection projects as described in Section 2.5.2.5 of the Filing Requirements.
A13: All costs entered on this page will be transferred to the appropriate cells in the appendices that follow.
A14: For Part A, Renewable Enabling Improvements (REI), these amounts will be transferred to Appendix 2 - FB
A15: For Part B, Expansions, these amounts will be transferred to Appendix 2 - FC
A17: If there are more than five projects proposed to be in-service in a certain year, please amend the tables below and ensure that the formulae for the Total Amounts in any given rate year are updated.
A18: Based on the current methodology and allocation, amounts allocated represent 6% for REI Connection Investments and 17% for Expansion Investments. (pg 15, EB-2009-0349)
A21: Part A
A22: REI Investments (Direct Benefit at 6%) | C22: 2015 | D22: =C22+1 -> 2016 | E22: =D22+1 -> 2017 | F22: 2018 | G22: 2019
A23: Project 1
A24: Name: REI Connection Project
A25: Capital Costs | C25: 1000 | D25: 0 | E25: 1000 | F25: 0 | G25: 0
A26: OM&A (Start-Up) | C26: 0 | D26: 0 | E26: 0 | F26: 0 | G26: 0
A27: OM&A (Ongoing) | C27: 0 | D27: 0 | E27: 0 | F27: 0 | G27: 0
A29: Project 2
A30: Name: REI Connection Project
A31: Capital Costs | C31: 0 | D31: 0 | E31: 0 | F31: 0 | G31: 0
A32: OM&A (Start-Up) | C32: 0 | D32: 0 | E32: 0 | F32: 0 | G32: 0
A33: OM&A (Ongoing) | C33: 0 | D33: 0 | E33: 0 | F33: 0 | G33: 0
A35: Project 3
A36: Name: REI Connection Project
A37: Capital Costs | C37: 0 | D37: 0 | E37: 0 | F37: 0 | G37: 0
A38: OM&A (Start-Up) | C38: 0 | D38: 0 | E38: 0 | F38: 0 | G38: 0
A39: OM&A (Ongoing) | C39: 0 | D39: 0 | E39: 0 | F39: 0 | G39: 0
A41: Project 4
A42: Name: REI Connection Project
A43: Capital Costs | C43: 0 | D43: 0 | E43: 0 | F43: 0 | G43: 0
A44: OM&A (Start-Up) | C44: 0 | D44: 0 | E44: 0 | F44: 0 | G44: 0
A45: OM&A (Ongoing) | C45: 0 | D45: 0 | E45: 0 | F45: 0 | G45: 0
A47: Project 5
A48: Name: REI Connection Project
A49: Capital Costs | C49: 0 | D49: 0 | E49: 0 | F49: 0 | G49: 0
A50: OM&A (Start-Up) | C50: 0 | D50: 0 | E50: 0 | F50: 0 | G50: 0
A51: OM&A (Ongoing) | C51: 0 | D51: 0 | E51: 0 | F51: 0 | G51: 0
A53: Total Capital Costs | C53: =SUM(C49,C43,C37,C31,C25) -> 1000 | D53: =SUM(D49,D43,D37,D31,D25) -> 0 | E53: 1000 | F53: 0 | G53: 0
A54: Total OM&A (Start-Up) | C54: =SUM(C50,C44,C38,C32,C26) -> 0 | D54: 0 | E54: 0 | F54: 0 | G54: 0
A55: Total OM&A (Ongoing) | C55: =SUM(C51,C45,C39,C33,C27) -> 0 | D55: 0 | E55: 0 | F55: 0 | G55: 0
A58: Part B
A59: Expansion Investments (Direct Benefit at 17%) | C59: 2015 | D59: =C59+1 -> 2016 | E59: =D59+1 -> 2017 | F59: 2018 | G59: 2019
A60: Project 1
A61: Name: Expansion Connection Project
A62: Capital Costs | C62: 0 | D62: 0 | E62: 0 | F62: 0 | G62: 0
A63: OM&A (Start-Up) | C63: 0 | D63: 0 | E63: 0 | F63: 0 | G63: 0
A64: OM&A (Ongoing) | C64: 0 | D64: 0 | E64: 0 | F64: 0 | G64: 0
A66: Project 2
A67: Name: Expansion Connection Project
A68: Capital Costs | C68: 0 | D68: 0 | E68: 0 | F68: 0 | G68: 0
A69: OM&A (Start-Up) | C69: 0 | D69: 0 | E69: 0 | F69: 0 | G69: 0
A70: OM&A (Ongoing) | C70: 0 | D70: 0 | E70: 0 | F70: 0 | G70: 0
A72: Project 3
A73: Name: Expansion Connection Project
A74: Capital Costs | C74: 0 | D74: 0 | E74: 0 | F74: 0 | G74: 0
A75: OM&A (Start-Up) | C75: 0 | D75: 0 | E75: 0 | F75: 0 | G75: 0
A76: OM&A (Ongoing) | C76: 0 | D76: 0 | E76: 0 | F76: 0 | G76: 0
A78: Project 4
A79: Name: Expansion Connection Project
A80: Capital Costs | C80: 0 | D80: 0 | E80: 0 | F80: 0 | G80: 0
A81: OM&A (Start-Up) | C81: 0 | D81: 0 | E81: 0 | F81: 0 | G81: 0
A82: OM&A (Ongoing) | C82: 0 | D82: 0 | E82: 0 | F82: 0 | G82: 0
A84: Project 5
A85: Name: Expansion Connection Project
A86: Capital Costs | C86: 0 | D86: 0 | E86: 0 | F86: 0 | G86: 0
A87: OM&A (Start-Up) | C87: 0 | D87: 0 | E87: 0 | F87: 0 | G87: 0
A88: OM&A (Ongoing) | C88: 0 | D88: 0 | E88: 0 | F88: 0 | G88: 0
A90: Total Capital Costs | C90: =SUM(C86,C80,C74,C68,C62) -> 0 | D90: =SUM(D86,D80,D74,D68,D62) -> 0 | E90: 0 | F90: 0 | G90: 0
A91: Total OM&A (Start-Up) | C91: =SUM(C87,C81,C75,C69,C63) -> 0 | D91: 0 | E91: 0 | F91: 0 | G91: 0
A92: Total OM&A (Ongoing) | C92: =SUM(C88,C82,C76,C70,C64) -> 0 | D92: 0 | E92: 0 | F92: 0 | G92: 0

Sheet App.2-FB Calc of REG Improv (2 (hidden)
F1: File Number: | G1: =EBNUMBER -> 0
F2: Exhibit:
F3: Tab:
F4: Schedule:
F5: Page:
F7: Date:
A9: Appendix 2-FB
A10: Calculation of Renewable Generation Connection Direct Benefits/Provincial Amount: Renewable Enabling Improvement Investments
A12: This table will calculate the distributor/provincial shares of the investments entered in Part A of Appendix 2-FA.
A13: Enter values in green shaded cells: WCA percentage, debt percentages, interest rates, kWh, tax rates, amortization period, CCA Class and percentage.
A14: Rate Riders are not calculated for Test Year as these assets and costs are already in the distributor's rate base/revenue requirement.
D17: 2015 Test Year | G17: 2016 | J17: 2017 | K17: 2016 | M17: 2018 | P17: 2019
E18: Direct Benefit | F18: Provincial | H18: Direct Benefit | I18: Provincial | K18: Direct Benefit | L18: Provincial | N18: Direct Benefit | O18: Provincial | Q18: Direct Benefit | R18: Provincial
D19: Total | E19: 0.06 | F19: 0.94 | G19: Total | H19: 0.06 | I19: 0.94 | J19: Total | K19: 0.06 | L19: 0.94 | M19: Total | N19: 0.06 | O19: 0.94 | P19: Total | Q19: 0.06 | R19: 0.94
A20: Net Fixed Assets (average) | D20: =D82 -> 490 | E20: =D20*E19 -> 29.4 | F20: =D20*F19 -> 460.6 | G20: =E82 -> 960 | H20: =G20*H19 -> 57.6 | I20: =G20*I19 -> 902.4 | J20: =F82 -> 1410 | K20: =J20*K19 -> 84.6 | L20: =J20*L19 -> 1325.4 | M20: =G82 -> 1840 | N20: =M20*N19 -> 110.4 | O20: =M20*O19 -> 1729.6 | P20: =H82 -> 1760 | Q20: =P20*Q19 -> 105.6 | R20: =P20*R19 -> 1654.4
A21: Incremental OM&A (on-going, N/A for Provincial Recovery) | D21: ='App.2-FA Proposed REG Inves (2'!C55 -> 0 | E21: =D21 -> 0 | G21: ='App.2-FA Proposed REG Inves (2'!D55 -> 0 | H21: =G21 -> 0 | J21: ='App.2-FA Proposed REG Inves (2'!E55 -> 0 | K21: =J21 -> 0 | M21: ='App.2-FA Proposed REG Inves (2'!F55 -> 0 | N21: =M21 -> 0 | P21: ='App.2-FA Proposed REG Inves (2'!G55 -> 0 | Q21: =P21 -> 0
A22: Incremental OM&A (start-up, applicable for Provincial Recovery) | D22: ='App.2-FA Proposed REG Inves (2'!C54 -> 0 | E22: =D22*E19 -> 0 | F22: =D22*F19 -> 0 | G22: ='App.2-FA Proposed REG Inves (2'!D54 -> 0 | H22: =G22*H19 -> 0 | I22: =G22*I19 -> 0 | J22: ='App.2-FA Proposed REG Inves (2'!E54 -> 0 | K22: =J22*K19 -> 0 | L22: =J22*L19 -> 0 | M22: ='App.2-FA Proposed REG Inves (2'!F54 -> 0 | N22: =M22*N19 -> 0 | O22: =M22*O19 -> 0 | P22: ='App.2-FA Proposed REG Inves (2'!G54 -> 0 | Q22: =P22*Q19 -> 0 | R22: =P22*R19 -> 0
A23: WCA | B23: 0.13 | E23: =(E21+E22)*$B$23 -> 0 | F23: =F22*$B$23 -> 0 | H23: =(H21+H22)*$B$23 -> 0 | I23: =I22*$B$23 -> 0 | K23: =(K21+K22)*$B$23 -> 0 | L23: =L22*$B$23 -> 0 | N23: =(N21+N22)*$B$23 -> 0 | O23: =O22*$B$23 -> 0 | Q23: =(Q21+Q22)*$B$23 -> 0 | R23: =R22*$B$23 -> 0
A24: Rate Base | E24: =SUM(E20+E23) -> 29.4 | F24: =SUM(F20+F23) -> 460.6 | H24: =SUM(H20+H23) -> 57.6 | I24: =SUM(I20+I23) -> 902.4 | K24: =SUM(K20+K23) -> 84.6 | L24: =SUM(L20+L23) -> 1325.4 | N24: =SUM(N20+N23) -> 110.4 | O24: =SUM(O20+O23) -> 1729.6 | Q24: =SUM(Q20+Q23) -> 105.6 | R24: =SUM(R20+R23) -> 1654.4
A27: Deemed ST Debt | B27: 0.04 | E27: =E24*$B$27 -> 1.176 | F27: =F24*$B$27 -> 18.424 | H27: =H24*$B$27 -> 2.304 | I27: =I24*$B$27 -> 36.096 | K27: =K24*$B$27 -> 3.384 | L27: =L24*$B$27 -> 53.016 | N27: =N24*$B$27 -> 4.416 | O27: =O24*$B$27 -> 69.184 | Q27: =Q24*$B$27 -> 4.224 | R27: =R24*$B$27 -> 66.176
A28: Deemed LT Debt | B28: 0.56 | E28: =E24*$B$28 -> 16.464 | F28: =F24*$B$28 -> 257.936 | H28: =H24*$B$28 -> 32.256 | I28: =I24*$B$28 -> 505.344 | K28: =K24*$B$28 -> 47.376 | L28: =L24*$B$28 -> 742.224 | N28: =N24*$B$28 -> 61.824 | O28: =O24*$B$28 -> 968.576 | Q28: =Q24*$B$28 -> 59.136 | R28: =R24*$B$28 -> 926.464
A29: Deemed Equity | B29: 0.4 | E29: =E24*$B$29 -> 11.76 | F29: =F24*$B$29 -> 184.24 | H29: =H24*$B$29 -> 23.04 | I29: =I24*$B$29 -> 360.96 | K29: =K24*$B$29 -> 33.84 | L29: =L24*$B$29 -> 530.16 | N29: =N24*$B$29 -> 44.16 | O29: =O24*$B$29 -> 691.84 | Q29: =Q24*$B$29 -> 42.24 | R29: =R24*$B$29 -> 661.76
A31: ST Interest | B31: 0.024 | E31: =E27*$B31 -> 0.028224 | F31: =F27*$B31 -> 0.442176 | H31: =H27*$B31 -> 0.055296 | I31: =I27*$B31 -> 0.866304 | K31: =K27*$B31 -> 0.081216 | L31: =L27*$B31 -> 1.272384 | N31: =N27*$B31 -> 0.105984 | O31: =O27*$B31 -> 1.660416 | Q31: =Q27*$B31 -> 0.101376 | R31: =R27*$B31 -> 1.588224
A32: LT Interest | B32: 0.056 | E32: =E28*$B32 -> 0.921984 | F32: 14.444416 | H32: =H28*$B32 -> 1.806336 | I32: 28.299264 | K32: =K28*$B32 -> 2.653056 | L32: 41.564544 | N32: =N28*$B32 -> 3.462144 | O32: 54.240256 | Q32: =Q28*$B32 -> 3.311616 | R32: 51.881984
A33: ROE | B33: 0.085 | E33: 0.9996 | F33: 15.6604 | H33: 1.9584 | I33: 30.6816 | K33: 2.8764 | L33: 45.0636 | N33: 3.7536 | O33: 58.8064 | Q33: 3.5904 | R33: 56.2496
A34: Cost of Capital Total | E34: =SUM(E31:E33) -> 1.949808 | F34: =SUM(F31:F33) -> 30.546992 | H34: =SUM(H31:H33) -> 3.820032 | I34: =SUM(I31:I33) -> 59.847168 | K34: =SUM(K31:K33) -> 5.610672 | L34: =SUM(L31:L33) -> 87.900528 | N34: =SUM(N31:N33) -> 7.321728 | O34: =SUM(O31:O33) -> 114.707072 | Q34: =SUM(Q31:Q33) -> 7.003392 | R34: =SUM(R31:R33) -> 109.719808
A36: OM&A | E36: =E21+E22 -> 0 | F36: =F22 -> 0 | H36: =H21+H22 -> 0 | I36: =I22 -> 0 | K36: =K21+K22 -> 0 | L36: =L22 -> 0 | N36: =N21+N22 -> 0 | O36: =O22 -> 0 | Q36: =Q21+Q22 -> 0 | R36: =R22 -> 0
A37: Amortization | D37: =D77 -> 20 | E37: =D37*E$19 -> 1.2 | F37: =D37*F$19 -> 18.8 | G37: =E76+E77 -> 40 | H37: =G37*H$19 -> 2.4 | I37: =G37*I$19 -> 37.6 | J37: =F76+F77 -> 60 | K37: =J37*K$19 -> 3.6 | L37: =J37*L$19 -> 56.4 | M37: =G76+G77 -> 80 | N37: =M37*N$19 -> 4.8 | O37: =M37*O$19 -> 75.2 | P37: =H76+H77 -> 80 | Q37: =P37*Q$19 -> 4.8 | R37: =P37*R$19 -> 75.2
A38: Grossed-up PILs | E38: =E65 -> 0 | F38: =F65 -> 0 | H38: =H65 -> 0 | I38: =I65 -> 0 | K38: =K65 -> 0 | L38: =L65 -> 0 | N38: =N65 -> 0 | O38: =O65 -> 0 | Q38: =Q65 -> 0 | R38: =R65 -> 0
A40: Revenue Requirement | E40: =SUM(E34:E38) -> 3.149808 | F40: =SUM(F34:F38) -> 49.346992 | H40: =SUM(H34:H38) -> 6.220032 | I40: =SUM(I34:I38) -> 97.447168 | K40: =SUM(K34:K38) -> 9.210672 | L40: =SUM(L34:L38) -> 144.300528 | N40: =SUM(N34:N38) -> 12.121728 | O40: =SUM(O34:O38) -> 189.907072 | Q40: =SUM(Q34:Q38) -> 11.803392 | R40: =SUM(R34:R38) -> 184.919808
A43: Provincial Rate Protection | F43: =F40 -> 49.346992 | I43: =I40 -> 97.447168 | L43: =L40 -> 144.300528 | O43: =O40 -> 189.907072 | R43: =R40 -> 184.919808
A45: Monthly Amount Paid by IESO | F45: =F43/12 -> 4.112249333 | I45: =I43/12 -> 8.120597333 | L45: =L43/12 -> 12.025044 | O45: =O43/12 -> 15.82558933 | R45: =R43/12 -> 15.409984
A47: Note 1: The difference between the actual costs of approved eligible investments and revenue received from the IESO should be recorded in a variance account. The Board may provide
A48: regulatory accounting guidance regarding a variance account either in an individual proceeding or on a generic basis.
A49: Note 2: For the 2014 Test Year, Costs and Revenues of the Direct Benefit are to be included in the test year applicant Rate Base and Revenues.
A51: PILs Calculation
E52: 2015 | H52: =E52+1 -> 2016 | K52: =H52+1 -> 2017 | N52: =K52+1 -> 2018 | Q52: =N52+1 -> 2019
A53: Income Tax | E53: Direct Benefit | F53: Provincial | H53: Direct Benefit | I53: Provincial | K53: Direct Benefit | L53: Provincial | N53: Direct Benefit | O53: Provincial | Q53: Direct Benefit | R53: Provincial
M54: Total | P54: Total
A55: Net Income - ROE on Rate Base | E55: =E33 -> 0.9996 | F55: =F33 -> 15.6604 | H55: =H33 -> 1.9584 | I55: =I33 -> 30.6816 | K55: =K33 -> 2.8764 | L55: =L33 -> 45.0636 | N55: =N33 -> 3.7536 | O55: =O33 -> 58.8064 | Q55: =Q33 -> 3.5904 | R55: =R33 -> 56.2496
A56: Amortization (6% DB and 94% P) | E56: =E37 -> 1.2 | F56: =F37 -> 18.8 | H56: =H37 -> 2.4 | I56: =I37 -> 37.6 | K56: =K37 -> 3.6 | L56: =L37 -> 56.4 | N56: =N37 -> 4.8 | O56: =O37 -> 75.2 | Q56: =Q37 -> 4.8 | R56: =R37 -> 75.2
A57: CCA (6% DB and 94% P) | E57: =-D94*E$19 -> -2.4 | F57: =-D94*F$19 -> -37.6 | H57: =-E94*H$19 -> -4.608 | I57: =-E94*I$19 -> -72.192 | K57: =-F94*K$19 -> -4.23936 | L57: =-F94*L$19 -> -66.41664 | N57: =-G94*N$19 -> -3.9002112 | O57: =-G94*O$19 -> -61.1033088 | Q57: =-H94*Q$19 -> -3.588194304 | R57: =-H94*R$19 -> -56.2150441
A58: Taxable income | E58: =SUM(E55:E57) -> -0.2004 | F58: =SUM(F55:F57) -> -3.1396 | H58: =SUM(H55:H57) -> -0.2496 | I58: =SUM(I55:I57) -> -3.9104 | K58: =SUM(K55:K57) -> 2.23704 | L58: =SUM(L55:L57) -> 35.04696 | N58: =SUM(N55:N57) -> 4.6533888 | O58: =SUM(O55:O57) -> 72.9030912 | Q58: =SUM(Q55:Q57) -> 4.802205696 | R58: =SUM(R55:R57) -> 75.2345559
A60: Tax Rate (to be entered)
A62: Income Taxes Payable | E62: =E58*E60 -> 0 | F62: =F58*F60 -> 0 | H62: =H58*H60 -> 0 | I62: =I58*I60 -> 0 | K62: =K58*K60 -> 0 | L62: =L58*L60 -> 0 | N62: =N58*N60 -> 0 | O62: =O58*O60 -> 0 | Q62: =Q58*Q60 -> 0 | R62: =R58*R60 -> 0
A63: Gross Up
A64: Income Taxes Payable | E64: =E62/(1-E60) -> 0 | F64: =F62/(1-F60) -> 0 | H64: =H62/(1-H60) -> 0 | I64: =I62/(1-I60) -> 0 | K64: =K62/(1-K60) -> 0 | L64: =L62/(1-L60) -> 0 | N64: =N62/(1-N60) -> 0 | O64: =O62/(1-O60) -> 0 | Q64: =Q62/(1-Q60) -> 0 | R64: =R62/(1-R60) -> 0
A65: Grossed Up PILs | E65: =SUM(E64:E64) -> 0 | F65: =SUM(F64:F64) -> 0 | H65: =SUM(H64:H64) -> 0 | I65: =SUM(I64:I64) -> 0 | K65: =SUM(K64:K64) -> 0 | L65: =SUM(L64:L64) -> 0 | N65: =SUM(N64:N64) -> 0 | O65: =SUM(O64:O64) -> 0 | Q65: =SUM(Q64:Q64) -> 0 | R65: =SUM(R64:R64) -> 0
D68: 2015 | E68: =D68+1 -> 2016 | F68: =E68+1 -> 2017 | G68: 2018 | H68: 2019
A69: Net Fixed Assets
B70: Enter applicable amortization in years: | C70: 25
A71: Opening Gross Fixed Assets | E71: =D73 -> 1000 | F71: =E73 -> 1000 | G71: =F73 -> 2000 | H71: =G73 -> 2000
A72: Gross Capital Additions | D72: ='App.2-FA Proposed REG Inves (2'!C53 -> 1000 | E72: ='App.2-FA Proposed REG Inves (2'!D53 -> 0 | F72: ='App.2-FA Proposed REG Inves (2'!E53 -> 1000 | G72: ='App.2-FA Proposed REG Inves (2'!F53 -> 0 | H72: ='App.2-FA Proposed REG Inves (2'!G53 -> 0
A73: Closing Gross Fixed Assets | D73: =SUM(D71:D72) -> 1000 | E73: =SUM(E71:E72) -> 1000 | F73: 2000 | G73: 2000 | H73: 2000
A75: Opening Accumulated Amortization | E75: =D78 -> 20 | F75: =E78 -> 60 | G75: =F78 -> 120 | H75: =G78 -> 200
A76: Current Year Amortization (before additions) | E76: =IF(ISERROR(E71/$C$70), 0, E71/$C$70) -> 40 | F76: =IF(ISERROR(F71/$C$70), 0, F71/$C$70) -> 40 | G76: =IF(ISERROR(G71/$C$70), 0, G71/$C$70) -> 80 | H76: =IF(ISERROR(H71/$C$70), 0, H71/$C$70) -> 80
A77: Additions (half year) | D77: =D72/C70/2 -> 20 | E77: =E72/C70/2 -> 0 | F77: =F72/C70/2 -> 20 | G77: =G72/C70/2 -> 0 | H77: =H72/C70/2 -> 0
A78: Closing Accumulated Amortization | D78: =SUM(D75+D77) -> 20 | E78: =SUM(E75:E77) -> 60 | F78: =SUM(F75:F77) -> 120 | G78: =SUM(G75:G77) -> 200 | H78: =SUM(H75:H77) -> 280
A80: Opening Net Fixed Assets | D80: =D71-D75 -> 0 | E80: =D81 -> 980 | F80: =E81 -> 940 | G80: =F81 -> 1880 | H80: =G81 -> 1800
A81: Closing Net Fixed Assets | D81: =D73-D78 -> 980 | E81: =E73-E78 -> 940 | F81: =F73-F78 -> 1880 | G81: =G73-G78 -> 1800 | H81: =H73-H78 -> 1720
A82: Average Net Fixed Assets | D82: =SUM(D80:D81)/2 -> 490 | E82: =SUM(E80:E81)/2 -> 960 | F82: =SUM(F80:F81)/2 -> 1410 | G82: =SUM(G80:G81)/2 -> 1840 | H82: =SUM(H80:H81)/2 -> 1760
A84: UCC for PILs Calculation
D85: 2015 | E85: =D85+1 -> 2016 | F85: =E85+1 -> 2017 | G85: 2018 | H85: 2019
A87: Opening UCC | E87: =D95 -> 960 | F87: =E95 -> 883.2 | G87: =F95 -> 812.544 | H87: =G95 -> 747.54048
A88: Capital Additions (from Appendix 2-FA) | D88: =D72 -> 1000 | E88: ='App.2-FA Proposed REG Inves (2'!D31 -> 0 | F88: ='App.2-FA Proposed REG Inves (2'!E31 -> 0 | G88: ='App.2-FA Proposed REG Inves (2'!F31 -> 0 | H88: ='App.2-FA Proposed REG Inves (2'!G31 -> 0
A89: UCC Before Half Year Rule | D89: =SUM(D87:D88) -> 1000 | E89: =SUM(E87:E88) -> 960 | F89: =SUM(F87:F88) -> 883.2 | G89: =SUM(G87:G88) -> 812.544 | H89: =SUM(H87:H88) -> 747.54048
A90: Half Year Rule (1/2 Additions - Disposals) | D90: =D88/2 -> 500 | E90: =E88/2 -> 0 | F90: =F88/2 -> 0 | G90: =G88/2 -> 0 | H90: =H88/2 -> 0
A91: Reduced UCC | D91: =D89-D90 -> 500 | E91: =E89-E90 -> 960 | F91: =F89-F90 -> 883.2 | G91: =G89-G90 -> 812.544 | H91: =H89-H90 -> 747.54048
A92: CCA Rate Class (to be entered) | C92: 47 | D92: =C92 -> 47 | E92: =C92 -> 47 | F92: =C92 -> 47 | G92: =C92 -> 47 | H92: =C92 -> 47
A93: CCA Rate (to be entered) | C93: 0.08 | D93: =C93 -> 0.08 | E93: =C93 -> 0.08 | F93: =C93 -> 0.08 | G93: =C93 -> 0.08 | H93: =C93 -> 0.08
A94: CCA | D94: =D91*D93 -> 40 | E94: =E91*E93 -> 76.8 | F94: 70.656 | G94: 65.00352 | H94: =H91*H93 -> 59.8032384
A95: Closing UCC | D95: =D89-D94 -> 960 | E95: =E89-E94 -> 883.2 | F95: =F89-F94 -> 812.544 | G95: =G89-G94 -> 747.54048 | H95: =H89-H94 -> 687.7372416

Sheet App.2-FC Calc of REG Expans (2 (hidden)
E1: File Number: | F1: =EBNUMBER -> 0
E2: Exhibit:
E3: Tab:
E4: Schedule:
E5: Page:
E7: Date:
A9: Appendix 2-FC
A10: Calculation of Renewable Generation Connection Direct Benefits/Provincial Amount: Renewable Expansion Investments
A12: This table will calculate the distributor/provincial shares of the investments entered in Part B of Appendix 2-FA.
A13: Enter values in green shaded cells: WCA percentage, debt percentages, interest rates, kWh, tax rates, amortization period, CCA Class and percentage.
A14: Rate Riders are not calculated for Test Year as these assets and costs are already in the distributors rate base.
D17: 2014 Test Year | G17: 2015 | J17: 2016 | K17: 2016 | M17: 2017 | P17: 2018
E18: Direct Benefit | F18: Provincial | H18: Direct Benefit | I18: Provincial | K18: Direct Benefit | L18: Provincial | N18: Direct Benefit | O18: Provincial | Q18: Direct Benefit | R18: Provincial
D19: Total | E19: 0.17 | F19: 0.83 | G19: Total | H19: 0.17 | I19: 0.83 | J19: Total | K19: 0.17 | L19: 0.83 | M19: Total | N19: 0.17 | O19: 0.83 | P19: Total | Q19: 0.17 | R19: 0.83
A20: Net Fixed Assets (average) | D20: =D81 -> 0 | E20: =D20*E19 -> 0 | F20: =D20*F19 -> 0 | G20: =E81 -> 0 | H20: =G20*H19 -> 0 | I20: =G20*I19 -> 0 | J20: =F81 -> 0 | K20: =J20*K19 -> 0 | L20: =J20*L19 -> 0 | M20: =G81 -> 0 | N20: =M20*N19 -> 0 | O20: =M20*O19 -> 0 | P20: =H81 -> 0 | Q20: =P20*Q19 -> 0 | R20: =P20*R19 -> 0
A21: Incremental OM&A (on-going, N/A for Provincial Recovery) | D21: ='App.2-FA Proposed REG Inves (2'!C$92 -> 0 | E21: =D21 -> 0 | G21: ='App.2-FA Proposed REG Inves (2'!D$92 -> 0 | H21: =G21 -> 0 | J21: ='App.2-FA Proposed REG Inves (2'!E$92 -> 0 | K21: =J21 -> 0 | M21: ='App.2-FA Proposed REG Inves (2'!F$92 -> 0 | N21: =M21 -> 0 | P21: ='App.2-FA Proposed REG Inves (2'!G$92 -> 0 | Q21: =P21 -> 0
A22: Incremental OM&A (start-up, applicable for Provincial Recovery) | D22: ='App.2-FA Proposed REG Inves (2'!C$91 -> 0 | E22: =D22*E19 -> 0 | F22: =D22*F19 -> 0 | G22: ='App.2-FA Proposed REG Inves (2'!D$91 -> 0 | H22: =G22*H19 -> 0 | I22: =G22*I19 -> 0 | J22: ='App.2-FA Proposed REG Inves (2'!E$91 -> 0 | K22: =J22*K19 -> 0 | L22: =J22*L19 -> 0 | M22: ='App.2-FA Proposed REG Inves (2'!F$91 -> 0 | N22: =M22*N19 -> 0 | O22: =M22*O19 -> 0 | P22: ='App.2-FA Proposed REG Inves (2'!G$91 -> 0 | Q22: =P22*Q19 -> 0 | R22: =P22*R19 -> 0
A23: WCA | E23: =(E21+E22)*$B$23 -> 0 | F23: =F22*$B$23 -> 0 | H23: =(H21+H22)*$B$23 -> 0 | I23: =I22*$B$23 -> 0 | K23: =(K21+K22)*$B$23 -> 0 | L23: =L22*$B$23 -> 0 | N23: =(N21+N22)*$B$23 -> 0 | O23: =O22*$B$23 -> 0 | Q23: =(Q21+Q22)*$B$23 -> 0 | R23: =R22*$B$23 -> 0
A24: Rate Base | E24: =SUM(E20+E23) -> 0 | F24: =SUM(F20+F23) -> 0 | H24: =SUM(H20+H23) -> 0 | I24: =SUM(I20+I23) -> 0 | K24: =SUM(K20+K23) -> 0 | L24: =SUM(L20+L23) -> 0 | N24: =SUM(N20+N23) -> 0 | O24: =SUM(O20+O23) -> 0 | Q24: =SUM(Q20+Q23) -> 0 | R24: =SUM(R20+R23) -> 0
A27: Deemed ST Debt | E27: =E24*$B$27 -> 0 | F27: =F24*$B$27 -> 0 | H27: =H24*$B$27 -> 0 | I27: =I24*$B$27 -> 0 | K27: =K24*$B$27 -> 0 | L27: =L24*$B$27 -> 0 | N27: =N24*$B$27 -> 0 | O27: =O24*$B$27 -> 0 | Q27: =Q24*$B$27 -> 0 | R27: =R24*$B$27 -> 0
A28: Deemed LT Debt | E28: =E24*$B$28 -> 0 | F28: =F24*$B$28 -> 0 | H28: =H24*$B$28 -> 0 | I28: =I24*$B$28 -> 0 | K28: =K24*$B$28 -> 0 | L28: =L24*$B$28 -> 0 | N28: =N24*$B$28 -> 0 | O28: =O24*$B$28 -> 0 | Q28: =Q24*$B$28 -> 0 | R28: =R24*$B$28 -> 0
A29: Deemed Equity | E29: =E24*$B$29 -> 0 | F29: =F24*$B$29 -> 0 | H29: =H24*$B$29 -> 0 | I29: =I24*$B$29 -> 0 | K29: =K24*$B$29 -> 0 | L29: =L24*$B$29 -> 0 | N29: =N24*$B$29 -> 0 | O29: =O24*$B$29 -> 0 | Q29: =Q24*$B$29 -> 0 | R29: =R24*$B$29 -> 0
A31: ST Interest | E31: =E27*$B$31 -> 0 | F31: =F27*$B$31 -> 0 | H31: =H27*$B$31 -> 0 | I31: =I27*$B$31 -> 0 | K31: =K27*$B$31 -> 0 | L31: =L27*$B$31 -> 0 | N31: =N27*$B$31 -> 0 | O31: =O27*$B$31 -> 0 | Q31: =Q27*$B$31 -> 0 | R31: =R27*$B$31 -> 0
A32: LT Interest | E32: =E28*$B$32 -> 0 | F32: =F28*$B$32 -> 0 | H32: =H28*$B$32 -> 0 | I32: =I28*$B$32 -> 0 | K32: =K28*$B$32 -> 0 | L32: =L28*$B$32 -> 0 | N32: =N28*$B$32 -> 0 | O32: =O28*$B$32 -> 0 | Q32: =Q28*$B$32 -> 0 | R32: =R28*$B$32 -> 0
A33: ROE | E33: =E29*$B$33 -> 0 | F33: =F29*$B$33 -> 0 | H33: =H29*$B$33 -> 0 | I33: =I29*$B$33 -> 0 | K33: =K29*$B$33 -> 0 | L33: =L29*$B$33 -> 0 | N33: =N29*$B$33 -> 0 | O33: =O29*$B$33 -> 0 | Q33: =Q29*$B$33 -> 0 | R33: =R29*$B$33 -> 0
A34: Cost of Capital Total | E34: =SUM(E31:E33) -> 0 | F34: =SUM(F31:F33) -> 0 | H34: =SUM(H31:H33) -> 0 | I34: =SUM(I31:I33) -> 0 | K34: =SUM(K31:K33) -> 0 | L34: =SUM(L31:L33) -> 0 | N34: =SUM(N31:N33) -> 0 | O34: =SUM(O31:O33) -> 0 | Q34: =SUM(Q31:Q33) -> 0 | R34: =SUM(R31:R33) -> 0
A36: OM&A | E36: =E21+E22 -> 0 | F36: =F22 -> 0 | H36: =H21+H22 -> 0 | I36: =I22 -> 0 | K36: =K21+K22 -> 0 | L36: =L22 -> 0 | N36: =N21+N22 -> 0 | O36: =O22 -> 0 | Q36: =Q21+Q22 -> 0 | R36: =R22 -> 0
A37: Amortization | D37: =D77 -> 0 | E37: =D37*E$19 -> 0 | F37: =D37*F$19 -> 0 | G37: =E75+E76 -> 0 | H37: =G37*H$19 -> 0 | I37: =G37*I$19 -> 0 | J37: =F75+F76 -> 0 | K37: =J37*K$19 -> 0 | L37: =J37*L$19 -> 0 | M37: =G75+G76 -> 0 | N37: =M37*N$19 -> 0 | O37: =M37*O$19 -> 0 | P37: =H75+H76 -> 0 | Q37: =P37*Q$19 -> 0 | R37: =P37*R$19 -> 0
A38: Grossed-up PILs | E38: =E65 -> 0 | F38: =F65 -> 0 | H38: =H65 -> 0 | I38: =I65 -> 0 | K38: =K65 -> 0 | L38: =L65 -> 0 | N38: =N65 -> 0 | O38: =O65 -> 0 | Q38: =Q65 -> 0 | R38: =R65 -> 0
A40: Revenue Requirement | E40: =SUM(E34:E38) -> 0 | F40: =SUM(F34:F38) -> 0 | H40: =SUM(H34:H38) -> 0 | I40: =SUM(I34:I38) -> 0 | K40: =SUM(K34:K38) -> 0 | L40: =SUM(L34:L38) -> 0 | N40: =SUM(N34:N38) -> 0 | O40: =SUM(O34:O38) -> 0 | Q40: =SUM(Q34:Q38) -> 0 | R40: =SUM(R34:R38) -> 0
A43: Provincial Rate Protection | F43: =F40 -> 0 | I43: =I40 -> 0 | L43: =L40 -> 0 | O43: =O40 -> 0 | R43: =R40 -> 0
A45: Monthly Amount Paid by IESO | F45: =F43/12 -> 0 | I45: =I43/12 -> 0 | L45: =L43/12 -> 0 | O45: =O43/12 -> 0 | R45: =R43/12 -> 0
A47: Note 1: The difference between the actual costs of approved eligible investments and revenue received from the IESO should be recorded in a variance account. The Board may provide
A48: regulatory accounting guidance regarding a variance account either in an individual proceeding or on a generic basis.
A49: Note 2: For the 2014 Test Year, Costs and Revenues of the Direct Benefit are to be included in the test year applicant Rate Base and Revenues.
A51: PILs Calculation
E52: 2014 | H52: 2015 | K52: 2016 | N52: 2017 | Q52: 2018
A53: Income Tax | E53: Direct Benefit | F53: Provincial | H53: Direct Benefit | I53: Provincial | K53: Direct Benefit | L53: Provincial | N53: Direct Benefit | O53: Provincial | Q53: Direct Benefit | R53: Provincial
M54: Total | P54: Total
A55: Net Income - ROE on Rate Base | E55: =E33 -> 0 | F55: =F33 -> 0 | H55: =H33 -> 0 | I55: =I33 -> 0 | K55: =K33 -> 0 | L55: =L33 -> 0 | N55: =N33 -> 0 | O55: =O33 -> 0 | Q55: =Q33 -> 0 | R55: =R33 -> 0
A56: Amortization (17% DB and 83% P) | E56: =E37 -> 0 | F56: =F37 -> 0 | H56: =H37 -> 0 | I56: =I37 -> 0 | K56: =K37 -> 0 | L56: =L37 -> 0 | N56: =N37 -> 0 | O56: =O37 -> 0 | Q56: =Q37 -> 0 | R56: =R37 -> 0
A57: CCA (17% DB and 83% P) | E57: =-D93*E$19 -> 0 | F57: =-D93*F$19 -> 0 | H57: =-E93*H$19 -> 0 | I57: =-E93*I$19 -> 0 | K57: =-F93*K$19 -> 0 | L57: =-F93*L$19 -> 0 | N57: =-G93*N$19 -> 0 | O57: =-G93*O$19 -> 0 | Q57: =-H93*Q$19 -> 0 | R57: =-H93*R$19 -> 0
A58: Taxable income | E58: =SUM(E55:E57) -> 0 | F58: =SUM(F55:F57) -> 0 | H58: =SUM(H55:H57) -> 0 | I58: =SUM(I55:I57) -> 0 | K58: =SUM(K55:K57) -> 0 | L58: =SUM(L55:L57) -> 0 | N58: =SUM(N55:N57) -> 0 | O58: =SUM(O55:O57) -> 0 | Q58: =SUM(Q55:Q57) -> 0 | R58: =SUM(R55:R57) -> 0
A60: Tax Rate (to be entered)
A62: Income Taxes Payable | E62: =E58*E60 -> 0 | F62: =F58*F60 -> 0 | H62: =H58*H60 -> 0 | I62: =I58*I60 -> 0 | K62: =K58*K60 -> 0 | L62: =L58*L60 -> 0 | N62: =N58*N60 -> 0 | O62: =O58*O60 -> 0 | Q62: =Q58*Q60 -> 0 | R62: =R58*R60 -> 0
A63: Gross Up
A64: Income Taxes Payable | E64: =E62/(1-E60) -> 0 | F64: =F62/(1-F60) -> 0 | H64: =H62/(1-H60) -> 0 | I64: =I62/(1-I60) -> 0 | K64: =K62/(1-K60) -> 0 | L64: =L62/(1-L60) -> 0 | N64: =N62/(1-N60) -> 0 | O64: =O62/(1-O60) -> 0 | Q64: =Q62/(1-Q60) -> 0 | R64: =R62/(1-R60) -> 0
A65: Grossed Up PILs | E65: =SUM(E64:E64) -> 0 | F65: =SUM(F64:F64) -> 0 | H65: =SUM(H64:H64) -> 0 | I65: =SUM(I64:I64) -> 0 | K65: =SUM(K64:K64) -> 0 | L65: =SUM(L64:L64) -> 0 | N65: =SUM(N64:N64) -> 0 | O65: =SUM(O64:O64) -> 0 | Q65: =SUM(Q64:Q64) -> 0 | R65: =SUM(R64:R64) -> 0
A68: Net Fixed Assets | D68: 2014 | E68: 2015 | F68: 2016 | G68: 2017 | H68: 2018
B69: Enter applicable amortization in years: | C69: 25
A70: Opening Gross Fixed Assets | E70: =D72 -> 0 | F70: =E72 -> 0 | G70: =F72 -> 0 | H70: =G72 -> 0
A71: Gross Capital Additions | D71: ='App.2-FA Proposed REG Inves (2'!C90 -> 0 | E71: ='App.2-FA Proposed REG Inves (2'!D90 -> 0 | F71: ='App.2-FA Proposed REG Inves (2'!E90 -> 0 | G71: ='App.2-FA Proposed REG Inves (2'!F90 -> 0 | H71: ='App.2-FA Proposed REG Inves (2'!G90 -> 0
A72: Closing Gross Fixed Assets | D72: =SUM(D70:D71) -> 0 | E72: =SUM(E70:E71) -> 0 | F72: =SUM(F70:F71) -> 0 | G72: =SUM(G70:G71) -> 0 | H72: =SUM(H70:H71) -> 0
A74: Opening Accumulated Amortization | E74: =D77 -> 0 | F74: =E77 -> 0 | G74: =F77 -> 0 | H74: =G77 -> 0
A75: Current Year Amortization (before additions) | E75: =E70/$C$69 -> 0 | F75: =F70/$C$69 -> 0 | G75: =G70/$C$69 -> 0 | H75: =H70/$C$69 -> 0
A76: Additions (half year) | D76: =D71/C69/2 -> 0 | E76: =E71/C69/2 -> 0 | F76: =F71/C69/2 -> 0 | G76: =G71/C69/2 -> 0 | H76: =H71/C69/2 -> 0
A77: Closing Accumulated Amortization | D77: =SUM(D74+D76) -> 0 | E77: =SUM(E74:E76) -> 0 | F77: =SUM(F74:F76) -> 0 | G77: =SUM(G74:G76) -> 0 | H77: =SUM(H74:H76) -> 0
A79: Opening Net Fixed Assets | D79: =D70-D74 -> 0 | E79: =D80 -> 0 | F79: =E80 -> 0 | G79: =F80 -> 0 | H79: =G80 -> 0
A80: Closing Net Fixed Assets | D80: =D72-D77 -> 0 | E80: =E72-E77 -> 0 | F80: =F72-F77 -> 0 | G80: =G72-G77 -> 0 | H80: =H72-H77 -> 0
A81: Average Net Fixed Assets | D81: =SUM(D79:D80)/2 -> 0 | E81: =SUM(E79:E80)/2 -> 0 | F81: =SUM(F79:F80)/2 -> 0 | G81: =SUM(G79:G80)/2 -> 0 | H81: =SUM(H79:H80)/2 -> 0
A83: UCC for PILs Calculation
D84: 2014 | E84: 2015 | F84: 2016 | G84: 2017 | H84: 2018
A86: Opening UCC | E86: =D94 -> 0 | F86: =E94 -> 0 | G86: =F94 -> 0 | H86: =G94 -> 0
A87: Capital Additions (from Appendix 2-FA) | D87: =D71 -> 0 | E87: =E71 -> 0 | F87: =F71 -> 0 | G87: =G71 -> 0 | H87: =H71 -> 0
A88: UCC Before Half Year Rule | D88: =SUM(D86:D87) -> 0 | E88: =SUM(E86:E87) -> 0 | F88: =SUM(F86:F87) -> 0 | G88: =SUM(G86:G87) -> 0 | H88: =SUM(H86:H87) -> 0
A89: Half Year Rule (1/2 Additions - Disposals) | D89: =D87/2 -> 0 | E89: =E87/2 -> 0 | F89: =F87/2 -> 0 | G89: =G87/2 -> 0 | H89: =H87/2 -> 0
A90: Reduced UCC | D90: =D88-D89 -> 0 | E90: =E88-E89 -> 0 | F90: =F88-F89 -> 0 | G90: =G88-G89 -> 0 | H90: =H88-H89 -> 0
A91: CCA Rate Class (to be entered) | C91: 47 | D91: =C91 -> 47 | E91: =C91 -> 47 | F91: =C91 -> 47 | G91: =C91 -> 47 | H91: =C91 -> 47
A92: CCA Rate (to be entered) | C92: 0.08 | D92: =C92 -> 0.08 | E92: =C92 -> 0.08 | F92: =C92 -> 0.08 | G92: =C92 -> 0.08 | H92: =C92 -> 0.08
A93: CCA | D93: =D90*D$92 -> 0 | E93: =E90*E$92 -> 0 | F93: 0 | G93: 0 | H93: 0
A94: Closing UCC | D94: =D88-D93 -> 0 | E94: =E88-E93 -> 0 | F94: =F88-F93 -> 0 | G94: =G88-G93 -> 0 | H94: =H88-H93 -> 0

Sheet App.2-I LF_CDM_WF_OLD (hidden)
E1: File Number: | F1: =EBNUMBER -> 0 | H1: ='LDC Info'!$E$16 -> 0
E2: Exhibit:
E3: Tab:
E4: Schedule:
E5: Page:
E7: Date:
A9: Appendix 2-I
A10: Load Forecast CDM Adjustment Work Form (2015)
A12: Input the 2011-2014 CDM target in Cell B21.
A14: Input the measured results for 2011 CDM programs for each of the years 2011 and persistence into 2012, 2013 and 2014 into cells B29 to E29. These results are taken from the final 2011 CDM Report issued by the OPA for that distributor in the fall of 2012.
A16: Measured results for 2012 CDM programs for each of the years 2012 and persistence into 2013 and 2014 are input into cells C30 to E30. These results are taken from the final 2012 CDM Report issued by the OPA for that distributor in the fall of 2013. Until that report is issued, the distributor should use the results from the preliminary 2012 CDM Report issued in the spring of 2013.
A18: Based on these inputs, the residual kWh to achieve the 4 year CDM target is allocated so that there is an equal incremental increase in each of the years 2012, 2013 and 2014.
A20: 4 Year (2011-2014) kWh Target:
A21: 100000
B22: 2011 | C22: 2012 | D22: 2013 | E22: 2014 | F22: Total | I22: =B22 -> 2011 | J22: =C22 -> 2012 | K22: =D22 -> 2013 | L22: =E22 -> 2014
A23: 2011 CDM Programs | B23: =B29/$F$33 -> 0.1 | C23: =C29/$F$33 -> 0.1 | D23: 0.1 | E23: 0.095 | F23: =SUM(B23:E23) -> 0.395 | H23: =A23 -> 2011 CDM Programs | I23: =50% -> 0.5 | J23: 1 | K23: 1 | L23: 1
A24: 2012 CDM Programs | C24: 0.12 | D24: 0.1195 | E24: 0.11 | F24: =SUM(B24:E24) -> 0.3495 | H24: =A24 -> 2012 CDM Programs | J24: 0.5 | K24: 1 | L24: 1
A25: 2013 CDM Programs | D25: 0.08516666667 | E25: 0.08516666667 | F25: 0.1703333333 | H25: =A25 -> 2013 CDM Programs | K25: 0.5 | L25: 1
A26: 2014 CDM Programs | E26: 0.08516666667 | F26: 0.08516666667 | H26: =A26 -> 2014 CDM Programs | L26: 0.5
A27: Total in Year | B27: =SUM(B23:B26) -> 0.1 | C27: =SUM(C23:C26) -> 0.22 | D27: 0.3046666667 | E27: 0.3753333333 | F27: =SUM(B27:E27) -> 1
A28: kWh
A29: 2011 CDM Programs | B29: 10000 | C29: 10000 | D29: 10000 | E29: 9500 | F29: =SUM(B29:E29) -> 39500
A30: 2012 CDM Programs | C30: 12000 | D30: 11950 | E30: 11000 | F30: =SUM(B30:E30) -> 34950
A31: 2013 CDM Programs | D31: =(A21-SUM(F29:F30))/3 -> 8516.666667 | E31: =D31 -> 8516.666667 | F31: 17033.33333
A32: 2014 CDM Programs | E32: =D31 -> 8516.666667 | F32: 8516.666667
A33: Total in Year | B33: =SUM(B29:B32) -> 10000 | C33: =SUM(C29:C32) -> 22000 | D33: 30466.66667 | E33: 37533.33333 | F33: =A21 -> 100000
E35: Check | F35: =SUM(F29:F32) -> 100000
A36: From each of the 2006-2010 CDM Final Report, 2011 CDM Final Report, and the 2012 CDM Final Report, issued by the OPA for the distributor, the distributor should input the "gross" and "net" results of the cumulative CDM savings for 2014 into cells D31 to E33. The model will calculate the cumulative savings for all programs from 2006 to 2012 and determine the "net" to "gross" factor "g".
A37: The Board has determined that the "net" number should be used in its Decision and Order with respect to Centre Wellington Hydro Ltd.'s 2013 Cost of Service rates (EB-2012-0113). This approach has also been used in Settlement Agreements accepted by the Board in other 2013 applications. The distributor should select whether the adjustment is done on a "net" or "gross" basis, but must support a proposal for the adjustment being done on a "gross" basis.
A39: Net-to-Gross Conversion
A41: Is CDM adjustment being done on a "net" or "gross" basis? | F41: net
C43: "Gross" | D43: "Net" | E43: Difference | F43: "Net-to-Gross" Conversion Factor
A44: Persistence of Historical CDM programs to 2014 | C44: kWh | D44: kWh | E44: kWh | F44: ('g')
A45: 2006-2010 CDM programs
A46: 2011 CDM program
A47: 2012 CDM program
A48: 2006 to 2011 OPA CDM programs: Persistence to 2014 | C48: =SUM(C45:C47) -> 0 | D48: =SUM(D45:D47) -> 0 | E48: =C48-D48 -> 0 | F48: =IF(D48=0,0,IF(F41="net",0,E48/D48)) -> 0
A50: The default values represent the factor that each year's CDM program is factored into the manual CDM adjustment. Distributors can choose alternative weights of "0", "0.5" or "1" from the drop-down menu for each cell, but must support its alternatives.
A51: These factors do not mean that CDM programs are excluded, but also reflect the assumption that impacts of 2011 and 2012 programs are already implicitly reflected in the actual data for those years that are the basis for the load forecast prior to any manual CDM adjustment.
A53: Weight Factor for Inclusion in CDM Adjustment to 2014 Load Forecast
B54: 2011 | C54: 2012 | D54: 2013 | E54: 2014
A55: Weight Factor for each year's CDM program impact on 2014 load forecast | B55: 0 | C55: 0 | D55: 1 | E55: 0.5 | F55: Utility can select "0", "0.5", or "1" from drop-down list
A56: Default Value selection rationale. | B56: Persistence of 2011 CDM programs for the full year of 2012 means that all of 2011 CDM impact is assumed to be in the base forecast before the CDM Adjustment | C56: 50% of 2012 CDM impact is assumed reflected in base forecast based on 1/2 year rule. | D56: Full year impact of 2013 CDM programs on adjustment for 2014 load forecast | E56: Only 50% of 2014 CDM impact is used based on a half year rule
A59: The Amount used for the CDM threshold of the LRAMVA is the kWh that will be used to determine the base amount for the LRAMVA balance for 2014, for assessing performance against the four-year target. The base amount for 2011-2013 is 0 (zero) for 2014 Cost of Service applications, as the utility rebased prior to the 2011-2014 CDM programs, and there was no adjustment to reflect the impacts of the 2011-2014 programs on the load forecast used to determine their last cost of service-based rates.
A61: The proposed loss factor should correspond with the loss factor calculated in Appendix 2-R
A63: The Manual Adjustment for the 2014 Load Forecast is the amount manually subtracted from the load forecast derived from the base forecast from historical data, and is intended to reflect the further CDM savings that the distributor needs to achieve assuming that they meet 100% of the 2011-2014 CDM target that is a condition of their target.
A65: If the distributor has developed their load forecast on a system purchased basis, then the manual adjustment should be on system purchased basis, including the adjustment for losses. If the load forecast has been developed on a billed basis, either on a system basis or on a class-specific basis, the manual adjustment should be on a billed basis, excluding losses.
A67: The distributor should determine the allocation of the savings to all customer classes in a reasonable manner, for both the LRAMVA and for the load forecast adjustment.
B69: 2011 | C69: 2012 | D69: 2013 | E69: 2014 | F69: Total for 2014
B70: kWh
A71: Amount used for CDM threshold for LRAMVA (2014) | B71: =E29 -> 9500 | C71: =E30 -> 11000 | D71: =E31 -> 8516.666667 | E71: =E32 -> 8516.666667 | F71: =SUM(B71:E71) -> 37533.33333
A73: Manual Adjustment for 2014 Load Forecast (billed basis) | B73: =B71*(1+F48)*B55 -> 0 | C73: =C71*(1+F48)*C55 -> 0 | D73: =D71*(1+F48)*D55 -> 8516.666667 | E73: =E71*(1+F48)*E55 -> 4258.333333 | F73: =SUM(B73:E73) -> 12775
A75: Proposed Loss Factor (TLF) | B75: 0.0479 | C75: Format: X.XX%
A76: Manual Adjustment for 2014 Load Forecast (system purchased basis) | B76: =B73*(1+$B75) -> 0 | C76: =C73*(1+$B75) -> 0 | D76: 8924.615 | E76: 4462.3075 | F76: =SUM(B76:E76) -> 13386.9225
A77: Manual adjustment uses "gross" versus "net" (i.e. numbers multiplied by (1 + g). The Weight factor is also used calculate the impact of each year's program on the CDM adjustment to the 2014 load forecast.

Sheet lists (hidden)
A1: DISTRIBUTED GENERATION [DGEN] | B1: Embedded Distributor | C1: =COUNTA(B1:B17) -> 4 | I1: A Standby Service Charge will be applied for a month where standby power is not provided. The applicable rate is the approved Distribution Volumetric Rate of the applicable service class and is applied to gross metered demand or contracted amount, whichever is greater. A monthly administration charge of $200, for simple metering arrangements, or $500, for complex metering arrangements, will also be applied. | L1: Loss Factors | N1: Units | O1: Units1 | P1: Units2 | Z1: Account History | AA1: Account set up charge/change of occupancy charge (plus credit agency costs if applicable) | AB1: Total Loss Factor – Embedded Distributor – Hydro One Networks Inc. | AL1: Algoma Power Inc. | AM1: Algoma Power Inc. | AO1: DISTRIBUTED GENERATION [DGEN] | AP1: kW | AT1: Sub-Total: Delivery (Distribution and Retail Transmission)
A2: EMBEDDED DISTRIBUTOR | B2: General Service 3,000 to 4,999 kW | I2: Distribution Volumetric Rate | L2: Total Loss Factor – Primary Metered Customer | N2: $ | O2: $/kWh | P2: $ | Z2: Account set up charge/change of occupancy charge | AA2: Administrative Billing Charge | AB2: Total Loss Factor – Primary Metered Customer | AL2: Atikokan Hydro Inc. | AM2: Atikokan Hydro Inc. | AO2: EMBEDDED DISTRIBUTOR | AP2: kW | AT2: Wholesale Market Service Rate | AW2: =AU2*AV2 -> 0 | AX2: =AU2 -> 0 | AY2: 0 | AZ2: =AX2*AY2 -> 0 | BB2: =AZ2-AW2 -> 0 | BC2: =BB2/AW2 -> 
A3: EMBEDDED DISTRIBUTOR | B3: General Service 1,000 to 4,999 kW | I3: Distribution Volumetric Rate - $/kW of contracted amount | L3: Total Loss Factor – Primary Metered Customer < 5,000 kW | N3: $/kWh | O3: $/kW | P3: % | W3: MSC | Z3: Account set up charge/change of occupancy charge (plus credit agency costs if applicable – Residential) | AA3: Bell Canada Pole Rentals | AB3: Total Loss Factor – Primary Metered Customer < 5,000 kW | AL3: Attawapiskat Power Corp. | AM3: Attawapiskat Power Corp. | AO3: EMBEDDED DISTRIBUTOR | AP3: kW | AT3: Rural Rate Protection Charge | AW3: =AU3*AV3 -> 0 | AX3: 0 | AY3: 0 | AZ3: =AX3*AY3 -> 0 | BB3: =AZ3-AW3 -> 0 | BC3: =BB3/AW3 -> 
A4: FARMS - SINGLE PHASE ENERGY-BILLED [F1] | B4: General Service Equal To Or Greater Than 1,500 kW - Interval Metered | I4: Distribution Wheeling Service Rate | L4: Total Loss Factor – Primary Metered Customer > 5,000 kW | N4: $/kW | O4: $/kVA | W4: SM_Rate_Adder | Z4: Account set up charge/change of occupancy charge (plus credit agency costs if applicable) | AA4: Clearance Pole Attachment charge $/pole/year | AB4: Total Loss Factor – Primary Metered Customer > 5,000 kW | AL4: Bluewater Power Distribution Corporation | AM4: Bluewater Power Distribution Corporation | AO4: FARMS - SINGLE PHASE ENERGY-BILLED [F1] | AP4: kWh | AT4: Standard Supply Service – Administration Charge (if applicable) | AW4: =AU4*AV4 -> 0 | AX4: 0 | AY4: 0 | AZ4: =AX4*AY4 -> 0 | BB4: =AZ4-AW4 -> 0 | BC4: =BB4/AW4 -> 
A5: FARMS - THREE PHASE ENERGY-BILLED [F3] | I5: Electricity Rate | L5: Total Loss Factor – Secondary Metered Customer | N5: $/kVA | W5: MSC_Rate_Rider_ | Z5: Arrears certificate | AA5: Collection of account charge – no disconnection | AB5: Total Loss Factor – Secondary Metered Customer | AL5: Brant County Power Inc. | AM5: Brant County Power Inc. | AO5: FARMS - THREE PHASE ENERGY-BILLED [F3] | AP5: kWh | AT5: Sub-Total: Regulatory | AW5: =SUM(AW2:AW4) -> 0 | AZ5: =SUM(AZ2:BA4) -> 0 | BB5: =AZ5-AW5 -> 0 | BC5: =BB5/AW5 -> 
A6: GENERAL SERVICE - COMMERCIAL | I6: Electricity Rate - All Additional kWh | L6: Total Loss Factor – Secondary Metered Customer < 5,000 kW | W6: VC | Z6: Arrears certificate (credit reference) | AA6: Collection of account charge – no disconnection – after regular hours | AB6: Total Loss Factor – Secondary Metered Customer < 5,000 kW | AL6: Brantford Power Inc. | AM6: Brantford Power Inc. | AO6: GENERAL SERVICE - COMMERCIAL | AP6: kW | AT6: Debt Retirement Charge (DRC) | AW6: =AU6*AV6 -> 0 | AX6: =AU6 -> 0 | AY6: =AV6 -> 0 | AZ6: =AX6*AY6 -> 0 | BB6: =AZ6-AW6 -> 0 | BC6: =BB6/AW6 -> 
A7: GENERAL SERVICE - INSTITUTIONAL | I7: Electricity Rate - First 250 kWh | AL7: Burlington Hydro Inc. | AM7: Burlington Hydro Inc. | AO7: GENERAL SERVICE - INSTITUTIONAL | AP7: kW
A8: GENERAL SERVICE 1,000 TO 2,999 KW | I8: Electricity Rate -All Additional kWh | L8: Total Loss Factor – Secondary Metered Customer > 5,000 kW | W8: VC_Rate_Rider_ | Z8: Charge to certify cheque | AA8: Collection of account charge – no disconnection - during regular business hours | AB8: Total Loss Factor – Secondary Metered Customer > 5,000 kW | AL8: Cambridge and North Dumfries Hydro Inc. | AM8: Cambridge and North Dumfries Hydro Inc. | AO8: GENERAL SERVICE 1,000 TO 2,999 KW | AP8: kW | AT8: Total Bill on RPP (before taxes) | BB8: =AZ8-AW8 -> 0
A9: GENERAL SERVICE 1,000 TO 4,999 KW | I9: Electricity Rate First 1,000 kWh | L9: Distribution Loss Factor - Secondary Metered Customer < 5,000 kW | W9: VC_GA_Rate_Rider_kW_ | Z9: Collection of Account Charge – No Disconnection | AA9: Collection of account charge – no disconnection – during regular hours | AL9: Canadian Niagara Power Inc. | AM9: Canadian Niagara Power Inc. - Eastern Ontario Power | AO9: GENERAL SERVICE 1,000 TO 4,999 KW - INTERVAL METERS | AP9: kW | AT9: HST | AW9: =AV9*AW8 -> 0 | AY9: =AV9 -> 0 | AZ9: =AY9*AZ8 -> 0 | BB9: =AZ9-AW9 -> 0 | BC9: =BB9/AW9 -> 
A10: GENERAL SERVICE 1,000 TO 4,999 KW - INTERVAL METERS | I10: Electricity Rate First 25,000 kWh | L10: Distribution Loss Factor - Secondary Metered Customer > 5,000 kW | W10: VC_LV_Rate | Z10: Credit Card Convenience Charge | AA10: Collection/Disconnection/Load Limiter/Reconnection – if in Community | AL10: Centre Wellington Hydro Ltd. | AM10: Canadian Niagara Power Inc. - Fort Erie | AO10: GENERAL SERVICE 1,000 TO 4,999 KW (CO-GENERATION) | AP10: kW | AT10: Total Bill (including HST) | AW10: =AW9+AW8 -> 0 | AZ10: =AZ9+AZ8 -> 0 | BB10: =AZ10-AW10 -> 0 | BC10: =BB10/AW10 -> 
A11: GENERAL SERVICE 1,000 TO 4,999 KW (CO-GENERATION) | I11: Electricity Rate First 6,000 kWh | L11: Distribution Loss Factor - Primary Metered Customer < 5,000 kW | W11: RTSR_Network | Z11: Credit check (plus credit agency costs) | AA11: Credit Card Convenience Charge | AL11: Chapleau Public Utilities Corporation | AM11: Canadian Niagara Power Inc. - Port Colborne Hydro Inc. | AO11: GENERAL SERVICE 1,000 TO 4,999 KW | AP11: kW | AT11: Ontario Clean Energy Benefit (OCEB) | AW11: =-0.1*AW10 -> 0 | AY11: =AV11 -> 0 | AZ11: =-0.1*AZ10 -> 0 | BB11: =AZ11-AW11 -> 0 | BC11: =BB11/AW11 -> 
A12: GENERAL SERVICE 1,500 TO 4,999 KW | I12: Electricity Rate Next 1,500 kWh | L12: Distribution Loss Factor - Primary Metered Customer > 5,000 kW | W12: RTSR_Connection | Z12: Credit reference Letter | AA12: Disconnect/Reconnect at meter – after regular hours | AL12: Clinton Power Corporation | AM12: Centre Wellington Hydro Ltd. | AO12: GENERAL SERVICE 1,500 TO 4,999 KW | AP12: kW | AT12: Total Bill on RPP (including OCEB) | AW12: =AW10+AW11 -> 0 | AZ12: =AZ10+AZ11 -> 0 | BB12: =AZ12-AW12 -> 0 | BC12: =BB12/AW12 -> 
A13: GENERAL SERVICE 2,500 TO 4,999 KW | I13: General Service 1,500 to 4,999 kW customer | AL13: COLLUS Power Corporation | AM13: Chapleau Public Utilities Corporation | AO13: GENERAL SERVICE 2,500 TO 4,999 KW | AP13: kW
A14: GENERAL SERVICE 3,000 TO 4,999 KW | I14: General Service 50 to 1,499 kW customer | L14: Total Loss Factor - Embedded Distributor | W14: RTSR_Network_Interval | Z14: Credit reference/credit check (plus credit agency costs – General Service) | AA14: Disconnect/Reconnect at meter – during regular hours | AL14: Cooperative Hydro Embrun Inc. | AM14: Clinton Power Corporation | AO14: GENERAL SERVICE 3,000 TO 4,999 KW - INTERMEDIATE USE | AP14: kW | AT14: Total Bill on TOU (before taxes) | BB14: =AZ14-AW14 -> 0
A15: GENERAL SERVICE 3,000 TO 4,999 KW - INTERMEDIATE USE | I15: General Service Large Use customer | L15: Total Loss Factor – Embedded Distributor – Hydro One Networks Inc. | W15: RTSR_Connection_Interval | Z15: Credit Reference/credit check (plus credit agency costs) | AA15: Disconnect/Reconnect at pole – after regular hours | AL15: E.L.K. Energy Inc. | AM15: COLLUS Power Corporation | AO15: GENERAL SERVICE 3,000 TO 4,999 KW - INTERVAL METERED | AP15: kW | AT15: HST | AW15: =AV15*AW14 -> 0 | AY15: =AV15 -> 0 | AZ15: =AY15*AZ14 -> 0 | BB15: =AZ15-AW15 -> 0 | BC15: =BB15/AW15 -> 
A16: GENERAL SERVICE 3,000 TO 4,999 KW - INTERVAL METERED | I16: Green Energy Act Initiatives Funding Adder - effective until the date of the next cost of service-based rate order | W16: RTSR_Network_Interval_GR1000kW | Z16: Dispute Test – Commercial self contained -- MC | AA16: Disconnect/Reconnect at pole – during regular hours | AL16: Enersource Hydro Mississauga Inc. | AM16: Cooperative Hydro Embrun Inc. | AO16: GENERAL SERVICE 3,000 TO 4,999 KW - TIME OF USE | AP16: kW | AT16: Total Bill (including HST) | AW16: =AW15+AW14 -> 0 | AZ16: =AZ15+AZ14 -> 0 | BB16: =AZ16-AW16 -> 0 | BC16: =BB16/AW16 -> 
A17: GENERAL SERVICE 3,000 TO 4,999 KW - TIME OF USE | I17: Green Energy Act Plan Funding Adder | W17: RTSR_Connection_Interval_GR1000kW | Z17: Dispute Test – Commercial TT -- MC | AA17: Disconnect/Reconnect Charge – At Meter – After Hours | AL17: Entegrus Powerlines Inc. | AM17: E.L.K. Energy Inc. | AO17: GENERAL SERVICE 3,000 TO 4,999 KW | AP17: kW | AT17: Ontario Clean Energy Benefit (OCEB) | AW17: =-0.1*AW16 -> 0 | AY17: =AV17 -> 0 | AZ17: =-0.1*AZ16 -> 0 | BB17: =AZ17-AW17 -> 0 | BC17: =BB17/AW17 -> 
A18: GENERAL SERVICE 50 TO 1,000 KW | I18: Green Energy Act Plan Funding Adder - effective April 1, 2013 until March 31, 2014 | W18: RTSR_Line_Connection | Z18: Dispute Test – Residential | AA18: Disconnect/Reconnect Charge – At Meter – During Regular Hours | AL18: ENWIN Utilities Ltd. | AM18: Enersource Hydro Mississauga Inc. | AO18: GENERAL SERVICE 50 TO 1,000 KW - INTERVAL METERS | AP18: kW | AT18: Total Bill on TOU (including OCEB) | AW18: =AW16+AW17 -> 0 | AZ18: =AZ16+AZ17 -> 0 | BB18: =AZ18-AW18 -> 0 | BC18: =BB18/AW18 -> 
A19: GENERAL SERVICE 50 TO 1,000 KW - INTERVAL METERS | I19: Green Energy Act Plan Funding Adder - effective April 1, 2014 until March 31, 2015 | W19: RTSR_Transformer_Connection | Z19: Duplicate Invoices for previous billing | AA19: Disconnect/Reconnect Charge – At Pole – After Hours | AL19: Erie Thames Powerlines Corporation | AM19: Entegrus Powerlines Inc. - Chatham-Kent | AO19: GENERAL SERVICE 50 TO 1,000 KW - NON INTERVAL METERS | AP19: kW
A20: GENERAL SERVICE 50 TO 1,000 KW - NON INTERVAL METERS | I20: ICM Rate Rider (2014) - in effect until the effective date of the next cost of service rates | W20: WMSR | Z20: Easement Letter | AA20: Disconnect/Reconnect Charge – At Pole – During Regular Hours | AL20: Espanola Regional Hydro Distribution Corporation | AM20: Entegrus Powerlines Inc. - Dutton | AO20: GENERAL SERVICE 50 TO 1,000 KW | AP20: kW
A21: GENERAL SERVICE 50 TO 1,499 KW | I21: Low Voltage Service Charge | W21: RRRP | Z21: Income Tax Letter | AA21: Disconnect/Reconnect Charges for non payment of account - At Meter After Hours | AL21: Essex Powerlines Corporation | AM21: Entegrus Powerlines Inc. - Newbury | AO21: GENERAL SERVICE 50 TO 1,499 KW - INTERVAL METERED | AP21: kW
A22: GENERAL SERVICE 50 TO 1,499 KW - INTERVAL METERED | I22: Low Voltage Service Rate | W22: SPC | Z22: Interval Meter Interrogation | AA22: Disconnect/Reconnect charges for non payment of account – at meter after regular hours | AL22: Festival Hydro Inc. | AM22: Entegrus Powerlines Inc. - Strathroy, Mounth Brydges & Parkhill | AO22: GENERAL SERVICE 50 TO 1,499 KW | AP22: kW
A23: GENERAL SERVICE 50 TO 2,499 KW | I23: Low Voltage Volumetric Rate | W23: DRC | Z23: Interval meter request change | AA23: Disconnect/Reconnect Charges for non payment of account - At Meter During Regular Hours | AL23: Fort Albany Power Corporation | AM23: ENWIN Utilities Ltd. | AO23: GENERAL SERVICE 50 TO 2,499 KW | AP23: kW
A24: GENERAL SERVICE 50 TO 2,999 KW | I24: LRAM Rate Rider - Effective Until April 30, 2015 | W24: SSS | Z24: Legal letter | AA24: Disconnect/Reconnect charges for non payment of account – at meter during regular hours | AL24: Fort Frances Power Corporation | AM24: Erie Thames Powerlines Corporation | AO24: GENERAL SERVICE 50 TO 2,999 KW - INTERVAL METERED | AP24: kW
A25: GENERAL SERVICE 50 TO 2,999 KW - INTERVAL METERED | I25: Minimum Distribution Charge - per KW of maximum billing demand in the previous 11 months | W25: SFLF | Z25: Legal letter charge | AA25: Disconnect/Reconnect charges for non payment of account – at pole after regular hours | AL25: Greater Sudbury Hydro Inc. | AM25: Espanola Regional Hydro Distribution Corporation | AO25: GENERAL SERVICE 50 TO 2,999 KW - TIME OF USE | AP25: kW
A26: GENERAL SERVICE 50 TO 2,999 KW - TIME OF USE | B26: January | I26: Monthly Distribution Wheeling Service Rate - Dedicated LV Line | W26: DLF_Secondary_LT_5000kW | Z26: Meter dispute charge plus Measurement Canada fees (if meter found correct) | AA26: Disconnect/Reconnect charges for non payment of account – at pole during regular hours | AL26: Grimsby Power Inc. | AM26: Essex Powerlines Corporation | AO26: GENERAL SERVICE 50 TO 2,999 KW | AP26: kW
A27: GENERAL SERVICE 50 TO 4,999 KW | B27: February | I27: Monthly Distribution Wheeling Service Rate - Hydro One Networks | W27: DLF_Secondary_GT_5000kW | Z27: Notification charge | AA27: Disconnect/Reconnection for >300 volts - after regular hours | AL27: Guelph Hydro Electric Systems Inc. | AM27: Festival Hydro Inc. | AO27: GENERAL SERVICE 50 TO 4,999 KW - INTERVAL METERED | AP27: kW
A28: GENERAL SERVICE 50 TO 4,999 KW - INTERVAL METERED | B28: March | I28: Monthly Distribution Wheeling Service Rate - Shared LV Line | W28: DLF_Primary_LT_5000kW | Z28: Pulling Post Dated Cheques | AA28: Disconnect/Reconnection for >300 volts - during regular hours | AL28: Haldimand County Hydro Inc. | AM28: Festival Hydro Inc. - Hensall | AO28: GENERAL SERVICE 50 TO 4,999 KW - TIME OF USE | AP28: kW
A29: GENERAL SERVICE 50 TO 4,999 KW - TIME OF USE | B29: April | I29: Monthly Distribution Wheeling Service Rate - Waterloo North Hydro | W29: DLF_Primary_GT_5000kW | Z29: Request for other billing information | AA29: Disposal of Concrete Poles | AL29: Halton Hills Hydro Inc. | AM29: Fort Albany Power Corporation | AO29: GENERAL SERVICE 50 TO 4,999 KW (COGENERATION) | AP29: kW
A30: GENERAL SERVICE 50 TO 4,999 KW (COGENERATION) | B30: May | I30: Rate Rider for Application of Tax Change - effective until April 30, 2015 | W30: TLF_Secondary_LT_5000kW | Z30: Returned cheque (plus bank charges) | AA30: Dispute Test – Commercial TT -- MC | AL30: Hearst Power Distribution Company Limited | AM30: Fort Frances Power Corporation | AO30: GENERAL SERVICE 50 TO 4,999 KW (FORMERLY TIME OF USE) | AP30: kW
A31: GENERAL SERVICE 50 TO 4,999 KW (FORMERLY TIME OF USE) | B31: June | I31: Rate Rider for Application of Tax Change - effective until December 31, 2014 | W31: TLF_Secondary_GT_5000kW | Z31: Returned cheque charge (plus bank charges) | AA31: Install/Remove load control device – after regular hours | AL31: Horizon Utilities Corporation | AM31: Greater Sudbury Hydro Inc. | AO31: GENERAL SERVICE 50 TO 4,999 KW | AP31: kW
A32: GENERAL SERVICE 50 TO 499 KW | B32: July | I32: Rate Rider for Application of Tax Change (2014) - effective until April 30, 2015 | W32: TLF_Primary_LT_5000kW | Z32: Special Billing Service (aggregation) | AA32: Install/Remove load control device – during regular hours | AL32: Hydro 2000 Inc. | AM32: Grimsby Power Inc. | AO32: GENERAL SERVICE 50 TO 499 KW | AP32: kW
A33: GENERAL SERVICE 50 TO 699 KW | B33: August | I33: Rate Rider for Application of Tax Change (per connection) - effective until April 30, 2015 | W33: TLF_Primary_GT_5000kW | Z33: Special Billing Service (sub-metering charge per meter) | AA33: Interval Meter Interrogation | AL33: Hydro Hawkesbury Inc. | AM33: Guelph Hydro Electric Systems Inc. | AO33: GENERAL SERVICE 50 TO 699 KW | AP33: kW
A34: GENERAL SERVICE 50 TO 999 KW | B34: September | I34: Rate Rider for CGAAP Accounting Changes (2013) - effective until April 30, 2017 | W34: TLF_EmbeddedDistributor | Z34: Special meter reads | AA34: Interval Meter Load Management Tool Charge $/month | AL34: Hydro One Brampton Networks Inc. | AM34: Haldimand County Hydro Inc. | AO34: GENERAL SERVICE 50 TO 999 KW - INTERVAL METERED | AP34: kW
A35: GENERAL SERVICE 50 TO 999 KW - INTERVAL METERED | B35: October | I35: Rate Rider for Deferral/Variance Account (2012) - effective unitl April 30, 2016 | Z35: Statement of Account | AA35: Interval meter request change | AL35: Hydro One Networks Inc. | AM35: Halton Hills Hydro Inc. | AO35: GENERAL SERVICE 50 TO 999 KW | AP35: kW
A36: GENERAL SERVICE 500 TO 4,999 KW | B36: November | I36: Rate Rider for Deferral/Variance Account Disposition – effective until April 30, 2015 | Z36: Unprocessed Payment Charge (plus bank charges) | AA36: Late Payment – per annum | AL36: Hydro Ottawa Limited | AM36: Hearst Power Distribution Company Limited | AO36: GENERAL SERVICE 500 TO 4,999 KW | AP36: kW
A37: GENERAL SERVICE 700 TO 4,999 KW | B37: December | I37: Rate Rider for Deferral/Variance Account Disposition (2012) - effective until April 30, 2016 | AA37: Late Payment – per month | AL37: Innisfil Hydro Distribution Systems Limited | AM37: Horizon Utilities Corporation | AO37: GENERAL SERVICE 700 TO 4,999 KW | AP37: kW
A38: GENERAL SERVICE DEMAND BILLED (50 KW AND ABOVE) [GSD] | I38: Rate Rider for Deferral/Variance Account Disposition (2013) - effective until April 30, 2014 | AA38: Layout fees | AL38: Kashechewan Power Corporation | AM38: Hydro 2000 Inc. | AO38: GENERAL SERVICE DEMAND BILLED (50 KW AND ABOVE) [GSD] | AP38: kW
A39: GENERAL SERVICE ENERGY BILLED (LESS THAN 50 KW) [GSE-METERED] | I39: Rate Rider for Deferral/Variance Account Disposition (2014) - effective until April 28, 2016 | AA39: Meter dispute charge plus Measurement Canada fees (if meter found correct) | AL39: Kenora Hydro Electric Corporation Ltd. | AM39: Hydro Hawkesbury Inc. | AO39: GENERAL SERVICE ENERGY BILLED (LESS THAN 50 KW) [GSE-METERED] | AP39: kWh
A40: GENERAL SERVICE ENERGY BILLED (LESS THAN TO 50 KW) [GSE-UNMETERED] | I40: Rate Rider for Deferral/Variance Account Disposition (2014) - effective until April 30, 2015 | AA40: Meter Interrogation Charge | AL40: Kingston Hydro Corporation | AM40: Hydro One Brampton Networks Inc. | AO40: GENERAL SERVICE ENERGY BILLED (LESS THAN TO 50 KW) [GSE-UNMETERED] | AP40: kWh
A41: GENERAL SERVICE EQUAL TO OR GREATER THAN 1,500 KW | I41: Rate Rider for Deferral/Variance Account Disposition (2014) - effective until Decembeer 31, 2015 | AA41: Missed Service Appointment | AL41: Kitchener-Wilmot Hydro Inc. | AM41: Hydro One Networks Inc. | AO41: GENERAL SERVICE EQUAL TO OR GREATER THAN 1,500 KW - INTERVAL METERED | AP41: kW
A42: GENERAL SERVICE EQUAL TO OR GREATER THAN 1,500 KW - INTERVAL METERED | I42: Rate Rider for Deferral/Variance Account Disposition (2014) - effective until December 30, 2015 | AA42: Norfolk Pole Rentals – Billed | AL42: Lakefront Utilities Inc. | AM42: Hydro Ottawa Limited | AO42: GENERAL SERVICE EQUAL TO OR GREATER THAN 1,500 KW | AP42: kW
A43: GENERAL SERVICE GREATER THAN 1,000 KW | I43: Rate Rider for Deferral/Variance Account Disposition (2014) - effective until December 31, 2014 | AA43: Optional Interval/TOU Meter charge $/month | AL43: Lakeland Power Distribution Ltd. | AM43: Innisfil Hydro Distribution Systems Limited | AO43: GENERAL SERVICE GREATER THAN 1,000 KW | AP43: kW
A44: GENERAL SERVICE GREATER THAN 50 kW - WMP | I44: Rate Rider for Deferral/Variance Account Disposition (2014) - effective until December 31, 2015 | AA44: Overtime Locate | AL44: London Hydro Inc. | AM44: Kashechewan Power Corporation | AO44: GENERAL SERVICE INTERMEDIATE 1,000 TO 4,999 KW | AP44: kW
A45: GENERAL SERVICE INTERMEDIATE 1,000 TO 4,999 KW | I45: Rate Rider for Deferral/Variance Account Dispositon (2012) - effective until April 30, 2016 | AA45: Owner Requested Disconnection/Reconnection – after regular hours | AL45: Midland Power Utility Corporation | AM45: Kenora Hydro Electric Corporation Ltd. | AO45: GENERAL SERVICE INTERMEDIATE RATE CLASS 1,000 TO 4,999 KW (FORMERLY GENERAL SERVICE > 50 KW CUSTOMERS) | AP45: kW
A46: GENERAL SERVICE INTERMEDIATE RATE CLASS 1,000 TO 4,999 KW (FORMERLY GENERAL SERVICE > 50 KW CUSTOMERS) | I46: Rate Rider for Disposition of Accounting Changes Under CGAAP Account 1576 - effective until April 30, 2016 | AA46: Owner Requested Disconnection/Reconnection – during regular hours | AL46: Milton Hydro Distribution inc. | AM46: Kingston Hydro Corporation | AO46: GENERAL SERVICE INTERMEDIATE RATE CLASS 1,000 TO 4,999 KW (FORMERLY LARGE USE CUSTOMERS) | AP46: kW
A47: GENERAL SERVICE INTERMEDIATE RATE CLASS 1,000 TO 4,999 KW (FORMERLY LARGE USE CUSTOMERS) | I47: Rate Rider for Disposition of Deferral/Variance Accounts (2010) - effective until December 31, 2014 | AA47: Returned cheque (plus bank charges) | AL47: Newmarket - Tay Power Distribution Ltd. | AM47: Kitchener-Wilmot Hydro Inc. | AO47: GENERAL SERVICE LESS THAN 50 KW - SINGLE PHASE ENERGY-BILLED [G1] | AP47: kWh
A48: GENERAL SERVICE LESS THAN 50 KW | I48: Rate Rider for Disposition of Deferral/Variance Accounts (2011) - effective until April 30, 2015 | AA48: Rural system expansion / line connection fee | AL48: Niagara Peninsula Energy Inc. | AM48: Lakefront Utilities Inc. | AO48: GENERAL SERVICE LESS THAN 50 KW - THREE PHASE ENERGY-BILLED [G3] | AP48: kWh
A49: GENERAL SERVICE LESS THAN 50 KW - SINGLE PHASE ENERGY-BILLED [G1] | I49: Rate Rider for Disposition of Deferral/Variance Accounts (2011) - effective until April 30, 2016 | AA49: Same Day Open Trench | AL49: Niagara-on-the-Lake Hydro Inc. | AM49: Lakeland Power Distribution Ltd. | AO49: GENERAL SERVICE LESS THAN 50 KW - TRANSMISSION CLASS ENERGY-BILLED [T] | AP49: kWh
A50: GENERAL SERVICE LESS THAN 50 KW - THREE PHASE ENERGY-BILLED [G3] | I50: Rate Rider for Disposition of Deferral/Variance Accounts (2012) - effective until April 30, 2014 | AA50: Scheduled Day Open Trench | AL50: Norfolk Power Distribution Inc. | AM50: London Hydro Inc. | AO50: GENERAL SERVICE LESS THAN 50 KW - URBAN ENERGY-BILLED [UG] | AP50: kWh
A51: GENERAL SERVICE LESS THAN 50 KW - TRANSMISSION CLASS ENERGY-BILLED [T] | I51: Rate Rider for Disposition of Deferral/Variance Accounts (2012) - effective until April 30, 2015 | AA51: Service call – after regular hours | AL51: North Bay Hydro Distribution Limited | AM51: Midland Power Utility Corporation | AO51: GENERAL SERVICE LESS THAN 50 KW | AP51: kWh
A52: GENERAL SERVICE LESS THAN 50 KW - URBAN ENERGY-BILLED [UG] | I52: Rate Rider for Disposition of Deferral/Variance Accounts (2012) - effective until April 30, 2016 | AA52: Service call – customer owned equipment | AL52: Northern Ontario Wires Inc. | AM52: Milton Hydro Distribution inc. | AO52: GENERAL SERVICE SINGLE PHASE - G1 | AP52: kW
A53: GENERAL SERVICE SINGLE PHASE - G1 | I53: Rate Rider for Disposition of Deferral/Variance Accounts (2012) - effective until August 31, 2014 | AA53: Service Call – Customer-owned Equipment – After Regular Hours | AL53: Oakville Hydro Electricity Distribution Inc. | AM53: Newmarket - Tay Power Distribution Ltd. - Newmarket | AO53: GENERAL SERVICE THREE PHASE - G3 | AP53: kW
A54: GENERAL SERVICE THREE PHASE - G3 | I54: Rate Rider for Disposition of Deferral/Variance Accounts (2012) - effective until December 31, 2015 | AA54: Service Call – Customer-owned Equipment – During Regular Hours | AL54: Orangeville Hydro Limited | AM54: Newmarket - Tay Power Distribution Ltd. - Tay | AO54: INTERMEDIATE USERS | AP54: kW
A55: INTERMEDIATE USERS | I55: Rate Rider for Disposition of Deferral/Variance Accounts (2012) - effective until December 31, 2016 Applicable only in the former service area of Clinton Power | AA55: Service Charge for onsite interrogation of interval meter due to customer phone line failure - required weekly until line repaired $ 6 | AL55: Orillia Power Distribution Corporation | AM55: Niagara Peninsula Energy Inc. - Niagara Falls | AO55: INTERMEDIATE WITH SELF GENERATION | AP55: kW
A56: INTERMEDIATE WITH SELF GENERATION | I56: Rate Rider for Disposition of Deferral/Variance Accounts (2012) – effective until December 31, 2016 Applicable only in the former service area of Clinton Power | AA56: Service Layout - Commercial | AL56: Oshawa PUC Networks Inc. | AM56: Niagara Peninsula Energy Inc. - Peninsula West | AO56: LARGE USE - 3TS | AP56: kW
A57: LARGE USE | I57: Rate Rider for Disposition of Deferral/Variance Accounts (2012) - effective until January 31, 2014 | AA57: Service Layout - ResidentiaI | AL57: Ottawa River Power Corporation | AM57: Niagara-on-the-Lake Hydro Inc. | AO57: LARGE USE - FORD ANNEX | AP57: kW
A58: LARGE USE - 3TS | I58: Rate Rider for Disposition of Deferral/Variance Accounts (2012) - effective until June 30, 2014 | AA58: Special Billing Service (sub-metering charge per meter) | AL58: Parry Sound Power Corporation | AM58: Norfolk Power Distribution Inc. | AO58: LARGE USE - REGULAR | AP58: kW
A59: LARGE USE - FORD ANNEX | I59: Rate Rider for Disposition of Deferral/Variance Accounts (2013) - Applicable only to Wholesale Market Participants - effective until April 30, 2015 | AA59: Special meter reads | AL59: Peterborough Distribution Incorporated | AM59: North Bay Hydro Distribution Limited | AO59: LARGE USE > 5000 KW | AP59: kW
A60: LARGE USE - REGULAR | I60: Rate Rider for Disposition of Deferral/Variance Accounts (2013) - effective until April 30, 2014 | AA60: Specific Charge for Access to the Power Poles - $/pole/year | AL60: PowerStream Inc. | AM60: Northern Ontario Wires Inc. | AO60: LARGE USE | AP60: kW
A61: LARGE USE > 5000 KW | I61: Rate Rider for Disposition of Deferral/Variance Accounts (2013) - effective until April 30, 2015 | AA61: Specific Charge for Bell Canada Access to the Power Poles – per pole/year | AL61: PUC Distribution Inc. | AM61: Oakville Hydro Electricity Distribution Inc. | AO61: microFIT | AP61: $
A62: microFIT | I62: Rate Rider for Disposition of Deferral/Variance Accounts (2013) - effective until April 30, 2015, not applicable to Wholesale Market Participants | AA62: Switching for company maintenance – Charge based on Time and Materials | AL62: Renfrew Hydro Inc. | AM62: Orangeville Hydro Limited | AO62: RESIDENTIAL - HENSALL | AP62: kWh
A63: RESIDENTIAL | I63: Rate Rider for Disposition of Deferral/Variance Accounts (2013) - effective until April 30, 2017 | AA63: Temporary Service – Install & remove – overhead – no transformer | AL63: Rideau St. Lawrence Distribution Inc. | AM63: Orillia Power Distribution Corporation | AO63: RESIDENTIAL - HIGH DENSITY [R1] | AP63: kWh
A64: RESIDENTIAL - HENSALL | I64: Rate Rider for Disposition of Deferral/Variance Accounts (2013) - effective until August 31, 2014 | AA64: Temporary Service – Install & remove – overhead – with transformer | AL64: Sioux Lookout Hydro Inc. | AM64: Oshawa PUC Networks Inc. | AO64: RESIDENTIAL - LOW DENSITY [R2] | AP64: kWh
A65: RESIDENTIAL - HIGH DENSITY [R1] | I65: Rate Rider for Disposition of Deferral/Variance Accounts (2013) - effective until December 31, 2014 | AA65: Temporary Service – Install & remove – underground – no transformer | AL65: St. Thomas Energy Inc. | AM65: Ottawa River Power Corporation | AO65: RESIDENTIAL - MEDIUM DENSITY [R1] | AP65: kWh
A66: RESIDENTIAL - LOW DENSITY [R2] | I66: Rate Rider for Disposition of Deferral/Variance Accounts (2013) - effective until May 31, 2014 | AA66: Temporary service install & remove – overhead – no transformer | AL66: Thunder Bay Hydro Electricity Distribution Inc. | AM66: Parry Sound Power Corporation | AO66: RESIDENTIAL - NORMAL DENSITY [R2] | AP66: kWh
A67: RESIDENTIAL - MEDIUM DENSITY [R1] | I67: Rate Rider for Disposition of Deferred PILs Variance Account 1562 - effective until March 31, 2016 | AA67: Temporary Service Install & Remove – Overhead – With Transformer | AL67: Tillsonburg Hydro Inc. | AM67: Peterborough Distribution Incorporated | AO67: RESIDENTIAL - TIME OF USE | AP67: kWh
A68: RESIDENTIAL - NORMAL DENSITY [R2] | I68: Rate Rider for Disposition of Deferred PILs Variance Account 1562 (2012) - effective until April 30, 2015 | AA68: Temporary Service Install & Remove – Underground – No Transformer | AL68: Toronto Hydro-Electric System Limited | AM68: PowerStream Inc. - Barrie | AO68: RESIDENTIAL - URBAN [UR] | AP68: kWh
A69: RESIDENTIAL - TIME OF USE | I69: Rate Rider for Disposition of Deferred PILs Variance Account 1562 (2012) - effective until April 30, 2016 | AA69: Temporary service installation and removal – overhead – no transformer | AL69: Veridian Connections Inc. | AM69: PowerStream Inc. - South | AO69: RESIDENTIAL REGULAR | AP69: kWh
A70: RESIDENTIAL - URBAN [UR] | I70: Rate Rider for Disposition of Deferred PILs Variance Account 1562 (2nd Installment - 2012) - effective until April 30, 2016 | AA70: Temporary service installation and removal – overhead – with transformer | AL70: Wasaga Distribution Inc. | AM70: PUC Distribution Inc. | AO70: RESIDENTIAL | AP70: kWh
A71: RESIDENTIAL REGULAR | I71: Rate Rider for Disposition of Deferred PILs Variance Account 1562 (per connection) (2012) - effective until April 30, 2015 | AA71: Temporary service installation and removal – underground – no transformer | AL71: Waterloo North Hydro Inc. | AM71: Renfrew Hydro Inc. | AO71: RESIDENTIAL SUBURBAN SEASONAL | AP71: kWh
A72: RESIDENTIAL SUBURBAN | I72: Rate Rider for Disposition of Deferred PILs Variance Account 1562 (per connection) (2012) - effective until April 30, 2016 | AL72: Welland Hydro-Electric System Corp. | AM72: Rideau St. Lawrence Distribution Inc. | AO72: RESIDENTIAL SUBURBAN | AP72: kWh
A73: RESIDENTIAL SUBURBAN SEASONAL | I73: Rate Rider for Disposition of Global Adjustment Sub-Account (2011) - effective until April 30, 2015 Applicable only for Non-RPP Customers | AL73: Wellington North Power Inc. | AM73: Sioux Lookout Hydro Inc. | AO73: RESIDENTIAL SUBURBAN YEAR ROUND | AP73: kWh
A74: RESIDENTIAL SUBURBAN YEAR ROUND | I74: Rate Rider for Disposition of Global Adjustment Sub-Account (2011) - effective until April 30, 2016 Applicable only for Non-RPP Customers | AL74: West Coast Huron Energy Inc. | AM74: St. Thomas Energy Inc. | AO74: RESIDENTIAL URBAN | AP74: kWh
A75: RESIDENTIAL URBAN | I75: Rate Rider for Disposition of Global Adjustment Sub-Account (2012) - effective until April 30, 2014 Applicable only for Non-RPP Customers | AL75: West Perth Power Inc. | AM75: Thunder Bay Hydro Electricity Distribution Inc. | AO75: RESIDENTIAL URBAN YEAR-ROUND | AP75: kWh
A76: RESIDENTIAL URBAN YEAR-ROUND | I76: Rate Rider for Disposition of Global Adjustment Sub-Account (2012) - effective until April 30, 2015 Applicable only for Non-RPP Customers | AL76: Westario Power Inc. | AM76: Tillsonburg Hydro Inc. | AO76: SEASONAL RESIDENTIAL - HIGH DENSITY [R3] | AP76: kWh
A77: SEASONAL RESIDENTIAL | I77: Rate Rider for Disposition of Global Adjustment Sub-Account (2012) - effective until April 30, 2015 Applicatble only for Non-RPP Customers | AL77: Whitby Hydro Electric Corporation | AM77: Toronto Hydro-Electric System Limited | AO77: SEASONAL RESIDENTIAL - NORMAL DENSITY [R4] | AP77: kWh
A78: SEASONAL RESIDENTIAL - HIGH DENSITY [R3] | I78: Rate Rider for Disposition of Global Adjustment Sub-Account (2012) - effective until April 30, 2016 Applicable only for Non-RPP Customers | AL78: Woodstock Hydro Services Inc. | AM78: Veridian Connections Inc. | AO78: SEASONAL RESIDENTIAL | AP78: kWh
A79: SEASONAL RESIDENTIAL - NORMAL DENSITY [R4] | I79: Rate Rider for Disposition of Global Adjustment Sub-Account (2012) - effective until January 31, 2014. Applicable only for Non-RPP Customers | AM79: Veridian Connections Inc. - Gravenhurst | AO79: SENTINEL LIGHTING | AP79: kW
A80: SENTINEL LIGHTING | I80: Rate Rider for Disposition of Global Adjustment Sub-Account (2012) - effective until June 30, 2014 Applicable only for Non-RPP Customers | AM80: Wasaga Distribution Inc. | AO80: SMALL COMMERCIAL AND USL - PER CONNECTION | AP80: kW
A81: SMALL COMMERCIAL AND USL - PER CONNECTION | I81: Rate Rider for Disposition of Global Adjustment Sub-Account (2012) Applicable only for Non-RPP Customers - effective until August 31, 2014 | AM81: Waterloo North Hydro Inc. | AO81: SMALL COMMERCIAL AND USL - PER METER | AP81: kW
A82: SMALL COMMERCIAL AND USL - PER METER | I82: Rate Rider for Disposition of Global Adjustment Sub-Account (2012) Applicable only to Non-RPP Customers - effective until August 31, 2014 | AM82: Welland Hydro-Electric System Corp. | AO82: STANDARD A GENERAL SERVICE AIR ACCESS | AP82: kW
A83: STANDARD A GENERAL SERVICE AIR ACCESS | I83: Rate Rider for Disposition of Global Adjustment Sub-Account (2013) - effective until April 30, 2014 Applicable only for Non-RPP Customers | AM83: Wellington North Power Inc. | AO83: STANDARD A GENERAL SERVICE ROAD/RAIL | AP83: kW
A84: STANDARD A GENERAL SERVICE ROAD/RAIL | I84: Rate Rider for Disposition of Global Adjustment Sub-Account (2013) - effective until April 30, 2015 Applicable only for Non-RPP Customers | AM84: West Coast Huron Energy Inc. | AO84: STANDARD A RESIDENTIAL AIR ACCESS | AP84: kW
A85: STANDARD A GRID CONNECTED | I85: Rate Rider for Disposition of Global Adjustment Sub-Account (2013) - effective until April 30, 2015 Applicable only for Non-RPP Customers and excluding Wholesale Market Participants | AM85: West Perth Power Inc. | AO85: STANDARD A RESIDENTIAL ROAD/RAIL | AP85: kW
A86: STANDARD A RESIDENTIAL AIR ACCESS | I86: Rate Rider for Disposition of Global Adjustment Sub-Account (2013) - effective until April 30, 2017 Applicable only for Non-RPP Customers | AM86: Westario Power Inc. | AO86: STANDBY - GENERAL SERVICE 1,000 - 5,000 KW | AP86: kW
A87: STANDARD A RESIDENTIAL ROAD/RAIL | I87: Rate Rider For Disposition of Global Adjustment Sub-Account (2013) - effective until August 31, 2014 Applicable only for Non-RPP Customers | AM87: Whitby Hydro Electric Corporation | AO87: STANDBY - GENERAL SERVICE 50 - 1,000 KW | AP87: kW
A88: STANDBY - GENERAL SERVICE 1,000 - 5,000 KW | I88: Rate Rider for Disposition of Global Adjustment Sub-Account (2013) - effective until December 31, 2014 Applicable only for Non-RPP Customers | AM88: Woodstock Hydro Services Inc. | AO88: STANDBY - LARGE USE | AP88: kW
A89: STANDBY - GENERAL SERVICE 50 - 1,000 KW | I89: Rate Rider for Disposition of Global Adjustment Sub-Account (2013) - effective until May 31, 2014 Applicable only for Non-RPP Customers | AO89: STANDBY DISTRIBUTION SERVICE | AP89: kW
A90: STANDBY - LARGE USE | I90: Rate Rider for Disposition of Global Adjustment Sub-Account (2014) - effective until December 31, 2014. Applicable only for Non-RPP - Class B Customers | AO90: STANDBY POWER - APPROVED ON AN INTERIM BASIS | AP90: kW
A91: STANDBY DISTRIBUTION SERVICE | I91: Rate Rider for Disposition of Global Adjustment Sub-Account (2014) - effective until December 31, 2014. Applicable only for Non-RPP Customers | AO91: STANDBY POWER GENERAL SERVICE 1,500 TO 4,999 KW | AP91: kW
A92: STANDBY POWER | I92: Rate Rider for Disposition of Global Adjustment Sub-Account (2014) - effective until December 31, 2014. Applicable only for Non-RPP Customers - Class A Customers | AO92: STANDBY POWER GENERAL SERVICE 50 TO 1,499 KW | AP92: kW
A93: STANDBY POWER - APPROVED ON AN INTERIM BASIS | I93: Rate Rider for Disposition of Global Adjustment Sub-Account (2014) - effective until December 31, 2014. Applicable only for Non-RPP Customers - Interval Metered | AO93: STANDBY POWER GENERAL SERVICE LARGE USE | AP93: kW
A94: STANDBY POWER GENERAL SERVICE 1,500 TO 4,999 KW | I94: Rate Rider for Disposition of Global Adjustment Sub-Account (2014) - effective until December 31, 2014. Applicable only for Non-RPP Customers - Non Interval Metered | AO94: STANDBY POWER | AP94: kW
A95: STANDBY POWER GENERAL SERVICE 50 TO 1,499 KW | I95: Rate Rider for Disposition of Post Retirement Actuarial Gain - effective until March 31, 2025 | AO95: STREET LIGHTING | AP95: kWh
A96: STANDBY POWER GENERAL SERVICE LARGE USE | I96: Rate Rider for Disposition of Residual Hisotrical Smart Meter Costs - effective until April 30, 2015 | AO96: SUB TRANSMISSION [ST] | AP96: kW
A97: STREET LIGHTING | I97: Rate Rider for Disposition of Residual Hisotrical Smart Meter Costs - effective until April 30, 2017 | AO97: UNMETERED SCATTERED LOAD | AP97: kWh
A98: SUB TRANSMISSION [ST] | I98: Rate Rider for Disposition of Residual Historical Smart Meter Costs - effective until April 30, 2014 | AO98: URBAN GENERAL SERVICE DEMAND BILLED (50 KW AND ABOVE) [UGD] | AP98: kW
A99: UNMETERED SCATTERED LOAD | I99: Rate Rider for Disposition of Residual Historical Smart Meter Costs - effective until April 30, 2016 | AO99: URBAN GENERAL SERVICE ENERGY BILLED (LESS THAN 50 KW) [UGE] | AP99: kWh
A100: URBAN GENERAL SERVICE DEMAND BILLED (50 KW AND ABOVE) [UGD] | I100: Rate Rider for Disposition of Residual Historical Smart Meter Costs - effective until August 31, 2014 | AO100: WESTPORT SEWAGE TREATMENT PLANT | AP100: kW
A101: URBAN GENERAL SERVICE ENERGY BILLED (LESS THAN 50 KW) [UGE] | I101: Rate Rider for Disposition of Residual Historical Smart Meter Costs - effective until August 31, 2015 | AO101: YEAR-ROUND RESIDENTIAL - R2 | AP101: kWh
A102: WESTPORT SEWAGE TREATMENT PLANT | I102: Rate Rider for Disposition of Residual Historical Smart Meter Costs - effective until December 31, 2014
A103: YEAR-ROUND RESIDENTIAL - R2 | I103: Rate Rider for Disposition of Residual Historical Smart Meter Costs – effective until December 31, 2014
I104: Rate Rider for Disposition of Residual Historical Smart Meter Costs - effective until December 31, 2015
I105: Rate Rider for Disposition of Residual Historical Smart Meter Costs - effective until December 31, 2016
I106: Rate Rider for Disposition of Residual Historical Smart Meter Costs - effective until October 31, 2014
I107: Rate Rider for Disposition of Residual Historical Smart Meter Costs - effective until September 30, 2014
I108: Rate Rider for Disposition of Residual Historical Smart Meter Costs - Non-Interval Metered - effective until April 30, 2014
I109: Rate Rider for Disposition of Residual Historical Smart Meter Costs 2 - in effect until the effective date of the next cost of service-based rate order
I110: Rate Rider for Disposition of Residual Historical Smart Meter Costs 3 - in effect until the effective date of the next cost of service-based rate order
I111: Rate Rider for Disposition of Residual Incremental Historical Smart Meter Costs - effective until August 31, 2015
I112: Rate Rider for Disposition of Stranded Meter costs - effective until April 30, 2015
I113: Rate Rider for Disposition of Stranded Meter Costs - effective until April 30, 2016
I114: Rate Rider for Disposition of Stranded Meter Costs - effective until April 30, 2017
I115: Rate Rider for Global Adjustment Sub Account Disposition - effective until April 30, 2016 Applicable only for Non RPP Customers
I116: Rate Rider for Global Adjustment Sub-Account Disposition Applicable only for Non-RPP Customers – effective until April 30, 2015
I117: Rate Rider for Global Adjustment Sub-Account Disposition (2014) - effective until April 28, 2016 Applicable only for Non-RPP Customers
I118: Rate Rider for Global Adjustment Sub-Account Disposition (2014) - effective until April 30, 2015 Applicable only for Non-RPP Customers
I119: Rate Rider for Global Adjustment Sub-Account Disposition (2014) - effective until December 30, 2015 Applicable only for Non-RPP Customers
I120: Rate Rider for Global Adjustment Sub-Account Disposition (2014) - effective until December 31, 2014 Applicable only for Non-RPP Customers
I121: Rate Rider for Global Adjustment Sub-Account Disposition (2014) - effective until December 31, 2015 Applicable only for Non-RPP Customers
I122: Rate Rider for Global Adjustment Sub-Account Disposition (2014) - effective until December, 2015 Applicable only for Non-RPP Customers
I123: Rate Rider for Incremental Capital - Distribution Volumetric - effective until April 30, 2016
I124: Rate Rider for Incremental Capital - Service Charge - effective until April 30, 2016
I125: Rate Rider for Incremental Capital (2012) - effective until April 30, 2015
I126: Rate Rider for Lost Revenue Adjustment Mechanism Variance Account (LRAMVA) Recovery (2012 CDM Activities) - effective until April 30, 2015
I127: Rate Rider for Recover of Residual Historical Smart meter Costs - effective until June 30, 2014
I128: Rate Rider for Recovery of CGAAP/CWIP Differential - in effect until December 31, 2016
I129: Rate Rider for Recovery of Foregone Revenue - effective until April 30, 2015
I130: Rate Rider for Recovery of Forgone Revenue - effective until April 30, 2015
I131: Rate Rider for Recovery of Forgone Revenue - effective until December 31, 2014
I132: Rate Rider for Recovery of Green Energy Act related costs - effective until December 31, 2014
I133: Rate Rider for Recovery of Incremental Capital (2013) - in effect until the effective date of the next cost of service-based rate order
I134: Rate Rider for Recovery of Incremental Capital (2013) - in effect until the effective date of the next cost of service-based rate order
I135: Rate Rider for Recovery of Incremental Capital (2013) (per connection) - in effect until the effective date of the next cost of service-based rate order
I136: Rate Rider for Recovery of Incremental Capital (2013) (per connection)- in effect until the effective date of the next cost of service-based rate order
I137: Rate Rider for Recovery of Incremental Capital Costs
I138: Rate Rider for Recovery of Incremental Capital Costs - effective until April 30, 2015
I139: Rate Rider for Recovery of Lost Revenue Adjustment Mechanism ( LRAM)/Shared Savings Mechanism (SSM) (2012) - effective until August 31, 2014
I140: Rate Rider for Recovery of Lost Revenue Adjustment Mechanism (2013) - effective until December 31, 2014
I141: Rate Rider for Recovery of Lost Revenue Adjustment Mechanism (LRAM) - effective until April 30, 2016
I142: Rate Rider for Recovery of Lost Revenue Adjustment Mechanism (LRAM) (pre-2011 CDM Activities) - effective until April 30, 2015
I143: Rate Rider for Recovery of Lost Revenue Adjustment Mechanism (LRAM) (pre-2011 CDM Activities) (2013) - effective until April 30, 2015
I144: Rate Rider for Recovery of Lost Revenue Adjustment Mechanism (LRAM)/Shared Savings
I145: Rate Rider for Recovery of Lost Revenue Adjustment Mechanism (LRAM)/Shared Savings Mechanism (SSM) - effective until December 31, 2014 and applicable in the service area excluding the former service area of Clinton Power
I146: Rate Rider for Recovery of Lost Revenue Adjustment Mechanism (LRAM)/Shared Savings Mechanism (SSM) - effective until December 31, 2014 and applicable in the service area excluding the former service areas of Clinton Power and West Perth Power
I147: Rate Rider for Recovery of Lost Revenue Adjustment Mechanism (LRAM)/Shared Savings Mechanism (SSM) - effective until December 31, 2014 and applicable only in the former service area of Clinton Power
I148: Rate Rider for Recovery of Lost Revenue Adjustment Mechanism (LRAM)/Shared Savings Mechanism (SSM) - effective until December 31, 2014 and applicable only in the former service area of West Perth Power
I149: Rate Rider for Recovery of Lost Revenue Adjustment Mechanism (LRAM)/Shared Savings Mechanism (SSM) - effective until March 31, 2016
I150: Rate Rider for Recovery of Lost Revenue Adjustment Mechanism (LRAM)/Shared Savings Mechanism (SSM) (2012) - effective until August 31, 2014
I151: Rate Rider for Recovery of Lost Revenue Adjustment Mechanism (LRAM)/Shared Savings Mechanism (SSM) Recovery - effective until April 30, 2015
I152: Rate Rider for Recovery of Lost Revenue Adjustment Mechanism Variance Account (LRAMVA) (2014) - effective until April 30, 2015
I153: Rate Rider for Recovery of Residual Historical Smart Meter Costs - effective July 1, 2012 - April 30, 2016
I154: Rate Rider for Recovery of Smart Meter Incremental Revenue Requirement - effective until the date of the next cost of service-based rate order
I155: Rate Rider for Recovery of Smart Meter Incremental Revenue Requirement - effective until the effective date of the next cost of service-based rate order, or October 31, 2017, whichever occurs earlier
I156: Rate Rider for Recovery of Smart Meter Incremental Revenue Requirement - in effect until the effective date of the next cost of service-based rate order
I157: Rate Rider for Recovery of Smart Meter Incremental Revenue Requirement - Non-Interval Metered - in effect until the effective date of the next cost of service-based rate order
I158: Rate Rider for Recovery of Smart Meter Incremental Revenue Requirements - in effect until the effective date of the next cost of service application
I159: Rate Rider for Recovery of Smart Meter Stranded Assets - effective until April 30, 2016
I160: Rate Rider for Recovery of Storm Damage Costs - effective until August 31, 2017
I161: Rate Rider for Recovery of Stranded Assets - effective until April 30, 2016
I162: Rate Rider for Recovery of Stranded Meter Assets - effective July 1, 2012 - April 30, 2016
I163: Rate Rider for Recovery of Stranded Meter Assets – effective until April 30, 2015
I164: Rate Rider for Recovery of Stranded Meter Assets - effective until April 30, 2016
I165: Rate Rider for Recovery of Stranded Meter Assets - effective until April 30, 2017
I166: Rate Rider for Recovery of Stranded Meter Assets - effective until August 31, 2015
I167: Rate Rider for Recovery of Stranded Meter Assets - effective until August 31, 2017
I168: Rate Rider for Recovery of Stranded Meter Assets - effective until December 31, 2014
I169: Rate Rider for Recovery of Stranded Meter Assets - effective until December 31, 2015
I170: Rate Rider for Recovery of Stranded Meter Assets - effective until June 30, 2016
I171: Rate Rider for Recovery of Stranded Meter Assets - effective until March 31, 2016
I172: Rate Rider for Recovery of Stranded Meter Assets - effective until May 31, 2014
I173: Rate Rider for Reversal of Deferral/Variance Account Disposition (2011) - effective until April 30, 2015
I174: Rate Rider for Smart Meter Disposition - effective until April 30, 2016
I175: Rate Rider for Smart Meter Incremental Revenue Requirement - in effect until the effective date of the next cost of service-based rate order
I176: Rate Rider for Smart Metering Entity Charge - effective until October 31, 2018
I177: Rate Rider for Stranded Meter Cost Recovery - effective until April 30, 2017
I178: Rate Rider for Tax Change
I179: Rate Rider for Tax Change - effective until April 30, 2015
I180: Rate Rider for Tax Change (2014) - effective until April 30, 2015
I181: Retail Transmission Rate - Line and Transformation Connection Service Rate
I182: Retail Transmission Rate - Line and Transformation Connection Service Rate - (less than 1,000 kW)
I183: Retail Transmission Rate - Line and Transformation Connection Service Rate - Interval Metered
I184: Retail Transmission Rate - Line and Transformation Connection Service Rate - Interval Metered (1,000 to 4,999 kW)
I185: Retail Transmission Rate - Line and Transformation Connection Service Rate - Interval Metered (less than 1,000 kW)
I186: Retail Transmission Rate - Line and Transformation Connection Service Rate - Interval Metered < 1,000 kW
I187: Retail Transmission Rate - Line and Transformation Connection Service Rate - Interval Metered > 1,000 kW
I188: Retail Transmission Rate - Line and Transformation Connection Service Rate FOR ALL SERVICE AREAS EXCEPT HENSALL
I189: Retail Transmission Rate - Line Connection Service Rate
I190: Retail Transmission Rate - Network Service Rate
I191: Retail Transmission Rate - Network Service Rate - (less than 1,000 kW)
I192: Retail Transmission Rate - Network Service Rate - Interval Metered
I193: Retail Transmission Rate - Network Service Rate - Interval Metered (1,000 to 4,999 kW)
I194: Retail Transmission Rate - Network Service Rate - Interval Metered (less than 1,000 kW)
I195: Retail Transmission Rate - Network Service Rate - Interval Metered > 1,000 kW
I196: Retail Transmission Rate - Transformation Connection Service Rate
I197: Rider for Global Adjustment Sub-Account Disposition (2012) - effective until April 30, 2016 Applicable only for Non-RPP Customers
I198: Rural or Remote Electricity Rate Protection Charge (RRRP)
I199: Sentinel lights (dusk-to-dawn) connected to unmetered wires will have a flat rate monthly energy charge added to the regular customer bill. Further servicing details are available in the distributor’s Conditions of Service.
I200: Service Charge
... 12 more rows

Sheet lists2 (hidden)
A1: RESIDENTIAL Service Classification
A4: APPLICATION
A11: MONTHLY RATES AND CHARGES - Delivery Component
A44: MONTHLY RATES AND CHARGES - Regulatory Component
A46: Wholesale Market Service Rate | C46: $/kWh | D46: 0.0044
A47: Rural Rate Protection Charge | C47: $/kWh | D47: 0.0011
A48: Standard Supply Service - Administrative Charge (if applicable) | C48: $ | D48: 0.25
A53: ALLOWANCES
A55: Transformer Allowance for Ownership - per kW of billing demand/month
A58: Primary Metering Allowance for transformer losses – applied to measured demand and energy
A60: SPECIFIC SERVICE CHARGES
A62: APPLICATION
A64: The application of these rates and charges shall be in accordance with the Licence of the Distributor and any Code or Order of the Board, and amendments thereto as approved by the Board, which may be applicable to the administration of this schedule.
A66: No charges to meet the costs of any work or service done or furnished for the purpose of the distribution of electricity shall be made except as permitted by this schedule, unless required by the Distributor’s Licence or a Code or Order of the Board, and amendments thereto as approved by the Board, or as specified herein.
A68: It should be noted that this schedule does not list any charges, assessments or credits that are required by law to be invoiced by a distributor and that are not subject to Board approval, such as the Debt Retirement Charge, the Global Adjustment, the Ontario Clean Energy Benefit and the HST.
A70: Customer Administration
A108: Non-Payment of Account
A159: RETAIL SERVICE CHARGES (if applicable)
A161: The application of these rates and charges shall be in accordance with the Licence of the Distributor and any Code or Order of the Board, and amendments thereto as approved by the Board, which may be applicable to the administration of this schedule.
A163: No rates and charges for the distribution of electricity and charges to meet the costs of any work or service done or furnished for the purpose of the distribution of electricity shall be made except as permitted by this schedule, unless required by the Distributor’s Licence or a Code or Order of the Board, and amendments thereto as approved by the Board, or as specified herein.
A165: Unless specifically noted, this schedule does not contain any charges for the electricity commodity, be it under the Regulated Price Plan, a contract with a retailer or the wholesale market price, as applicable.
A167: It should be noted that this schedule does not list any charges, assessments or credits that are required by law to be invoiced by a distributor and that are not subject to Board approval, such as the Debt Retirement Charge, the Global Adjustment, the Ontario Clean Energy Benefit and the HST.
A169: Retail Service Charges refer to services provided by a distributor to retailers or customers related to the supply of competitive electricity.
A171: One-time charge, per retailer, to establish the service agreement between the distributor and the retailer | C171: $ | D171: 100
A172: Monthly Fixed Charge, per retailer | C172: $ | D172: 20
A173: Monthly Variable Charge, per customer, per retailer | C173: $/cust. | D173: 0.5
A174: Distributor-consolidated billing monthly charge, per customer, per retailer | C174: $/cust. | D174: 0.3
A175: Retailer-consolidated billing monthly credit, per customer, per retailer | C175: $/cust. | D175: -0.3
A176: Service Transaction Requests (STR)
A177: Request fee, per request, applied to the requesting party | C177: $ | D177: 0.25
A178: Processing fee, per request, applied to the requesting party | C178: $ | D178: 0.5
A179: Request for customer information as outlined in Section 10.6.3 and Chapter 11 of the Retail
A180: Settlement Code directly to retailers and customers, if not delivered electronically through the
A181: Electronic Business Transaction (EBT) system, applied to the requesting party
A182: Up to twice a year | C182: $ | D182: no charge
A183: More than twice a year, per request (plus incremental delivery costs) | C183: $ | D183: 2
A185: LOSS FACTORS
A187: If the distributor is not capable of prorating changed loss factors jointly with distribution rates, the revised loss factors will be implemented upon the first subsequent billing for each billing cycle.

Sheet Sheet19 (hidden)
B1: CGAAP | C1: CGAAP | D1: CGAAP | E1: MIFRS | F1: USGAAP | G1: ASPE | H1: ASPE | I1: ASPE
B2: N/A | C2: 2012 | D2: 2013 | G2: N/A | H2: 2012 | I2: 2013
A3: LDC Info | B3: x | C3: x | D3: x | E3: x | F3: x | G3: x | H3: x | I3: x
A4: Table of Contents | B4: x | C4: x | D4: x | E4: x | F4: x | G4: x | H4: x | I4: x
A5: COS Flowchart | B5: x | C5: x | D5: x | E5: x | F5: x | G5: x | H5: x | I5: x
A6: List of Key References | B6: x | C6: x | D6: x | E6: x | F6: x | G6: x | H6: x | I6: x
A7: App.2-AA_Capital Projects | B7: x | C7: x | D7: x | E7: x | F7: x | G7: x | H7: x | I7: x
A8: App.2-AB_Capital Expenditures | B8: x | C8: x | D8: x | E8: x | F8: x | G8: x | H8: x | I8: x
A9: App.2-BA1_Fix Asset Cont.CGAAP | B9: x | C9: x | D9: x | E9: n | F9: x | G9: x | H9: x | I9: x
A10: App.2-BA2_Fix Asset Cont.MIFRS | B10: n | C10: n | D10: n | E10: x | F10: n | G10: n | H10: n | I10: n
A11: Appendix 2-BB Service Life Comp | B11: x | C11: x | D11: x | E11: x | F11: x | G11: x | H11: x | I11: x
A12: Instruction for App. 2-C MIFRS | B12: n | C12: n | D12: n | E12: x | F12: n | G12: n | H12: n | I12: n
A13: App.2-CA_CGAAP_DepExp_2011 | B13: n | C13: n | D13: n | E13: x | F13: n | G13: n | H13: n | I13: n
A14: App.2-CB_MIFRS_DepExp_2011 | B14: n | C14: n | D14: n | E14: x | F14: n | G14: n | H14: n | I14: n
A15: App.2-CC_MIFRS_DepExp_2012 | B15: n | C15: n | D15: n | E15: x | F15: n | G15: n | H15: n | I15: n
A16: App.2-CD_MIFRS_DepExp_2013 | B16: n | C16: n | D16: n | E16: x | F16: n | G16: n | H16: n | I16: n
A17: App.2-CE_MIFRS_DepExp_2014 | B17: n | C17: n | D17: n | E17: x | F17: n | G17: n | H17: n | I17: n
A18: App.2-CF_CGAAP_DepExp_2012 | B18: n | C18: n | D18: n | E18: x | F18: n | G18: n | H18: n | I18: n
A19: App.2-CG_MIFRS_DepExp_2012 | B19: n | C19: n | D19: n | E19: x | F19: n | G19: n | H19: n | I19: n
A20: App.2-CH_MIFRS_DepExp_2013 | B20: n | C20: n | D20: n | E20: x | F20: n | G20: n | H20: n | I20: n
A21: App.2-CI_MIFRS_DepExp_2014 | B21: n | C21: n | D21: n | E21: x | F21: n | G21: n | H21: n | I21: n
A22: App.2-CJ_CGAAP_DepExp_2012 | B22: n | C22: n | D22: n | E22: x | F22: n | G22: n | H22: n | I22: n
A23: App.2-CK_CGAAP_DepExp_2013 | B23: n | C23: n | D23: n | E23: x | F23: n | G23: n | H23: n | I23: n
A24: App.2-CL_MIFRS_DepExp_2013 | B24: n | C24: n | D24: n | E24: x | F24: n | G24: n | H24: n | I24: n
A25: App.2-CM_MIFRS_DepExp_2014 | B25: n | C25: n | D25: n | E25: x | F25: n | G25: n | H25: n | I25: n
A26: Instruction for App. 2-C CGAAP | B26: x | C26: x | D26: x | E26: n | F26: n | G26: x | H26: x | I26: x
A27: App.2-CN_OldCGAAP_DepExp_2012 | B27: x | C27: x | D27: n | E27: n | F27: n | G27: x | H27: x | I27: n
A28: App.2-CO_NewCGAAP_DepExp_2012 | B28: x | C28: x | D28: n | E28: n | F28: n | G28: x | H28: x | I28: n
A29: App.2-CP_NewCGAAP_DepExp_2013 | B29: x | C29: x | D29: n | E29: n | F29: n | G29: x | H29: x | I29: n
A30: App.2-CQ NewCGAAP_DepExp_2014 | B30: x | C30: x | D30: n | E30: n | F30: n | G30: x | H30: x | I30: n
A31: App.2-CR_OldCGAAP_DepExp_2012 | B31: x | C31: n | D31: x | E31: n | F31: n | G31: x | H31: n | I31: x
A32: App.2-CS_OldCGAAP_DepExp_2013 | B32: x | C32: n | D32: x | E32: n | F32: n | G32: x | H32: n | I32: x
A33: App.2-CT_NewCGAAP_DepExp_2013 | B33: x | C33: n | D33: x | E33: n | F33: n | G33: x | H33: n | I33: x
A34: App.2-CU_NewCGAAP_DepExp_2014 | B34: x | C34: n | D34: x | E34: n | F34: n | G34: x | H34: n | I34: x
A35: App.2-CV_USGAAP_DepExp | B35: n | C35: n | D35: n | E35: n | F35: x | G35: n | H35: n | I35: n
A36: App.2-DA_Overhead | B36: n | C36: n | D36: n | E36: x | F36: n | G36: n | H36: n | I36: n
A37: App.2-DB_Overhead | B37: x | C37: x | D37: x | E37: n | F37: n | G37: x | H37: x | I37: x
A38: App.2-EA_PP&E Deferral Account | B38: n | C38: n | D38: n | E38: x | F38: x | G38: n | H38: n | I38: n
A39: App.2-EB_PP&E Deferral Account | B39: n | C39: n | D39: n | E39: x | F39: x | G39: n | H39: n | I39: n
A40: App.2-EC_PP&E Deferral Account | B40: n | C40: n | D40: n | E40: x | F40: x | G40: n | H40: n | I40: n
A41: App.2-ED_Account 1576 (2012) | B41: x | C41: x | D41: n | E41: x | F41: x | G41: x | H41: x | I41: n
A42: App.2-EE_Account 1576 (2013) | B42: x | C42: n | D42: x | E42: x | F42: x | G42: x | H42: n | I42: x
A43: App.2-FA Proposed REG Invest. | B43: o | C43: o | D43: o | E43: o | F43: o | G43: o | H43: o | I43: o
A44: App.2-FB Calc of REG Improvemnt | B44: o | C44: o | D44: o | E44: o | F44: o | G44: o | H44: o | I44: o
A45: App.2-FC Calc of REG Expansion | B45: o | C45: o | D45: o | E45: o | F45: o | G45: o | H45: o | I45: o
A46: App.2-G SQI | B46: x | C46: x | D46: x | E46: x | F46: x | G46: x | H46: x | I46: x
A47: App.2-H_Other_Oper_Rev | B47: x | C47: x | D47: x | E47: x | F47: x | G47: x | H47: x | I47: x
A48: App.2-I LF_CDM_WF | B48: x | C48: x | D48: x | E48: x | F48: x | G48: x | H48: x | I48: x
A49: App.2-JA_OM&A_Summary_Analys | B49: x | C49: x | D49: x | E49: x | F49: x | G49: x | H49: x | I49: x
A50: App.2-JB_OM&A_Cost _Drivers | B50: x | C50: x | D50: x | E50: x | F50: x | G50: x | H50: x | I50: x
A51: App.2-JC_OMA Programs | B51: x | C51: x | D51: x | E51: x | F51: x | G51: x | H51: x | I51: x
A52: App.2-K_Employee Costs | B52: x | C52: x | D52: x | E52: x | F52: x | G52: x | H52: x | I52: x
A53: App.2-L_OM&A_per_Cust_FTEE | B53: x | C53: x | D53: x | E53: x | F53: x | G53: x | H53: x | I53: x
A54: App.2-M_Regulatory_Costs | B54: x | C54: x | D54: x | E54: x | F54: x | G54: x | H54: x | I54: x
A55: App.2-N_Corp_Cost_Allocation | B55: x | C55: x | D55: x | E55: x | F55: x | G55: x | H55: x | I55: x
A56: App.2-OA Capital Structure | B56: x | C56: x | D56: x | E56: x | F56: x | G56: x | H56: x | I56: x
A57: App.2-OB_Debt Instruments | B57: x | C57: x | D57: x | E57: x | F57: x | G57: x | H57: x | I57: x
A58: App.2-P_Cost_Allocation | B58: x | C58: x | D58: x | E58: x | F58: x | G58: x | H58: x | I58: x
A59: App.2-Q_Cost of Serv. Emb. Dx | B59: e | C59: e | D59: e | E59: e | F59: e | G59: e | H59: e | I59: e
A60: App.2-R_Loss Factors | B60: x | C60: x | D60: x | E60: x | F60: x | G60: x | H60: x | I60: x
A61: App.2-S_Stranded Meters | B61: x | C61: x | D61: x | E61: x | F61: x | G61: x | H61: x | I61: x
A62: App.2-TA_1592_Tax_Variance | B62: x | C62: x | D62: x | E62: x | F62: x | G62: x | H62: x | I62: x
A63: App.2-TB_1592_HST-OVAT | B63: x | C63: x | D63: x | E63: x | F63: x | G63: x | H63: x | I63: x
A64: App.2-U_IFRS Transition Costs | B64: x | C64: x | D64: x | E64: x | F64: x | G64: x | H64: x | I64: x
A65: App.2-V_Rev_Reconciliation | B65: x | C65: x | D65: x | E65: x | F65: x | G65: x | H65: x | I65: x
A66: App.2-W_Bill Impacts | B66: x | C66: x | D66: x | E66: x | F66: x | G66: x | H66: x | I66: x
A67: App.2-YA_MIFRS Summary Impacts | B67: n | C67: n | D67: n | E67: x | F67: n | G67: n | H67: n | I67: n
A68: App. 2-YB_CGAAP Summary Impacts | B68: x | C68: x | D68: x | E68: n | F68: n | G68: x | H68: x | I68: x
A69: App. 2-Z_Tariff | B69: x | C69: x | D69: x | E69: x | F69: x | G69: x | H69: x | I69: x
A70: lists | B70: n | C70: n | D70: n | E70: n | F70: n | G70: n | H70: n | I70: n
A71: lists2 | B71: n | C71: n | D71: n | E71: n | F71: n | G71: n | H71: n | I71: n
A72: Sheet19 | B72: n | C72: n | D72: n | E72: n | F72: n | G72: n | H72: n | I72: n

Sheet Sheet1 (hidden)
